{"text_format":"1","workbook":"xlsx","n_sheets":14,"sheets":["Cover","Info","Results","E01","E02","E03","E04","E05","E06","E07","E08","E09","E10","About"],"not_rendered":{"charts":12,"images":37,"macros":1,"external_links":0,"defined_names":15,"comments":0,"pivot_tables":0},"unopened":[],"bounds":{"document_bytes":16777216,"sheet_cells":100000,"rows_first":2000,"rows_last":500,"rows_between":2000,"halvings":0,"cell_chars":16384,"cell_head_chars":4096},"cells_cut":0,"cells_raw":0,"read":"whole","date_system":"1900"}

{"sheet":"Cover","index":0,"n_rows":0,"n_cols":0,"rows_kept":0,"cut":false,"hidden":false,"merged":[]}

{"sheet":"Info","index":1,"n_rows":39,"n_cols":4,"rows_kept":39,"cut":false,"hidden":false,"merged":[[38,1,38,3],[39,1,39,3],[2,1,2,2],[3,1,3,2],[4,1,4,2],[5,1,5,2],[6,1,6,2],[37,1,37,3],[31,1,31,2],[32,1,32,2],[33,1,33,2],[34,1,34,2],[35,1,35,2]]}
[]
[]
[null,"Cette évaluation",null,"Réponse"]
[null,"Nom de ville"]
[null,"Type de ville (municipalité, zones métropolitaines, etc)"]
[null,"Pays"]
[null,"Date d'évaluation"]
[]
[null,"Profil de la ville (Obligatoire)","Réponse","Date"]
[null,"Titre du plus haut niveau d'autorité (par exemple, maire, etc.)"]
[null,"Population totale de la ville:"]
[null,"Ville kilomètres carrés:"]
[null,"Densité de la population (par kilomètre carré):"]
[null,"Population qui est jeune (15-24 ans) (%):"]
[null,"Population majoritaire (65+) (%):"]
[null,"Genre (ménages dirigés par des femmes):"]
[null,"Taux d'alphabétisation (% de la population alphabétisée):"]
[null,"Taux de pauvreté (% de population non pauvre):"]
[null,"Revenu moyen du ménage (USD):"]
[null,"Résidents qui ne sont pas citoyens (%):"]
[null,"Risque probable de catastrophe probable:"]
[null,"La catastrophe la plus grave (connue):"]
[]
[null,"Profil de la ville (facultatif)","Réponse","Date"]
[null,"Nombre total de ménages:"]
[null,"Personnes par unité:"]
[null,"Coût de la vie (USD):"]
[null,"PIB du pays par habitant (USD)"]
[null,"Coefficient de Gini:"]
[null,"Produit de la ville par habitant (USD):"]
[]
[null,"Réponse de l'équipe de réduction et de résilience des catastrophes du gouvernement local",null,"Réponse"]
[null,"Nom de la personne qui mène / coordonne l'achèvement de l'évaluation du tableau de bord:"]
[null,"Organisation: "]
[null,"Détails du contact:"]
[null,"Volonté de partager les résultats ou être utilisé comme exemple / étude de cas par l'UNDRR et ses partenaires:"]
[]
[null,"Informations sur les parties prenantes"]
[null,"Veuillez indiquer toutes les parties prenantes qui ont soutenu cette évaluation ci-dessous."]

{"sheet":"Results","index":2,"n_rows":357,"n_cols":13,"rows_kept":357,"cut":false,"hidden":false,"merged":[[124,2,124,5],[125,2,125,5],[126,2,126,5],[127,2,127,5],[223,1,223,3],[185,1,185,6],[187,2,187,5],[196,2,196,5],[197,2,197,5],[198,2,198,5],[199,2,199,5],[200,2,200,5],[201,2,201,5],[206,1,206,6],[208,2,208,5],[209,2,209,5],[190,2,190,5],[191,2,191,5],[192,2,192,5],[193,2,193,5],[141,2,141,5],[142,2,142,5],[154,2,154,5],[155,2,155,5],[34,2,34,5],[35,2,35,5],[36,2,36,5],[150,2,150,5],[151,2,151,5],[152,2,152,5],[49,2,49,5],[50,2,50,5],[51,2,51,5],[52,2,52,5],[53,2,53,5],[66,2,66,5],[67,2,67,5],[68,2,68,5],[69,2,69,5],[101,2,101,5],[97,1,97,6],[82,2,82,5],[83,2,83,5],[84,2,84,5],[85,2,85,5],[99,2,99,5],[100,2,100,5],[88,2,88,5],[42,2,42,5],[54,2,54,5],[70,2,70,5],[71,2,71,5],[72,2,72,5],[37,2,37,5],[38,2,38,5],[39,2,39,5],[40,2,40,5],[41,2,41,5],[102,2,102,5],[103,2,103,5],[104,2,104,5],[122,2,122,5],[123,2,123,5],[73,2,73,5],[74,2,74,5],[75,2,75,5],[86,2,86,5],[87,2,87,5],[89,2,89,5],[90,2,90,5],[91,2,91,5],[118,2,118,5],[114,1,114,6],[116,2,116,5],[117,2,117,5],[119,2,119,5],[120,2,120,5],[121,2,121,5],[156,2,156,5],[128,2,128,5],[137,2,137,5],[138,2,138,5],[139,2,139,5],[140,2,140,5],[153,2,153,5],[136,2,136,5],[131,1,131,6],[133,2,133,5],[134,2,134,5],[135,2,135,5],[162,2,162,5],[163,2,163,5],[164,2,164,5],[165,2,165,5],[166,2,166,5],[157,2,157,5],[158,2,158,5],[159,2,159,5],[160,2,160,5],[161,2,161,5],[172,2,172,5],[173,2,173,5],[174,2,174,5],[175,2,175,5],[176,2,176,5],[167,2,167,5],[168,2,168,5],[169,2,169,5],[170,2,170,5],[171,2,171,5],[211,2,211,5],[194,2,194,5],[195,2,195,5],[202,2,202,5],[203,2,203,5],[210,2,210,5],[177,2,177,5],[178,2,178,5],[179,2,179,5],[188,2,188,5],[189,2,189,5],[180,2,180,5],[181,2,181,5],[182,2,182,5]]}
[]
[]
[]
[]
[]
[]
[]
[]
[]
[]
[]
[]
[]
[]
[]
[]
[]
[]
[]
[]
[]
[]
[]
[]
[]
[]
[]
[]
[]
[]
[]
[]
[null,"Point Essentiel 01 S’Organiser pour la Résilience"]
[]
[null,{"$f":"C240","v":"1.1.1"},{"$f":"E240","v":"Prise en considération du risque lors de l’élaboration du Plan"},null,null,null,{"$f":"F240","v":{"$error":"#N/A"}}]
[null,"1.1.2","La Consultation dans l’élaboration du plan",null,null,null,{"$error":"#N/A"}]
[null,"1.1.3","Examen des plans stratégiques",null,null,null,{"$error":"#N/A"}]
[null,"1.2.1","Planification et préparation pré- événement",null,null,null,{"$error":"#N/A"}]
[null,"1.2.2","Coordination de la réaction à l’événement",null,null,null,{"$error":"#N/A"}]
[null,"1.2.3","Les ressources de la ville dans la gestion de l’organisation, la coordination et la participation",null,null,null,{"$error":"#N/A"}]
[null,"1.2.4","Identification des contributions physiques",null,null,null,{"$error":"#N/A"}]
[null,"1.3.1","Intégration de la résilience aux catastrophes dans d’autres initiatives",null,null,null,{"$error":"#N/A"}]
[null,{"$f":"C248","v":"1.4.1"},"Dans quelle mesure les données sur la résilience de la ville sont-elles partagées avec les autres organisations impliquées dans la résilience de la ville",null,null,null,{"$f":"F248","v":{"$error":"#N/A"}}]
[]
[]
[]
[]
[null,"Point Essentiel 02 Identifier, Comprendre et Utiliser Des Scénarios de Risques Présents et Futurs"]
[]
[null,{"$f":"C249","v":"2.1.1"},{"$f":"E249","v":"Connaissance des aléas (également nommés périls, ou chocs et contraintes) auxquels la ville fait face, et leur probabilité"},null,null,null,{"$f":"F249","v":0}]
[null,"2.2.1","Knowledge of exposure and vulnerability",null,null,null,0]
[null,"2.2.2","Evaluation des dégâts et des pertes",null,null,null,0]
[null,"2.3.1","Les impacts en cascade ou les interdépendances",null,null,null,0]
[null,"2.4.1","Cartographie des aléas",null,null,null,0]
[null,"2.5.1","Processus de mise au jour",null,null,null,0]
[]
[]
[]
[]
[]
[]
[]
[]
[]
[null,"Point Essentiel 03 Renforcer la Capacité Financière en matière de Résilience"]
[]
[null,{"$f":"C255","v":"3.1.1"},{"$f":"E255","v":"Avoir conscience et savoir toutes les méthodes de financement possibles, tel que requis. La ville oeuvre poursuivant activement au financement, tel que requis."},null,null,null,{"$f":"F255","v":0}]
[null,"3.2.1",{"$f":"E256","v":"Les budgets de résilience dans le plan financier de la ville y compris les fonds de réserve"},null,null,null,{"$f":"F256","v":0}]
[null,"3.2.2","Le financement des travaux d’ingénierie à long terme et d’autres travaux traitant les scénarios les actifs essentiels définis par l’Essentiel 2 et l’Essentiel 8",null,null,null,0]
[null,"3.2.3","Financement du fonctionnement pour remplir tous les coûts du fonctionnement des activités de résilience aux catastrophes.",null,null,null,0]
[null,"3.2.4","Les fonds de réserve pour la récupération post-catastrophe (on s’y réfère par « les réserves des mauvais jours »",null,null,null,0]
[null,"3.3.1","Couvertured’assurancedomestique",null,null,null,0]
[null,"3.3.2","Couverture d’assurance nondomestique",null,null,null,0]
[null,"3.4.1","Incitations aux entreprises, aux organisations pour améliorer la résilience aux catastrophesles plans de catastrophes, locaux, etc",null,null,null,0]
[null,"3.4.2","Incitations aux organisations non lucratives, pour améliorer la résilience aux catastrophesles plans de catastrophes, locaux, etc",null,null,null,0]
[null,"3.4.3","Incitations aux propriétaires de logements, pour améliorer la résilience aux catastrophesles plans de catastrophes, locaux, etc",null,null,null,0]
[]
[]
[]
[]
[null,"Point Essentiel 04 Poursuivre le Développement Urbain Résilient"]
[]
[null,{"$f":"C265","v":"4.1.1"},{"$f":"E265","v":"Possibilité de déplacement de la population"},null,null,null,{"$f":"F266","v":0}]
[null,"4.1.2","Activité économique dans le risque",null,null,null,{"$f":"F267","v":0}]
[null,"4.1.2.1","Activité économique dans le risque",null,null,null,0]
[null,"4.1.3","Terres agricoles dans le risque",null,null,null,0]
[null,"4.2.1","Les solutions du design urbain favorisant la résilience",null,null,null,0]
[null,"4.3.1","Existence des codes de construction conçus pour traiter les risques identifiés dans l’Essentiel 2.",null,null,null,0]
[null,"4.3.2","Mise au jour des codes de construction",null,null,null,0]
[null,"4.3.3","Les normes de la conception architecturale durables",null,null,null,0]
[null,"4.4.1","Application du zonage pour l’exploitation des terres",null,null,null,0]
[null,"4.4.2","Application des codes de construction",null,null,null,0]
[]
[]
[]
[]
[]
[null,"Point Essentiel 05 Sauvegarder des Zones Tampons Naturelles en Vue de Renforcer les Fonctions Protectives Prodiguées par les Ecosystèmes Naturels"]
[]
[null,{"$f":"C275","v":"5.1.1"},{"$f":"E275","v":"Avoir conscience du rôle que les services des écosystèmes peuvent jouer dans la résilience des villes aux catastrophes"},null,null,null,{"$f":"F275","v":0}]
[null,"5.1.2","Santé de l’écosystème",null,null,null,0]
[null,"5.2.1","Impact de l’exploitation des terres et des autres politiques sur les services des écosystèmes.",null,null,null,0]
[null,"5.2.2","Les infrastructures vertes et bleues sont systématiquement intégrées dans les projets de la ville",null,null,null,0]
[null,"5.3.1","Identification des actifs environnementaux critiques",null,null,null,0]
[null,"5.3.2","Les accords transfrontières",null,null,null,0]
[]
[]
[]
[]
[]
[]
[]
[]
[]
[null,"Point Essentiel 06 Renforcer la capacité Institutionnelle Pour la Résilience"]
[]
[null,{"$f":"C281","v":"6.1.1"},{"$f":"E281","v":"Disponibilité des compétences et d’expériences en matière de résilienceidentification et atténuation du risque, planification, réaction et réaction postévénement"},null,null,null,{"$f":"F281","v":0}]
[null,{"$f":"C282","v":"6.1.2"},"Les liens avec le secteur privé",null,null,null,{"$f":"F282","v":0}]
[null,"6.1.3","Engagement du secteur assurance",null,null,null,0]
[null,"6.1.4","Les liens avec la société civile",null,null,null,0]
[null,"6.2.1","Exposition du public aux matériaux/ messages de l’éducation et de la sensibilisation",null,null,null,0]
[null,"6.2.1.1","Exposition du public aux matériaux/ messages de l’éducation et de la sensibilisation",null,null,null,0]
[null,"6.3.1","Le degré de partage des données sur la résilience de la ville avec les autres organisations impliquées dans la résilience de la ville",null,null,null,0]
[null,"6.3.2","Le degré de partage des données sur la résilience de la ville avec les organisations communautaires et le public",null,null,null,0]
[null,"6.4.1","Disponibilité, taux de participation à des formations focalisées sur le risque et la résilience (formation professionnelle)",null,null,null,0]
[null,"6.4.1.1","Disponibilité, taux de participation à des formations focalisées sur le risque et la résilience (formation professionnelle)",null,null,null,0]
[null,"6.4.2","Système/ processus de mise au jour de l’entraînement pertinent",null,null,null,0]
[null,"6.5.1","Accessibilité de l’éducation et de la formation pour tous les groupes linguistiques de la ville",null,null,null,0]
[null,"6.6.1","L’effort déployé pour apprendre ce que font les autres villes, états et pays (et compagnies) pour accroître la résilience.",null,null,null,0]
[]
[]
[null,"Point Essentiel 07 Comprendre et Renforcer la Capacité Sociétale pour la Résilience"]
[]
[null,{"$f":"C294","v":"7.1.1"},{"$f":"E294","v":"Etendue des organisations communautaires ou “de base” dans la ville"},null,null,null,{"$f":"F294","v":0}]
[null,{"$f":"C295","v":"7.1.2"},{"$f":"E295","v":"Efficacité du réseau communautaire"},null,null,null,{"$f":"F295","v":0}]
[null,"7.1.2.1",{"$f":"E296","v":"Efficacité du réseau communautaire"},null,null,null,0]
[null,"7.2.1",{"$f":"E297","v":"La connectivité sociale et la cohésion du voisinage"},null,null,null,0]
[null,"7.2.2",{"$f":"E298","v":"Engagement des groupes vulnérables de la population"},null,null,null,0]
[null,"7.3.1","La mesure dans laquelle les patrons agissent comme intermédiaires avec les employés",null,null,null,0]
[null,"7.3.2","Planification de la continuité de l’activité commerciale",null,null,null,0]
[null,"7.4.1","fréquenced’engagement",null,null,null,0]
[null,"7.4.2","Usage des « systèmes d’engagement » par e-mail et le mobile, pour habiliter les citoyens à recevoir et donner des mises au jour avant et après la catastrophe.",null,null,null,0]
[null,"7.4.3","Validation de l’efficacité de l’éducation",null,null,null,0]
[]
[]
[]
[]
[]
[null,"Point Essentiel 08 Accroître la Résilience d’infrastructure"]
[]
[null,{"$f":"C304","v":"8.1.1"},{"$f":"E304","v":"Suffisance de l’infrastructure protective (Les écosystèmes peuvent fournir un tampon naturel-voir Essentiel 5)"},null,null,null,{"$f":"F304","v":0}]
[null,"8.1.2",{"$f":"E305","v":"Efficacité de la maintenance"},null,null,null,{"$f":"F305","v":0}]
[null,"8.2.1",{"$f":"E306","v":"Risque de perte des journées du service clientèle"},null,null,null,0]
[null,"8.2.2",{"$f":"E307","v":"Les jours de service d’un actif essentiel désigné (ex. service pour des hôpitaux ou autres actifs essentiels), menacés de risque de perte par la défaillance de l’eau ou de l’assainissement"},null,null,null,0]
[null,"8.2.3",{"$f":"E308","v":"Coûts de la restauration du service"},null,null,null,0]
[null,"8.3.1","Les journées du service clientèle en risque de perte",null,null,null,0]
[null,"8.3.2","Les journées du service de l’actif essentiel désigné, en risque de perte par la défaillance d’énergie",null,null,null,0]
[null,"8.3.3","Coûts de restauration",null,null,null,0]
[null,"8.4.1","Sécurité et intégrité du système du gaz (si applicable)",null,null,null,{"$f":"IF(I312=TRUE,0,F312)","v":0}]
[null,"8.4.2","Journées de service clientèle en risque de perte",null,null,null,{"$f":"IF(I313=TRUE,0,F313)","v":0}]
[null,"8.4.3","Les journées de service de l’actif essentiel désigné en risque de perte, par la chute d’alimentation en gaz",null,null,null,{"$f":"IF(I314=TRUE,0,F314)","v":0}]
[null,"8.4.4","Coûts de restauration du service",null,null,null,{"$f":"IF(I315=TRUE,0,F315)","v":0}]
[null,"8.5.1","Le service du système routier en risque",null,null,null,0]
[null,"8.5.2","Subsistance des accès essentiels et des routes d’évacuation",null,null,null,0]
[null,"8.5.3","Service ferroviaire/métro (si applicable) du système ferroviaire en risque de perte",null,null,null,{"$f":"IF(I318=TRUE,0,F318)","v":0}]
[null,"8.5.4","Air (si applicable)",null,null,null,{"$f":"IF(I319=TRUE,0,F319)","v":0}]
[null,"8.5.5","Rivière/mer (si applicable)",null,null,null,{"$f":"IF(I320=TRUE,0,F320)","v":0}]
[null,"8.5.6","Autre transport public (si applicable)",null,null,null,{"$f":"IF(I321=TRUE,0,F321)","v":0}]
[null,"8.5.7","Coûts de restauration du service (tous les transports routiers)",null,null,null,0]
[null,"8.6.1","Les journées de service en risque de perte",null,null,null,0]
[null,"8.6.2","Les journées de service désignées de l’actif essentiel, sous risque de perte à cause de la défaillance des communications.",null,null,null,0]
[null,"8.6.3","Coûts de restauration",null,null,null,0]
[null,"8.7.1","La sécurité structurelle et la résilience aux catastrophes des installations sanitaires et d’urgence (Personnel/1ers intervenants- voir Essentiel 9)",null,null,null,0]
[null,"8.7.1.1","La sécurité structurelle et la résilience aux catastrophes des installations sanitaires et d’urgence (Personnel/1ers intervenants- voir Essentiel 9)",null,null,null,0]
[null,"8.7.2","Dossiers et données en matière de santé",null,null,null,0]
[null,"8.7.3","Disponibilité de soins d'urgence, comperenant les installations et les fournitures médicales urgentes pour les besoins aigus",null,null,null,0]
[null,"8.8.1","Sécurité structurelle des installations d’éducation",null,null,null,0]
[null,"8.8.2","Perte du temps d’enseignement",null,null,null,0]
[null,"8.8.3","Données sur l’éducation",null,null,null,0]
[null,"8.9.1","Résilience du système carcéral aux catastrophes",null,null,null,0]
[null,"8.10.1",{"$f":"E334","v":"La garantie de continuité de toutes les fonctions administratives essentielles"},null,null,null,0]
[null,"8.11.1",{"$f":"E335","v":"Assurance de continuité des systèmes informatiques et des données cruciales pour la continuité du gouvernement"},null,null,null,0]
[null,"8.11.2",{"$f":"E336","v":"Assurance de continuité des systèmes informatiques et des données importantes pour n’importe quelle infrastructure figurant ci-dessus"},null,null,null,0]
[]
[]
[null,"Point Essentiel 09 Assurer l’efficacité de réaction en cas de catastrophe"]
[]
[null,{"$f":"C337","v":"9.1.1"},{"$f":"E337","v":"Existence et efficacité des dispositifs d’alerte précoce"},null,null,null,{"$f":"F337","v":0}]
[null,{"$f":"C338","v":"9.1.1.1"},{"$f":"E338","v":"La portée de l’alerte"},null,null,null,{"$f":"F338","v":0}]
[null,"9.2.1","Existence de plans de réaction d’urgence, intégrant les intervenants professionnels et les organisations communautaires (Pour la réaction post-événementvoir Essentiel 10)",null,null,null,0]
[null,"9.3.1","Capacité d’incursion de la Police, aussi pour appuyer les tâches des 1ers intervenants",null,null,null,0]
[null,"9.3.2","Définition d’autres 1ers intervenants, et d’autres besoins de personnel et la disponibilité",null,null,null,0]
[null,"9.4.1","Définition des besoins en matière d’équipements et de fourniture, et disponibilité d’équipements",null,null,null,0]
[null,"9.4.1.1","Définition des besoins en matière d’équipements et de fourniture, et disponibilité d’équipements",null,null,null,0]
[null,"9.5.1","Habileté éventuel de continuer à nourrir la population",null,null,null,0]
[null,"9.5.2","Aptitude éventuelle à remplir les besoins en matière d’abris/lieux sûrs",null,null,null,0]
[null,"9.5.2.1",{"$f":"E346","v":"Aptitude éventuelle à remplir les besoins en matière d’abris/lieux sûrs"},null,null,null,0]
[null,"9.5.3","Aptitude à subvenir aux besoins éventuels en matière de produits de base",null,null,null,0]
[null,"9.5.4","Disponibilité de carburant susceptible",null,null,null,0]
[null,"9.6.1","Interopérabilité de systèmes essentiels et de procédures avec les villes/ états voisins et autres niveaux de gouvernement",null,null,null,0]
[null,"9.6.2","Centre des opérations d’urgence",null,null,null,0]
[null,"9.6.3","Coordination du redressement post événement",null,null,null,0]
[null,"9.7.1","Exercices pratiques et répétitionsimpliquant à la fois le public et les professionnels",null,null,null,0]
[null,{"$f":"C353","v":"9.7.2"},"Efficacité des exercices de manoeuvre et de la formation",null,null,null,0]
[]
[]
[null,"Point Essentiel 10 Diligenter le Redressement et Reconstruire en Mieux"]
[]
[null,{"$f":"C354","v":"10.1.1"},{"$f":"E354","v":"La planification du redressement post événement et du relèvement économique"},null,null,null,{"$f":"F354","v":0}]
[null,{"$f":"C355","v":"10.1.2"},{"$f":"E355","v":"La mesure dans laquelle une consultation des intervenants a eu lieu sur les plans de redressement et de relèvement post événement."},null,null,null,{"$f":"F355","v":0}]
[null,{"$f":"C356","v":"10.1.3"},{"$f":"E356","v":"Les dispositions financières parallèles pour l’aide reçue et le déboursement des fonds"},null,null,null,{"$f":"F356","v":0}]
[null,{"$f":"C357","v":"10.2.1"},{"$f":"E357","v":"Cycle d’apprentissage"},null,null,null,{"$f":"F357","v":0}]
[]
[]
[]
[]
[]
[]
[]
[]
[]
[]
[]
[null,{"$f":"TODAY()","v":"2019-06-11"}]
[]
[]
[null,null,"Label","Name",null,"Essential","TotalScore","MaxScore","Label"]
[null,null,"S1","1.   Organise for Disaster Resilience",null,"E1",{"$f":"SUMIFS($F$240:$F$1219,$B$240:$B$1219,F228)","v":{"$error":"#N/A"}},{"$f":"COUNTIFS($B$240:$B$357,F228)*5","v":45},"01",null,{"$f":"SUM(G228:G237)","v":{"$error":"#N/A"}},{"$f":"K228/K229","v":{"$error":"#N/A"}},{"$f":"CONCATENATE(\"Le résultat total pour cette évaluation est: \",SUM(G228:G237),\" / \",SUM(H228:H237))","v":{"$error":"#N/A"}}]
[null,null,"S2","2.   Identify, Understand and Use Current and Future Risk Scenarios",null,"E2",0,30,"02",null,{"$f":"SUM(H228:H237)","v":590},{"$f":"1-L228","v":{"$error":"#N/A"}}]
[null,null,"S3","3.   Strengthen Financial Capacity for Resilience",null,"E3",0,50,"03"]
[null,null,"S4","4.   Pursue Resilient Urban Development and Design",null,"E4",0,50,"04"]
[null,null,"S5","5.   Safeguard Natural Buffers to Enhance Ecosystems’ Protective Functions",null,"E5",0,30,"05"]
[null,null,"S6","6.   Strengthen Institutional Capacity for Resilience",null,"E6",0,65,"06"]
[null,null,"S7","7.   Understand and Strengthen Societal Capacity for Resilience",null,"E7",0,50,"07"]
[null,null,"S8","8.   Increase Infrastructure Resilience",null,"E8",{"$f":"SUMIFS($F$240:$F$1219,$B$240:$B$1219,F235)-SUMIFS($F$240:$F$1219,$B$240:$B$1219,F235,$I$240:$I$1219,TRUE)","v":0},{"$f":"(COUNTIFS($B$240:$B$357,F235)-COUNTIFS(I312:I321,TRUE))*5","v":165},"08","Note: This row has different formulas to discount questions that are N/A"]
[null,null,"S9","9.   Ensure Effective Disaster Response",null,"E9",0,85,"09"]
[null,null,"S10","10. Expedite Recovery and Build Back Better",null,"E10",0,20,"10"]
[]
[null,"Section","Ref",null,"Question","SelectedScore","ThisScore"]
[null,"E1","1.1.1",null,"Prise en considération du risque lors de l’élaboration du Plan",{"$f":"IF(G240=\"\",0,IF(G240=0,0,6-G240))","v":{"$error":"#N/A"}},{"$f":"OFFSET('E01'!$E$1,MATCH(C240,'E01'!G:G,0)+3,0)","v":{"$error":"#N/A"}}]
[null,"E1","1.1.2",null,"La Consultation dans l’élaboration du plan",{"$f":"IF(G241=\"\",0,IF(G241=0,0,6-G241))","v":{"$error":"#N/A"}},{"$f":"OFFSET('E01'!$E$1,MATCH(C241,'E01'!G:G,0)+3,0)","v":{"$error":"#N/A"}}]
[null,"E1","1.1.3",null,"Examen des plans stratégiques",{"$error":"#N/A"},{"$f":"OFFSET('E01'!$E$1,MATCH(C242,'E01'!G:G,0)+3,0)","v":{"$error":"#N/A"}}]
[null,"E1","1.2.1",null,"Planification et préparation pré- événement",{"$error":"#N/A"},{"$f":"OFFSET('E01'!$E$1,MATCH(C243,'E01'!G:G,0)+3,0)","v":{"$error":"#N/A"}}]
[null,"E1","1.2.2",null,"Coordination de la réaction à l’événement",{"$error":"#N/A"},{"$f":"OFFSET('E01'!$E$1,MATCH(C244,'E01'!G:G,0)+3,0)","v":{"$error":"#N/A"}}]
[null,"E1","1.2.3",null,"Les ressources de la ville dans la gestion de l’organisation, la coordination et la participation",{"$error":"#N/A"},{"$f":"OFFSET('E01'!$E$1,MATCH(C245,'E01'!G:G,0)+3,0)","v":{"$error":"#N/A"}}]
[null,"E1","1.2.4",null,"Identification des contributions physiques",{"$error":"#N/A"},{"$f":"OFFSET('E01'!$E$1,MATCH(C246,'E01'!G:G,0)+3,0)","v":{"$error":"#N/A"}}]
[null,"E1","1.3.1",null,"Intégration de la résilience aux catastrophes dans d’autres initiatives",{"$error":"#N/A"},{"$f":"OFFSET('E01'!$E$1,MATCH(C247,'E01'!G:G,0)+3,0)","v":{"$error":"#N/A"}}]
[null,"E1","1.4.1",null,"Dans quelle mesure les données sur la résilience de la ville sont-elles partagées avec les autres organisations impliquées dans la résilience de la ville",{"$error":"#N/A"},{"$f":"OFFSET('E01'!$E$1,MATCH(C248,'E01'!G:G,0)+3,0)","v":{"$error":"#N/A"}}]
[null,"E2","2.1.1",null,"Connaissance des aléas (également nommés périls, ou chocs et contraintes) auxquels la ville fait face, et leur probabilité",0,{"$f":"OFFSET('E02'!$E$1,MATCH(C249,'E02'!G:G,0)+3,0)","v":0}]
[null,"E2","2.2.1",null,"Knowledge of exposure and vulnerability",0,{"$f":"OFFSET('E02'!$E$1,MATCH(C250,'E02'!G:G,0)+3,0)","v":0}]
[null,"E2","2.2.2",null,"Evaluation des dégâts et des pertes",0,{"$f":"OFFSET('E02'!$E$1,MATCH(C251,'E02'!G:G,0)+3,0)","v":0}]
[null,"E2","2.3.1",null,"Les impacts en cascade ou les interdépendances",0,{"$f":"OFFSET('E02'!$E$1,MATCH(C252,'E02'!G:G,0)+3,0)","v":0}]
[null,"E2","2.4.1",null,"Cartographie des aléas",0,{"$f":"OFFSET('E02'!$E$1,MATCH(C253,'E02'!G:G,0)+3,0)","v":0}]
[null,"E2","2.5.1",null,"Processus de mise au jour",0,{"$f":"OFFSET('E02'!$E$1,MATCH(C254,'E02'!G:G,0)+3,0)","v":0}]
[null,"E3","3.1.1",null,"Avoir conscience et savoir toutes les méthodes de financement possibles, tel que requis. La ville oeuvre poursuivant activement au financement, tel que requis.",0,{"$f":"OFFSET('E03'!$E$1,MATCH(C255,'E03'!G:G,0)+3,0)","v":0}]
[null,"E3","3.2.1",null,"Les budgets de résilience dans le plan financier de la ville y compris les fonds de réserve",0,{"$f":"OFFSET('E03'!$E$1,MATCH(C256,'E03'!G:G,0)+3,0)","v":0}]
[null,"E3","3.2.2",null,"Le financement des travaux d’ingénierie à long terme et d’autres travaux traitant les scénarios les actifs essentiels définis par l’Essentiel 2 et l’Essentiel 8",0,{"$f":"OFFSET('E03'!$E$1,MATCH(C257,'E03'!G:G,0)+3,0)","v":0}]
[null,"E3","3.2.3",null,"Financement du fonctionnement pour remplir tous les coûts du fonctionnement des activités de résilience aux catastrophes.",0,{"$f":"OFFSET('E03'!$E$1,MATCH(C258,'E03'!G:G,0)+3,0)","v":0}]
[null,"E3","3.2.4",null,"Les fonds de réserve pour la récupération post-catastrophe (on s’y réfère par « les réserves des mauvais jours »",0,{"$f":"OFFSET('E03'!$E$1,MATCH(C259,'E03'!G:G,0)+3,0)","v":0}]
[null,"E3","3.3.1",null,"Couvertured’assurancedomestique",0,{"$f":"OFFSET('E03'!$E$1,MATCH(C260,'E03'!G:G,0)+3,0)","v":0}]
[null,"E3","3.3.2",null,"Couverture d’assurance nondomestique",0,{"$f":"OFFSET('E03'!$E$1,MATCH(C261,'E03'!G:G,0)+3,0)","v":0}]
[null,"E3","3.4.1",null,"Incitations aux entreprises, aux organisations pour améliorer la résilience aux catastrophesles plans de catastrophes, locaux, etc",0,{"$f":"OFFSET('E03'!$E$1,MATCH(C262,'E03'!G:G,0)+3,0)","v":0}]
[null,"E3","3.4.2",null,"Incitations aux organisations non lucratives, pour améliorer la résilience aux catastrophesles plans de catastrophes, locaux, etc",0,{"$f":"OFFSET('E03'!$E$1,MATCH(C263,'E03'!G:G,0)+3,0)","v":0}]
[null,"E3","3.4.3",null,"Incitations aux propriétaires de logements, pour améliorer la résilience aux catastrophesles plans de catastrophes, locaux, etc",0,{"$f":"OFFSET('E03'!$E$1,MATCH(C264,'E03'!G:G,0)+3,0)","v":0}]
[null,"E4","4.1.1",null,"Possibilité de déplacement de la population",0,{"$f":"OFFSET('E04'!$E$1,MATCH(C265,'E04'!G:G,0)+3,0)","v":0}]
[null,"E4","4.1.2",null,"Activité économique dans le risque",0,{"$f":"OFFSET('E04'!$E$1,MATCH(C266,'E04'!G:G,0)+3,0)","v":0}]
[null,"E4","4.1.2.1",null,"Activité économique dans le risque",0,{"$f":"OFFSET('E04'!$E$1,MATCH(C267,'E04'!G:G,0)+3,0)","v":0}]
[null,"E4","4.1.3",null,"Terres agricoles dans le risque",0,{"$f":"OFFSET('E04'!$E$1,MATCH(C268,'E04'!G:G,0)+3,0)","v":0}]
[null,"E4","4.2.1",null,"Les solutions du design urbain favorisant la résilience",0,{"$f":"OFFSET('E04'!$E$1,MATCH(C269,'E04'!G:G,0)+3,0)","v":0}]
[null,"E4","4.3.1",null,"Existence des codes de construction conçus pour traiter les risques identifiés dans l’Essentiel 2.",0,{"$f":"OFFSET('E04'!$E$1,MATCH(C270,'E04'!G:G,0)+3,0)","v":0}]
[null,"E4","4.3.2",null,"Mise au jour des codes de construction",0,{"$f":"OFFSET('E04'!$E$1,MATCH(C271,'E04'!G:G,0)+3,0)","v":0}]
[null,"E4","4.3.3",null,"Les normes de la conception architecturale durables",0,{"$f":"OFFSET('E04'!$E$1,MATCH(C272,'E04'!G:G,0)+3,0)","v":0}]
[null,"E4","4.4.1",null,"Application du zonage pour l’exploitation des terres",0,{"$f":"OFFSET('E04'!$E$1,MATCH(C273,'E04'!G:G,0)+3,0)","v":0}]
[null,"E4","4.4.2",null,"Application des codes de construction",0,{"$f":"OFFSET('E04'!$E$1,MATCH(C274,'E04'!G:G,0)+3,0)","v":0}]
[null,"E5","5.1.1",null,"Avoir conscience du rôle que les services des écosystèmes peuvent jouer dans la résilience des villes aux catastrophes",0,{"$f":"OFFSET('E05'!$E$1,MATCH(C275,'E05'!G:G,0)+3,0)","v":0}]
[null,"E5","5.1.2",null,"Santé de l’écosystème",0,{"$f":"OFFSET('E05'!$E$1,MATCH(C276,'E05'!G:G,0)+3,0)","v":0}]
[null,"E5","5.2.1",null,"Impact de l’exploitation des terres et des autres politiques sur les services des écosystèmes.",0,{"$f":"OFFSET('E05'!$E$1,MATCH(C277,'E05'!G:G,0)+3,0)","v":0}]
[null,"E5","5.2.2",null,"Les infrastructures vertes et bleues sont systématiquement intégrées dans les projets de la ville",0,{"$f":"OFFSET('E05'!$E$1,MATCH(C278,'E05'!G:G,0)+3,0)","v":0}]
[null,"E5","5.3.1",null,"Identification des actifs environnementaux critiques",0,{"$f":"OFFSET('E05'!$E$1,MATCH(C279,'E05'!G:G,0)+3,0)","v":0}]
[null,"E5","5.3.2",null,"Les accords transfrontières",0,{"$f":"OFFSET('E05'!$E$1,MATCH(C280,'E05'!G:G,0)+3,0)","v":0}]
[null,"E6","6.1.1",null,"Disponibilité des compétences et d’expériences en matière de résilienceidentification et atténuation du risque, planification, réaction et réaction postévénement",0,{"$f":"OFFSET('E06'!$E$1,MATCH(C281,'E06'!G:G,0)+3,0)","v":0}]
[null,"E6","6.1.2",null,"Les liens avec le secteur privé",0,{"$f":"OFFSET('E06'!$E$1,MATCH(C282,'E06'!G:G,0)+3,0)","v":0}]
[null,"E6","6.1.3",null,"Engagement du secteur assurance",0,{"$f":"OFFSET('E06'!$E$1,MATCH(C283,'E06'!G:G,0)+3,0)","v":0}]
[null,"E6","6.1.4",null,"Les liens avec la société civile",0,{"$f":"OFFSET('E06'!$E$1,MATCH(C284,'E06'!G:G,0)+3,0)","v":0}]
[null,"E6","6.2.1",null,"Exposition du public aux matériaux/ messages de l’éducation et de la sensibilisation",0,{"$f":"OFFSET('E06'!$E$1,MATCH(C285,'E06'!G:G,0)+3,0)","v":0}]
[null,"E6","6.2.1.1",null,"Exposition du public aux matériaux/ messages de l’éducation et de la sensibilisation",0,{"$f":"OFFSET('E06'!$E$1,MATCH(C286,'E06'!G:G,0)+3,0)","v":0}]
[null,"E6","6.3.1",null,"Le degré de partage des données sur la résilience de la ville avec les autres organisations impliquées dans la résilience de la ville",0,{"$f":"OFFSET('E06'!$E$1,MATCH(C287,'E06'!G:G,0)+3,0)","v":0}]
[null,"E6","6.3.2",null,"Le degré de partage des données sur la résilience de la ville avec les organisations communautaires et le public",0,{"$f":"OFFSET('E06'!$E$1,MATCH(C288,'E06'!G:G,0)+3,0)","v":0}]
[null,"E6","6.4.1",null,"Disponibilité, taux de participation à des formations focalisées sur le risque et la résilience (formation professionnelle)",0,{"$f":"OFFSET('E06'!$E$1,MATCH(C289,'E06'!G:G,0)+3,0)","v":0}]
[null,"E6","6.4.1.1",null,"Disponibilité, taux de participation à des formations focalisées sur le risque et la résilience (formation professionnelle)",0,{"$f":"OFFSET('E06'!$E$1,MATCH(C290,'E06'!G:G,0)+3,0)","v":0}]
[null,"E6","6.4.2",null,"Système/ processus de mise au jour de l’entraînement pertinent",0,{"$f":"OFFSET('E06'!$E$1,MATCH(C291,'E06'!G:G,0)+3,0)","v":0}]
[null,"E6","6.5.1",null,"Accessibilité de l’éducation et de la formation pour tous les groupes linguistiques de la ville",0,{"$f":"OFFSET('E06'!$E$1,MATCH(C292,'E06'!G:G,0)+3,0)","v":0}]
[null,"E6","6.6.1",null,"L’effort déployé pour apprendre ce que font les autres villes, états et pays (et compagnies) pour accroître la résilience.",0,{"$f":"OFFSET('E06'!$E$1,MATCH(C293,'E06'!G:G,0)+3,0)","v":0}]
[null,"E7","7.1.1",null,"Etendue des organisations communautaires ou “de base” dans la ville",0,{"$f":"OFFSET('E07'!$E$1,MATCH(C294,'E07'!G:G,0)+3,0)","v":0}]
[null,"E7","7.1.2",null,"Efficacité du réseau communautaire",0,{"$f":"OFFSET('E07'!$E$1,MATCH(C295,'E07'!G:G,0)+3,0)","v":0}]
[null,"E7","7.1.2.1",null,"Efficacité du réseau communautaire",0,{"$f":"OFFSET('E07'!$E$1,MATCH(C296,'E07'!G:G,0)+3,0)","v":0}]
[null,"E7","7.2.1",null,"La connectivité sociale et la cohésion du voisinage",0,{"$f":"OFFSET('E07'!$E$1,MATCH(C297,'E07'!G:G,0)+3,0)","v":0}]
[null,"E7","7.2.2",null,"Engagement des groupes vulnérables de la population",0,{"$f":"OFFSET('E07'!$E$1,MATCH(C298,'E07'!G:G,0)+3,0)","v":0}]
[null,"E7","7.3.1",null,"La mesure dans laquelle les patrons agissent comme intermédiaires avec les employés",0,{"$f":"OFFSET('E07'!$E$1,MATCH(C299,'E07'!G:G,0)+3,0)","v":0}]
[null,"E7","7.3.2",null,"Planification de la continuité de l’activité commerciale",0,{"$f":"OFFSET('E07'!$E$1,MATCH(C300,'E07'!G:G,0)+3,0)","v":0}]
[null,"E7","7.4.1",null,"fréquenced’engagement",0,{"$f":"OFFSET('E07'!$E$1,MATCH(C301,'E07'!G:G,0)+3,0)","v":0}]
[null,"E7","7.4.2",null,"Usage des « systèmes d’engagement » par e-mail et le mobile, pour habiliter les citoyens à recevoir et donner des mises au jour avant et après la catastrophe.",0,{"$f":"OFFSET('E07'!$E$1,MATCH(C302,'E07'!G:G,0)+3,0)","v":0}]
[null,"E7","7.4.3",null,"Validation de l’efficacité de l’éducation",0,{"$f":"OFFSET('E07'!$E$1,MATCH(C303,'E07'!G:G,0)+3,0)","v":0}]
[null,"E8","8.1.1",null,"Suffisance de l’infrastructure protective (Les écosystèmes peuvent fournir un tampon naturel-voir Essentiel 5)",0,{"$f":"OFFSET('E08'!$E$1,MATCH(C304,'E08'!G:G,0)+3,0)","v":0}]
[null,"E8","8.1.2",null,"Efficacité de la maintenance",{"$f":"IF(G305=\"\",0,IF(G305=0,0,6-G305))","v":0},{"$f":"OFFSET('E08'!$E$1,MATCH(C305,'E08'!G:G,0)+3,0)","v":0}]
[null,"E8","8.2.1",null,"Risque de perte des journées du service clientèle",0,{"$f":"OFFSET('E08'!$E$1,MATCH(C306,'E08'!G:G,0)+3,0)","v":0}]
[null,"E8","8.2.2",null,"Les jours de service d’un actif essentiel désigné (ex. service pour des hôpitaux ou autres actifs essentiels), menacés de risque de perte par la défaillance de l’eau ou de l’assainissement",0,{"$f":"OFFSET('E08'!$E$1,MATCH(C307,'E08'!G:G,0)+3,0)","v":0}]
[null,"E8","8.2.3",null,"Coûts de la restauration du service",0,{"$f":"OFFSET('E08'!$E$1,MATCH(C308,'E08'!G:G,0)+3,0)","v":0}]
[null,"E8","8.3.1",null,"Les journées du service clientèle en risque de perte",0,{"$f":"OFFSET('E08'!$E$1,MATCH(C309,'E08'!G:G,0)+3,0)","v":0}]
[null,"E8","8.3.2",null,"Les journées du service de l’actif essentiel désigné, en risque de perte par la défaillance d’énergie",0,{"$f":"OFFSET('E08'!$E$1,MATCH(C310,'E08'!G:G,0)+3,0)","v":0}]
[null,"E8","8.3.3",null,"Coûts de restauration",0,{"$f":"OFFSET('E08'!$E$1,MATCH(C311,'E08'!G:G,0)+3,0)","v":0}]
[null,"E8","8.4.1",null,"Sécurité et intégrité du système du gaz (si applicable)",0,{"$f":"OFFSET('E08'!$E$1,MATCH(C312,'E08'!G:G,0)+3,0)","v":0},"NA?",{"$f":"OFFSET('E08'!$E$1,MATCH(C312,'E08'!G:G,0)-1,0)","v":0}]
[null,"E8","8.4.2",null,"Journées de service clientèle en risque de perte",0,{"$f":"OFFSET('E08'!$E$1,MATCH(C313,'E08'!G:G,0)+3,0)","v":0},"NA?",{"$f":"OFFSET('E08'!$E$1,MATCH(C313,'E08'!G:G,0)-1,0)","v":0}]
[null,"E8","8.4.3",null,"Les journées de service de l’actif essentiel désigné en risque de perte, par la chute d’alimentation en gaz",0,{"$f":"OFFSET('E08'!$E$1,MATCH(C314,'E08'!G:G,0)+3,0)","v":0},"NA?",{"$f":"OFFSET('E08'!$E$1,MATCH(C314,'E08'!G:G,0)-1,0)","v":0}]
[null,"E8","8.4.4",null,"Coûts de restauration du service",0,{"$f":"OFFSET('E08'!$E$1,MATCH(C315,'E08'!G:G,0)+3,0)","v":0},"NA?",{"$f":"OFFSET('E08'!$E$1,MATCH(C315,'E08'!G:G,0)-1,0)","v":0}]
[null,"E8","8.5.1",null,"Le service du système routier en risque",0,{"$f":"OFFSET('E08'!$E$1,MATCH(C316,'E08'!G:G,0)+3,0)","v":0}]
[null,"E8","8.5.2",null,"Subsistance des accès essentiels et des routes d’évacuation",0,{"$f":"OFFSET('E08'!$E$1,MATCH(C317,'E08'!G:G,0)+3,0)","v":0}]
[null,"E8","8.5.3",null,"Service ferroviaire/métro (si applicable) du système ferroviaire en risque de perte",0,{"$f":"OFFSET('E08'!$E$1,MATCH(C318,'E08'!G:G,0)+3,0)","v":0},"NA?",{"$f":"OFFSET('E08'!$E$1,MATCH(C318,'E08'!G:G,0)-1,0)","v":0}]
[null,"E8","8.5.4",null,"Air (si applicable)",0,{"$f":"OFFSET('E08'!$E$1,MATCH(C319,'E08'!G:G,0)+3,0)","v":0},"NA?",{"$f":"OFFSET('E08'!$E$1,MATCH(C319,'E08'!G:G,0)-1,0)","v":0}]
[null,"E8","8.5.5",null,"Rivière/mer (si applicable)",0,{"$f":"OFFSET('E08'!$E$1,MATCH(C320,'E08'!G:G,0)+3,0)","v":0},"NA?",{"$f":"OFFSET('E08'!$E$1,MATCH(C320,'E08'!G:G,0)-1,0)","v":0}]
[null,"E8","8.5.6",null,"Autre transport public (si applicable)",0,{"$f":"OFFSET('E08'!$E$1,MATCH(C321,'E08'!G:G,0)+3,0)","v":0},"NA?",{"$f":"OFFSET('E08'!$E$1,MATCH(C321,'E08'!G:G,0)-1,0)","v":0}]
[null,"E8","8.5.7",null,"Coûts de restauration du service (tous les transports routiers)",0,{"$f":"OFFSET('E08'!$E$1,MATCH(C322,'E08'!G:G,0)+3,0)","v":0}]
[null,"E8","8.6.1",null,"Les journées de service en risque de perte",0,{"$f":"OFFSET('E08'!$E$1,MATCH(C323,'E08'!G:G,0)+3,0)","v":0}]
[null,"E8","8.6.2",null,"Les journées de service désignées de l’actif essentiel, sous risque de perte à cause de la défaillance des communications.",0,{"$f":"OFFSET('E08'!$E$1,MATCH(C324,'E08'!G:G,0)+3,0)","v":0}]
[null,"E8","8.6.3",null,"Coûts de restauration",0,{"$f":"OFFSET('E08'!$E$1,MATCH(C325,'E08'!G:G,0)+3,0)","v":0}]
[null,"E8","8.7.1",null,"La sécurité structurelle et la résilience aux catastrophes des installations sanitaires et d’urgence (Personnel/1ers intervenants- voir Essentiel 9)",0,{"$f":"OFFSET('E08'!$E$1,MATCH(C326,'E08'!G:G,0)+3,0)","v":0}]
[null,"E8","8.7.1.1",null,"La sécurité structurelle et la résilience aux catastrophes des installations sanitaires et d’urgence (Personnel/1ers intervenants- voir Essentiel 9)",0,{"$f":"OFFSET('E08'!$E$1,MATCH(C327,'E08'!G:G,0)+3,0)","v":0}]
[null,"E8","8.7.2",null,"Dossiers et données en matière de santé",0,{"$f":"OFFSET('E08'!$E$1,MATCH(C328,'E08'!G:G,0)+3,0)","v":0}]
[null,"E8","8.7.3",null,"Disponibilité de soins d'urgence, comperenant les installations et les fournitures médicales urgentes pour les besoins aigus",0,{"$f":"OFFSET('E08'!$E$1,MATCH(C329,'E08'!G:G,0)+3,0)","v":0}]
[null,"E8","8.8.1",null,"Sécurité structurelle des installations d’éducation",0,{"$f":"OFFSET('E08'!$E$1,MATCH(C330,'E08'!G:G,0)+3,0)","v":0}]
[null,"E8","8.8.2",null,"Perte du temps d’enseignement",0,{"$f":"OFFSET('E08'!$E$1,MATCH(C331,'E08'!G:G,0)+3,0)","v":0}]
[null,"E8","8.8.3",null,"Données sur l’éducation",0,{"$f":"OFFSET('E08'!$E$1,MATCH(C332,'E08'!G:G,0)+3,0)","v":0}]
[null,"E8","8.9.1",null,"Résilience du système carcéral aux catastrophes",0,{"$f":"OFFSET('E08'!$E$1,MATCH(C333,'E08'!G:G,0)+3,0)","v":0}]
[null,"E8","8.10.1",null,"La garantie de continuité de toutes les fonctions administratives essentielles",0,{"$f":"OFFSET('E08'!$E$1,MATCH(C334,'E08'!G:G,0)+3,0)","v":0}]
[null,"E8","8.11.1",null,"Assurance de continuité des systèmes informatiques et des données cruciales pour la continuité du gouvernement",0,{"$f":"OFFSET('E08'!$E$1,MATCH(C335,'E08'!G:G,0)+3,0)","v":0}]
[null,"E8","8.11.2",null,"Assurance de continuité des systèmes informatiques et des données importantes pour n’importe quelle infrastructure figurant ci-dessus",0,{"$f":"OFFSET('E08'!$E$1,MATCH(C336,'E08'!G:G,0)+3,0)","v":0}]
[null,"E9","9.1.1",null,"Existence et efficacité des dispositifs d’alerte précoce",0,{"$f":"OFFSET('E09'!$E$1,MATCH(C337,'E09'!G:G,0)+3,0)","v":0}]
[null,"E9","9.1.1.1",null,"La portée de l’alerte",0,{"$f":"OFFSET('E09'!$E$1,MATCH(C338,'E09'!G:G,0)+3,0)","v":0}]
[null,"E9","9.2.1",null,"Existence de plans de réaction d’urgence, intégrant les intervenants professionnels et les organisations communautaires (Pour la réaction post-événementvoir Essentiel 10)",0,{"$f":"OFFSET('E09'!$E$1,MATCH(C339,'E09'!G:G,0)+3,0)","v":0}]
[null,"E9","9.3.1",null,"Capacité d’incursion de la Police, aussi pour appuyer les tâches des 1ers intervenants",0,{"$f":"OFFSET('E09'!$E$1,MATCH(C340,'E09'!G:G,0)+3,0)","v":0}]
[null,"E9","9.3.2",null,"Définition d’autres 1ers intervenants, et d’autres besoins de personnel et la disponibilité",0,{"$f":"OFFSET('E09'!$E$1,MATCH(C341,'E09'!G:G,0)+3,0)","v":0}]
[null,"E9","9.4.1",null,"Définition des besoins en matière d’équipements et de fourniture, et disponibilité d’équipements",0,{"$f":"OFFSET('E09'!$E$1,MATCH(C342,'E09'!G:G,0)+3,0)","v":0}]
[null,"E9","9.4.1.1",null,"Définition des besoins en matière d’équipements et de fourniture, et disponibilité d’équipements",0,{"$f":"OFFSET('E09'!$E$1,MATCH(C343,'E09'!G:G,0)+3,0)","v":0}]
[null,"E9","9.5.1",null,"Habileté éventuel de continuer à nourrir la population",0,{"$f":"OFFSET('E09'!$E$1,MATCH(C344,'E09'!G:G,0)+3,0)","v":0}]
[null,"E9","9.5.2",null,"Aptitude éventuelle à remplir les besoins en matière d’abris/lieux sûrs",0,{"$f":"OFFSET('E09'!$E$1,MATCH(C345,'E09'!G:G,0)+3,0)","v":0}]
[null,"E9","9.5.2.1",null,"Aptitude éventuelle à remplir les besoins en matière d’abris/lieux sûrs",0,{"$f":"OFFSET('E09'!$E$1,MATCH(C346,'E09'!G:G,0)+3,0)","v":0}]
[null,"E9","9.5.3",null,"Aptitude à subvenir aux besoins éventuels en matière de produits de base",0,{"$f":"OFFSET('E09'!$E$1,MATCH(C347,'E09'!G:G,0)+3,0)","v":0}]
[null,"E9","9.5.4",null,"Disponibilité de carburant susceptible",0,{"$f":"OFFSET('E09'!$E$1,MATCH(C348,'E09'!G:G,0)+3,0)","v":0}]
[null,"E9","9.6.1",null,"Interopérabilité de systèmes essentiels et de procédures avec les villes/ états voisins et autres niveaux de gouvernement",0,{"$f":"OFFSET('E09'!$E$1,MATCH(C349,'E09'!G:G,0)+3,0)","v":0}]
[null,"E9","9.6.2",null,"Centre des opérations d’urgence",0,{"$f":"OFFSET('E09'!$E$1,MATCH(C350,'E09'!G:G,0)+3,0)","v":0}]
[null,"E9","9.6.3",null,"Coordination du redressement post événement",0,{"$f":"OFFSET('E09'!$E$1,MATCH(C351,'E09'!G:G,0)+3,0)","v":0}]
[null,"E9","9.7.1",null,"Exercices pratiques et répétitionsimpliquant à la fois le public et les professionnels",0,{"$f":"OFFSET('E09'!$E$1,MATCH(C352,'E09'!G:G,0)+3,0)","v":0}]
[null,"E9","9.7.2",null,"Efficacité des exercices de manoeuvre et de la formation",0,{"$f":"OFFSET('E09'!$E$1,MATCH(C353,'E09'!G:G,0)+3,0)","v":0}]
[null,"E10","10.1.1",null,"La planification du redressement post événement et du relèvement économique",0,{"$f":"OFFSET('E10'!$E$1,MATCH(C354,'E10'!G:G,0)+3,0)","v":0}]
[null,"E10","10.1.2",null,"La mesure dans laquelle une consultation des intervenants a eu lieu sur les plans de redressement et de relèvement post événement.",0,{"$f":"OFFSET('E10'!$E$1,MATCH(C355,'E10'!G:G,0)+3,0)","v":0}]
[null,"E10","10.1.3",null,"Les dispositions financières parallèles pour l’aide reçue et le déboursement des fonds",0,{"$f":"OFFSET('E10'!$E$1,MATCH(C356,'E10'!G:G,0)+3,0)","v":0}]
[null,"E10","10.2.1",null,"Cycle d’apprentissage",0,{"$f":"OFFSET('E10'!$E$1,MATCH(C357,'E10'!G:G,0)+3,0)","v":0}]

{"sheet":"E01","index":3,"n_rows":664,"n_cols":7,"rows_kept":664,"cut":false,"hidden":false,"merged":[[103,2,108,3],[115,2,115,3],[116,2,116,3],[117,2,117,3],[118,2,123,3],[114,1,114,3],[87,2,87,3],[88,2,93,3],[100,2,100,3],[101,2,101,3],[102,2,102,3],[73,2,73,3],[74,2,74,3],[75,2,80,3],[85,2,85,3],[86,2,86,3],[59,2,59,3],[60,2,60,3],[61,2,61,3],[62,2,67,3],[72,2,72,3],[34,2,39,3],[46,2,46,3],[47,2,47,3],[48,2,48,3],[49,2,54,3],[33,2,33,3],[18,2,18,3],[6,2,6,3],[5,2,5,3],[7,2,7,3],[8,2,13,3],[19,2,19,3],[20,2,20,3],[21,2,26,3],[31,2,31,3],[32,2,32,3]]}
[]
[null,null,null,null,null,null,""]
[null,"1.1 - Elaboration du Plan"]
[null,null,null,null,null,null,""]
[null,"1.1.1 - Prise en considération du risque lors de l’élaboration du Plan"]
[null,"Question","Comments",null,null,null,""]
[null,null,null,null,null,null,""]
[null,"Response","Provide means of verification (explanation and evidence)",null,null,null,""]
[null,null,null,null,null,null,""]
[null,null,null,null,null,null,""]
[null,null,null,null,null,null,""]
[null,null,null,null,null,null,""]
[null,null,null,null,null,null,""]
[null,null,null,null,null,null,""]
[null,"Actions to achieve maximum resilience","Responsible institution","Timescale",null,null,""]
[null,null,null,null,null,null,""]
[null,null,null,null,null,null,""]
[null,"1.1.2 - La Consultation dans l’élaboration du plan"]
[null,"Question","Comments",null,null,null,""]
[null,null,null,null,null,null,""]
[null,"Response","Provide means of verification (explanation and evidence)",null,null,null,""]
[null,null,null,null,null,null,""]
[null,null,null,null,null,null,""]
[null,null,null,null,null,null,""]
[null,null,null,null,null,null,""]
[null,null,null,null,null,null,""]
[null,null,null,null,null,null,""]
[null,"Actions to achieve maximum resilience","Responsible institution","Timescale",null,null,""]
[null,null,null,null,null,null,""]
[null,null,null,null,null,null,""]
[null,"1.1.3 - Examen des plans stratégiques"]
[null,"Question","Comments",null,null,null,""]
[null,null,null,null,null,null,""]
[null,"Response","Provide means of verification (explanation and evidence)",null,null,null,""]
[null,null,null,null,null,null,""]
[null,null,null,null,null,null,""]
[null,null,null,null,null,null,""]
[null,null,null,null,null,null,""]
[null,null,null,null,null,null,""]
[null,null,null,null,null,null,""]
[null,"Actions to achieve maximum resilience","Responsible institution","Timescale",null,null,""]
[null,null,null,null,null,null,""]
[null,null,null,null,null,null,""]
[null,"1.2 - Organisation, coordination et participation"]
[null,null,null,null,null,null,""]
[null,"1.2.1 - Planification et préparation pré- événement"]
[null,"Question","Comments",null,null,null,""]
[null,null,null,null,null,null,""]
[null,"Response","Provide means of verification (explanation and evidence)",null,null,null,""]
[null,null,null,null,null,null,""]
[null,null,null,null,null,null,""]
[null,null,null,null,null,null,""]
[null,null,null,null,null,null,""]
[null,null,null,null,null,null,""]
[null,null,null,null,null,null,""]
[null,"Actions to achieve maximum resilience","Responsible institution","Timescale",null,null,""]
[null,null,null,null,null,null,""]
[null,null,null,null,null,null,""]
[null,"1.2.2 - Coordination de la réaction à l’événement"]
[null,"Question","Comments",null,null,null,""]
[null,null,null,null,null,null,""]
[null,"Response","Provide means of verification (explanation and evidence)",null,null,null,""]
[null,null,null,null,null,null,""]
[null,null,null,null,null,null,""]
[null,null,null,null,null,null,""]
[null,null,null,null,null,null,""]
[null,null,null,null,null,null,""]
[null,null,null,null,null,null,""]
[null,"Actions to achieve maximum resilience","Responsible institution","Timescale",null,null,""]
[null,null,null,null,null,null,""]
[null,null,null,null,null,null,""]
[null,"1.2.3 - Les ressources de la ville dans la gestion de l’organisation, la coordination et la participation"]
[null,"Question","Comments",null,null,null,""]
[null,null,null,null,null,null,""]
[null,"Response","Provide means of verification (explanation and evidence)",null,null,null,""]
[null,null,null,null,null,null,""]
[null,null,null,null,null,null,""]
[null,null,null,null,null,null,""]
[null,null,null,null,null,null,""]
[null,null,null,null,null,null,""]
[null,null,null,null,null,null,""]
[null,"Actions to achieve maximum resilience","Responsible institution","Timescale",null,null,""]
[null,null,null,null,null,null,""]
[null,null,null,null,null,null,""]
[null,"1.2.4 - Identification des contributions physiques"]
[null,"Question","Comments",null,null,null,""]
[null,null,null,null,null,null,""]
[null,"Response","Provide means of verification (explanation and evidence)",null,null,null,""]
[null,null,null,null,null,null,""]
[null,null,null,null,null,null,""]
[null,null,null,null,null,null,""]
[null,null,null,null,null,null,""]
[null,null,null,null,null,null,""]
[null,null,null,null,null,null,""]
[null,"Actions to achieve maximum resilience","Responsible institution","Timescale",null,null,""]
[null,null,null,null,null,null,""]
[null,null,null,null,null,null,""]
[null,"1.3 - Intégration"]
[null,null,null,null,null,null,""]
[null,"1.3.1 - Intégration de la résilience aux catastrophes dans d’autres initiatives"]
[null,"Question","Comments",null,null,null,""]
[null,null,null,null,null,null,""]
[null,"Response","Provide means of verification (explanation and evidence)",null,null,null,""]
[null,null,null,null,null,null,""]
[null,null,null,null,null,null,""]
[null,null,null,null,null,null,""]
[null,null,null,null,null,null,""]
[null,null,null,null,null,null,""]
[]
[null,"Actions to achieve maximum resilience","Responsible institution","Timescale",null,null,""]
[null,null,null,null,null,null,""]
[null,null,null,null,null,null,""]
[null,"1.4 - Saisie des données, publication et partage"]
[null,null,null,null,null,null,""]
[null,"1.4.1 - Dans quelle mesure les données sur la résilience de la ville sont-elles partagées avec les autres organisations impliquées dans la résilience de la ville"]
[null,"Question","Comments",null,null,null,""]
[null,null,null,null,null,null,""]
[null,"Response","Provide means of verification (explanation and evidence)",null,null,null,""]
[null,null,null,null,null,null,""]
[null,null,null,null,null,null,""]
[null,null,null,null,null,null,""]
[null,null,null,null,null,null,""]
[null,null,null,null,null,null,""]
[null,null,null,null,null,null,""]
[null,"Actions to achieve maximum resilience","Responsible institution","Timescale",null,null,""]
[null,null,null,null,null,null,""]
[null,null,null,null,null,null,""]
[null,null,null,null,null,null,""]
[null,null,null,null,null,null,""]
[null,null,null,null,null,null,""]
[null,null,null,null,null,null,""]
[null,null,null,null,null,null,""]
[null,null,null,null,null,null,""]
[null,null,null,null,null,null,""]
[null,null,null,null,null,null,""]
[null,null,null,null,null,null,""]
[null,null,null,null,null,null,""]
[null,null,null,null,null,null,""]
[null,null,null,null,null,null,""]
[null,null,null,null,null,null,""]
[null,null,null,null,null,null,""]
[null,null,null,null,null,null,""]
[null,null,null,null,null,null,""]
[null,null,null,null,null,null,""]
[null,null,null,null,null,null,""]
[null,null,null,null,null,null,""]
[null,null,null,null,null,null,""]
[null,null,null,null,null,null,""]
[null,null,null,null,null,null,""]
[null,null,null,null,null,null,""]
[null,null,null,null,null,null,""]
[null,null,null,null,null,null,""]
[null,null,null,null,null,null,""]
[null,null,null,null,null,null,""]
[null,null,null,null,null,null,""]
[null,null,null,null,null,null,""]
[null,null,null,null,null,null,""]
[null,null,null,null,null,null,""]
[null,null,null,null,null,null,""]
[null,null,null,null,null,null,""]
[null,null,null,null,null,null,""]
[null,null,null,null,null,null,""]
[null,null,null,null,null,null,""]
[null,null,null,null,null,null,""]
[null,null,null,null,null,null,""]
[null,null,null,null,null,null,""]
[null,null,null,null,null,null,""]
[null,null,null,null,null,null,""]
[null,null,null,null,null,null,""]
[null,null,null,null,null,null,""]
[null,null,null,null,null,null,""]
[null,null,null,null,null,null,""]
[null,null,null,null,null,null,""]
[null,null,null,null,null,null,""]
[null,null,null,null,null,null,""]
[null,null,null,null,null,null,""]
[null,null,null,null,null,null,""]
[null,null,null,null,null,null,""]
[null,null,null,null,null,null,""]
[null,null,null,null,null,null,""]
[null,null,null,null,null,null,""]
[null,null,null,null,null,null,""]
[null,null,null,null,null,null,""]
[null,null,null,null,null,null,""]
[null,null,null,null,null,null,""]
[null,null,null,null,null,null,""]
[null,null,null,null,null,null,""]
[null,null,null,null,null,null,""]
[null,null,null,null,null,null,""]
[null,null,null,null,null,null,""]
[null,null,null,null,null,null,""]
[null,null,null,null,null,null,""]
[null,null,null,null,null,null,""]
[null,null,null,null,null,null,""]
[null,null,null,null,null,null,""]
[null,null,null,null,null,null,""]
[null,null,null,null,null,null,""]
[null,null,null,null,null,null,""]
[null,null,null,null,null,null,""]
[null,null,null,null,null,null,""]
[null,null,null,null,null,null,""]
[null,null,null,null,null,null,""]
[null,null,null,null,null,null,""]
[null,null,null,null,null,null,""]
[null,null,null,null,null,null,""]
[null,null,null,null,null,null,""]
[null,null,null,null,null,null,""]
[null,null,null,null,null,null,""]
[null,null,null,null,null,null,""]
[null,null,null,null,null,null,""]
[null,null,null,null,null,null,""]
[null,null,null,null,null,null,""]
[null,null,null,null,null,null,""]
[null,null,null,null,null,null,""]
[null,null,null,null,null,null,""]
[null,null,null,null,null,null,""]
[null,null,null,null,null,null,""]
[null,null,null,null,null,null,""]
[null,null,null,null,null,null,""]
[null,null,null,null,null,null,""]
[null,null,null,null,null,null,""]
[null,null,null,null,null,null,""]
[null,null,null,null,null,null,""]
[null,null,null,null,null,null,""]
[null,null,null,null,null,null,""]
[null,null,null,null,null,null,""]
[null,null,null,null,null,null,""]
[null,null,null,null,null,null,""]
[null,null,null,null,null,null,""]
[null,null,null,null,null,null,""]
[null,null,null,null,null,null,""]
[null,null,null,null,null,null,""]
[null,null,null,null,null,null,""]
[null,null,null,null,null,null,""]
[null,null,null,null,null,null,""]
[null,null,null,null,null,null,""]
[null,null,null,null,null,null,""]
[null,null,null,null,null,null,""]
[null,null,null,null,null,null,""]
[null,null,null,null,null,null,""]
[null,null,null,null,null,null,""]
[null,null,null,null,null,null,""]
[null,null,null,null,null,null,""]
[null,null,null,null,null,null,""]
[null,null,null,null,null,null,""]
[null,null,null,null,null,null,""]
[null,null,null,null,null,null,""]
[null,null,null,null,null,null,""]
[null,null,null,null,null,null,""]
[null,null,null,null,null,null,""]
[null,null,null,null,null,null,""]
[null,null,null,null,null,null,""]
[null,null,null,null,null,null,""]
[null,null,null,null,null,null,""]
[null,null,null,null,null,null,""]
[null,null,null,null,null,null,""]
[null,null,null,null,null,null,""]
[null,null,null,null,null,null,""]
[null,null,null,null,null,null,""]
[null,null,null,null,null,null,""]
[null,null,null,null,null,null,""]
[null,null,null,null,null,null,""]
[null,null,null,null,null,null,""]
[null,null,null,null,null,null,""]
[null,null,null,null,null,null,""]
[null,null,null,null,null,null,""]
[null,null,null,null,null,null,""]
[null,null,null,null,null,null,""]
[null,null,null,null,null,null,""]
[null,null,null,null,null,null,""]
[null,null,null,null,null,null,""]
[null,null,null,null,null,null,""]
[null,null,null,null,null,null,""]
[null,null,null,null,null,null,""]
[null,null,null,null,null,null,""]
[null,null,null,null,null,null,""]
[null,null,null,null,null,null,""]
[null,null,null,null,null,null,""]
[null,null,null,null,null,null,""]
[null,null,null,null,null,null,""]
[null,null,null,null,null,null,""]
[null,null,null,null,null,null,""]
[null,null,null,null,null,null,""]
[null,null,null,null,null,null,""]
[null,null,null,null,null,null,""]
[null,null,null,null,null,null,""]
[null,null,null,null,null,null,""]
[null,null,null,null,null,null,""]
[null,null,null,null,null,null,""]
[null,null,null,null,null,null,""]
[null,null,null,null,null,null,""]
[null,null,null,null,null,null,""]
[null,null,null,null,null,null,""]
[null,null,null,null,null,null,""]
[null,null,null,null,null,null,""]
[null,null,null,null,null,null,""]
[null,null,null,null,null,null,""]
[null,null,null,null,null,null,""]
[null,null,null,null,null,null,""]
[null,null,null,null,null,null,""]
[null,null,null,null,null,null,""]
[null,null,null,null,null,null,""]
[null,null,null,null,null,null,""]
[null,null,null,null,null,null,""]
[null,null,null,null,null,null,""]
[null,null,null,null,null,null,""]
[null,null,null,null,null,null,""]
[null,null,null,null,null,null,""]
[null,null,null,null,null,null,""]
[null,null,null,null,null,null,""]
[null,null,null,null,null,null,""]
[null,null,null,null,null,null,""]
[null,null,null,null,null,null,""]
[null,null,null,null,null,null,""]
[null,null,null,null,null,null,""]
[null,null,null,null,null,null,""]
[null,null,null,null,null,null,""]
[null,null,null,null,null,null,""]
[null,null,null,null,null,null,""]
[null,null,null,null,null,null,""]
[null,null,null,null,null,null,""]
[null,null,null,null,null,null,""]
[null,null,null,null,null,null,""]
[null,null,null,null,null,null,""]
[null,null,null,null,null,null,""]
[null,null,null,null,null,null,""]
[null,null,null,null,null,null,""]
[null,null,null,null,null,null,""]
[null,null,null,null,null,null,""]
[null,null,null,null,null,null,""]
[null,null,null,null,null,null,""]
[null,null,null,null,null,null,""]
[null,null,null,null,null,null,""]
[null,null,null,null,null,null,""]
[null,null,null,null,null,null,""]
[null,null,null,null,null,null,""]
[null,null,null,null,null,null,""]
[null,null,null,null,null,null,""]
[null,null,null,null,null,null,""]
[null,null,null,null,null,null,""]
[null,null,null,null,null,null,""]
[null,null,null,null,null,null,""]
[null,null,null,null,null,null,""]
[null,null,null,null,null,null,""]
[null,null,null,null,null,null,""]
[null,null,null,null,null,null,""]
[null,null,null,null,null,null,""]
[null,null,null,null,null,null,""]
[null,null,null,null,null,null,""]
[null,null,null,null,null,null,""]
[null,null,null,null,null,null,""]
[null,null,null,null,null,null,""]
[null,null,null,null,null,null,""]
[null,null,null,null,null,null,""]
[null,null,null,null,null,null,""]
[null,null,null,null,null,null,""]
[null,null,null,null,null,null,""]
[null,null,null,null,null,null,""]
[null,null,null,null,null,null,""]
[null,null,null,null,null,null,""]
[null,null,null,null,null,null,""]
[null,null,null,null,null,null,""]
[null,null,null,null,null,null,""]
[null,null,null,null,null,null,""]
[null,null,null,null,null,null,""]
[null,null,null,null,null,null,""]
[null,null,null,null,null,null,""]
[null,null,null,null,null,null,""]
[null,null,null,null,null,null,""]
[null,null,null,null,null,null,""]
[null,null,null,null,null,null,""]
[null,null,null,null,null,null,""]
[null,null,null,null,null,null,""]
[null,null,null,null,null,null,""]
[null,null,null,null,null,null,""]
[null,null,null,null,null,null,""]
[null,null,null,null,null,null,""]
[null,null,null,null,null,null,""]
[null,null,null,null,null,null,""]
[null,null,null,null,null,null,""]
[null,null,null,null,null,null,""]
[null,null,null,null,null,null,""]
[null,null,null,null,null,null,""]
[null,null,null,null,null,null,""]
[null,null,null,null,null,null,""]
[null,null,null,null,null,null,""]
[null,null,null,null,null,null,""]
[null,null,null,null,null,null,""]
[null,null,null,null,null,null,""]
[null,null,null,null,null,null,""]
[null,null,null,null,null,null,""]
[null,null,null,null,null,null,""]
[null,null,null,null,null,null,""]
[null,null,null,null,null,null,""]
[null,null,null,null,null,null,""]
[null,null,null,null,null,null,""]
[null,null,null,null,null,null,""]
[null,null,null,null,null,null,""]
[null,null,null,null,null,null,""]
[null,null,null,null,null,null,""]
[null,null,null,null,null,null,""]
[null,null,null,null,null,null,""]
[null,null,null,null,null,null,""]
[null,null,null,null,null,null,""]
[null,null,null,null,null,null,""]
[null,null,null,null,null,null,""]
[null,null,null,null,null,null,""]
[null,null,null,null,null,null,""]
[null,null,null,null,null,null,""]
[null,null,null,null,null,null,""]
[null,null,null,null,null,null,""]
[null,null,null,null,null,null,""]
[null,null,null,null,null,null,""]
[null,null,null,null,null,null,""]
[null,null,null,null,null,null,""]
[null,null,null,null,null,null,""]
[null,null,null,null,null,null,""]
[null,null,null,null,null,null,""]
[null,null,null,null,null,null,""]
[null,null,null,null,null,null,""]
[null,null,null,null,null,null,""]
[null,null,null,null,null,null,""]
[null,null,null,null,null,null,""]
[null,null,null,null,null,null,""]
[null,null,null,null,null,null,""]
[null,null,null,null,null,null,""]
[null,null,null,null,null,null,""]
[null,null,null,null,null,null,""]
[null,null,null,null,null,null,""]
[null,null,null,null,null,null,""]
[null,null,null,null,null,null,""]
[null,null,null,null,null,null,""]
[null,null,null,null,null,null,""]
[null,null,null,null,null,null,""]
[null,null,null,null,null,null,""]
[null,null,null,null,null,null,""]
[null,null,null,null,null,null,""]
[null,null,null,null,null,null,""]
[null,null,null,null,null,null,""]
[null,null,null,null,null,null,""]
[null,null,null,null,null,null,""]
[null,null,null,null,null,null,""]
[null,null,null,null,null,null,""]
[null,null,null,null,null,null,""]
[null,null,null,null,null,null,""]
[null,null,null,null,null,null,""]
[null,null,null,null,null,null,""]
[null,null,null,null,null,null,""]
[null,null,null,null,null,null,""]
[null,null,null,null,null,null,""]
[null,null,null,null,null,null,""]
[null,null,null,null,null,null,""]
[null,null,null,null,null,null,""]
[null,null,null,null,null,null,""]
[null,null,null,null,null,null,""]
[null,null,null,null,null,null,""]
[null,null,null,null,null,null,""]
[null,null,null,null,null,null,""]
[null,null,null,null,null,null,""]
[null,null,null,null,null,null,""]
[null,null,null,null,null,null,""]
[null,null,null,null,null,null,""]
[null,null,null,null,null,null,""]
[null,null,null,null,null,null,""]
[null,null,null,null,null,null,""]
[null,null,null,null,null,null,""]
[null,null,null,null,null,null,""]
[null,null,null,null,null,null,""]
[null,null,null,null,null,null,""]
[null,null,null,null,null,null,""]
[null,null,null,null,null,null,""]
[null,null,null,null,null,null,""]
[null,null,null,null,null,null,""]
[null,null,null,null,null,null,""]
[null,null,null,null,null,null,""]
[null,null,null,null,null,null,""]
[null,null,null,null,null,null,""]
[null,null,null,null,null,null,""]
[null,null,null,null,null,null,""]
[null,null,null,null,null,null,""]
[null,null,null,null,null,null,""]
[null,null,null,null,null,null,""]
[null,null,null,null,null,null,""]
[null,null,null,null,null,null,""]
[null,null,null,null,null,null,""]
[null,null,null,null,null,null,""]
[null,null,null,null,null,null,""]
[null,null,null,null,null,null,""]
[null,null,null,null,null,null,""]
[null,null,null,null,null,null,""]
[null,null,null,null,null,null,""]
[null,null,null,null,null,null,""]
[null,null,null,null,null,null,""]
[null,null,null,null,null,null,""]
[null,null,null,null,null,null,""]
[null,null,null,null,null,null,""]
[null,null,null,null,null,null,""]
[null,null,null,null,null,null,""]
[null,null,null,null,null,null,""]
[null,null,null,null,null,null,""]
[null,null,null,null,null,null,""]
[null,null,null,null,null,null,""]
[null,null,null,null,null,null,""]
[null,null,null,null,null,null,""]
[null,null,null,null,null,null,""]
[null,null,null,null,null,null,""]
[null,null,null,null,null,null,""]
[null,null,null,null,null,null,""]
[null,null,null,null,null,null,""]
[null,null,null,null,null,null,""]
[null,null,null,null,null,null,""]
[null,null,null,null,null,null,""]
[null,null,null,null,null,null,""]
[null,null,null,null,null,null,""]
[null,null,null,null,null,null,""]
[null,null,null,null,null,null,""]
[null,null,null,null,null,null,""]
[null,null,null,null,null,null,""]
[null,null,null,null,null,null,""]
[null,null,null,null,null,null,""]
[null,null,null,null,null,null,""]
[null,null,null,null,null,null,""]
[null,null,null,null,null,null,""]
[null,null,null,null,null,null,""]
[null,null,null,null,null,null,""]
[null,null,null,null,null,null,""]
[null,null,null,null,null,null,""]
[null,null,null,null,null,null,""]
[null,null,null,null,null,null,""]
[null,null,null,null,null,null,""]
[null,null,null,null,null,null,""]
[null,null,null,null,null,null,""]
[null,null,null,null,null,null,""]
[null,null,null,null,null,null,""]
[null,null,null,null,null,null,""]
[null,null,null,null,null,null,""]
[null,null,null,null,null,null,""]
[null,null,null,null,null,null,""]
[null,null,null,null,null,null,""]
[null,null,null,null,null,null,""]
[null,null,null,null,null,null,""]
[null,null,null,null,null,null,""]
[null,null,null,null,null,null,""]
[null,null,null,null,null,null,""]
[null,null,null,null,null,null,""]
[null,null,null,null,null,null,""]
[null,null,null,null,null,null,""]
[null,null,null,null,null,null,""]
[null,null,null,null,null,null,""]
[null,null,null,null,null,null,""]
[null,null,null,null,null,null,""]
[null,null,null,null,null,null,""]
[null,null,null,null,null,null,""]
[null,null,null,null,null,null,""]
[null,null,null,null,null,null,""]
[null,null,null,null,null,null,""]
[null,null,null,null,null,null,""]
[null,null,null,null,null,null,""]
[null,null,null,null,null,null,""]
[null,null,null,null,null,null,""]
[null,null,null,null,null,null,""]
[null,null,null,null,null,null,""]
[null,null,null,null,null,null,""]
[null,null,null,null,null,null,""]
[null,null,null,null,null,null,""]
[null,null,null,null,null,null,""]
[null,null,null,null,null,null,""]
[null,null,null,null,null,null,""]
[null,null,null,null,null,null,""]
[null,null,null,null,null,null,""]
[null,null,null,null,null,null,""]
[null,null,null,null,null,null,""]
[null,null,null,null,null,null,""]
[null,null,null,null,null,null,""]
[null,null,null,null,null,null,""]
[null,null,null,null,null,null,""]
[null,null,null,null,null,null,""]
[null,null,null,null,null,null,""]
[null,null,null,null,null,null,""]
[null,null,null,null,null,null,""]
[null,null,null,null,null,null,""]
[null,null,null,null,null,null,""]
[null,null,null,null,null,null,""]
[null,null,null,null,null,null,""]
[null,null,null,null,null,null,""]
[null,null,null,null,null,null,""]
[null,null,null,null,null,null,""]
[null,null,null,null,null,null,""]
[null,null,null,null,null,null,""]
[null,null,null,null,null,null,""]
[null,null,null,null,null,null,""]
[null,null,null,null,null,null,""]
[null,null,null,null,null,null,""]
[null,null,null,null,null,null,""]
[null,null,null,null,null,null,""]
[null,null,null,null,null,null,""]
[null,null,null,null,null,null,""]
[null,null,null,null,null,null,""]
[null,null,null,null,null,null,""]
[null,null,null,null,null,null,""]
[null,null,null,null,null,null,""]
[null,null,null,null,null,null,""]
[null,null,null,null,null,null,""]
[null,null,null,null,null,null,""]
[null,null,null,null,null,null,""]
[null,null,null,null,null,null,""]
[null,null,null,null,null,null,""]
[null,null,null,null,null,null,""]
[null,null,null,null,null,null,""]
[null,null,null,null,null,null,""]
[null,null,null,null,null,null,""]
[null,null,null,null,null,null,""]
[null,null,null,null,null,null,""]
[null,null,null,null,null,null,""]
[null,null,null,null,null,null,""]
[null,null,null,null,null,null,""]
[null,null,null,null,null,null,""]
[null,null,null,null,null,null,""]
[null,null,null,null,null,null,""]
[null,null,null,null,null,null,""]
[null,null,null,null,null,null,""]
[null,null,null,null,null,null,""]
[null,null,null,null,null,null,""]
[null,null,null,null,null,null,""]
[null,null,null,null,null,null,""]
[null,null,null,null,null,null,""]
[null,null,null,null,null,null,""]
[null,null,null,null,null,null,""]
[null,null,null,null,null,null,""]
[null,null,null,null,null,null,""]
[null,null,null,null,null,null,""]
[null,null,null,null,null,null,""]
[null,null,null,null,null,null,""]
[null,null,null,null,null,null,""]
[null,null,null,null,null,null,""]
[null,null,null,null,null,null,""]
[null,null,null,null,null,null,""]
[null,null,null,null,null,null,""]
[null,null,null,null,null,null,""]
[null,null,null,null,null,null,""]
[null,null,null,null,null,null,""]
[null,null,null,null,null,null,""]
[null,null,null,null,null,null,""]
[null,null,null,null,null,null,""]
[null,null,null,null,null,null,""]
[null,null,null,null,null,null,""]
[null,null,null,null,null,null,""]
[null,null,null,null,null,null,""]
[null,null,null,null,null,null,""]
[null,null,null,null,null,null,""]
[null,null,null,null,null,null,""]
[null,null,null,null,null,null,""]
[null,null,null,null,null,null,""]
[null,null,null,null,null,null,""]
[null,null,null,null,null,null,""]
[null,null,null,null,null,null,""]
[null,null,null,null,null,null,""]
[null,null,null,null,null,null,""]
[null,null,null,null,null,null,""]
[null,null,null,null,null,null,""]
[null,null,null,null,null,null,""]
[null,null,null,null,null,null,""]
[null,null,null,null,null,null,""]
[null,null,null,null,null,null,""]

{"sheet":"E02","index":4,"n_rows":664,"n_cols":7,"rows_kept":664,"cut":false,"hidden":false,"merged":[[78,2,78,3],[79,2,79,3],[80,2,80,3],[81,2,86,3],[51,2,56,3],[63,2,63,3],[64,2,64,3],[65,2,65,3],[66,2,71,3],[77,1,77,3],[50,2,50,3],[21,2,21,3],[22,2,22,3],[23,2,28,3],[33,2,33,3],[34,2,34,3],[4,1,4,3],[35,2,35,3],[36,2,41,3],[48,2,48,3],[49,2,49,3],[5,2,5,3],[6,2,6,3],[7,2,7,3],[8,2,13,3],[20,2,20,3]]}
[]
[null,null,null,null,null,null,""]
[null,"2.1 - Evaluation des aléas",null,null,null,null,"2.1"]
[null,null,null,null,null,null,""]
[null,"2.1.1 - Connaissance des aléas (également nommés périls, ou chocs et contraintes) auxquels la ville fait face, et leur probabilité",null,null,null,null,"2.1.1"]
[null,"Question","Comments",null,null,null,""]
[null,null,null,null,null,null,""]
[null,"Response","Provide means of verification (explanation and evidence)",null,null,null,""]
[null,null,null,null,null,{"$f":"IF(E9=1,TRUE,FALSE)","v":false},""]
[null,null,null,null,null,{"$f":"IF(E9=2,TRUE,FALSE)","v":false},""]
[null,null,null,null,null,{"$f":"IF(E9=3,TRUE,FALSE)","v":false},""]
[null,null,null,null,null,{"$f":"IF(E9=4,TRUE,FALSE)","v":false},""]
[null,null,null,null,null,{"$f":"IF(E9=5,TRUE,FALSE)","v":false},""]
[null,null,null,null,null,{"$f":"IF(E9=6,TRUE,FALSE)","v":false},""]
[null,"Actions to achieve maximum resilience","Responsible institution","Timescale",null,null,""]
[null,null,null,null,null,null,""]
[null,null,null,null,null,null,""]
[null,"2.2 - Evaluation des dégâts et des pertes",null,null,null,null,"2.2"]
[null,null,null,null,null,null,""]
[null,"2.2.1 - Knowledge of exposure and vulnerability",null,null,null,null,"2.2.1"]
[null,"Question","Comments",null,null,null,""]
[null,null,null,null,null,null,""]
[null,"Response","Provide means of verification (explanation and evidence)",null,null,null,""]
[null,null,null,null,null,{"$f":"IF(E24=1,TRUE,FALSE)","v":false},""]
[null,null,null,null,null,{"$f":"IF(E24=2,TRUE,FALSE)","v":false},""]
[null,null,null,null,null,{"$f":"IF(E24=3,TRUE,FALSE)","v":false},""]
[null,null,null,null,null,{"$f":"IF(E24=4,TRUE,FALSE)","v":false},""]
[null,null,null,null,null,{"$f":"IF(E24=5,TRUE,FALSE)","v":false},""]
[null,null,null,null,null,{"$f":"IF(E24=6,TRUE,FALSE)","v":false},""]
[null,"Actions to achieve maximum resilience","Responsible institution","Timescale",null,null,""]
[null,null,null,null,null,null,""]
[null,null,null,null,null,null,""]
[null,"2.2.2 - Evaluation des dégâts et des pertes",null,null,null,null,"2.2.2"]
[null,"Question","Comments",null,null,null,""]
[null,null,null,null,null,null,""]
[null,"Response","Provide means of verification (explanation and evidence)",null,null,null,""]
[null,null,null,null,null,{"$f":"IF(E37=1,TRUE,FALSE)","v":false},""]
[null,null,null,null,null,{"$f":"IF(E37=2,TRUE,FALSE)","v":false},""]
[null,null,null,null,null,{"$f":"IF(E37=3,TRUE,FALSE)","v":false},""]
[null,null,null,null,null,{"$f":"IF(E37=4,TRUE,FALSE)","v":false},""]
[null,null,null,null,null,{"$f":"IF(E37=5,TRUE,FALSE)","v":false},""]
[null,null,null,null,null,{"$f":"IF(E37=6,TRUE,FALSE)","v":false},""]
[null,"Actions to achieve maximum resilience","Responsible institution","Timescale",null,null,""]
[null,null,null,null,null,null,""]
[null,null,null,null,null,null,""]
[null,"2.3 - Les impacts en cascade ou les interdépendances",null,null,null,null,"2.3"]
[null,null,null,null,null,null,""]
[null,"2.3.1 - Les impacts en cascade ou les interdépendances",null,null,null,null,"2.3.1"]
[null,"Question","Comments",null,null,null,""]
[null,null,null,null,null,null,""]
[null,"Response","Provide means of verification (explanation and evidence)",null,null,null,""]
[null,null,null,null,null,{"$f":"IF(E52=1,TRUE,FALSE)","v":false},""]
[null,null,null,null,null,{"$f":"IF(E52=2,TRUE,FALSE)","v":false},""]
[null,null,null,null,null,{"$f":"IF(E52=3,TRUE,FALSE)","v":false},""]
[null,null,null,null,null,{"$f":"IF(E52=4,TRUE,FALSE)","v":false},""]
[null,null,null,null,null,{"$f":"IF(E52=5,TRUE,FALSE)","v":false},""]
[null,null,null,null,null,{"$f":"IF(E52=6,TRUE,FALSE)","v":false},""]
[null,"Actions to achieve maximum resilience","Responsible institution","Timescale",null,null,""]
[null,null,null,null,null,null,""]
[null,null,null,null,null,null,""]
[null,"2.4 - Cartographie des aléas",null,null,null,null,"2.4"]
[null,null,null,null,null,null,""]
[null,"2.4.1 -Cartographie des aléas",null,null,null,null,"2.4.1"]
[null,"Question","Comments",null,null,null,""]
[null,null,null,null,null,null,""]
[null,"Response","Provide means of verification (explanation and evidence)",null,null,null,""]
[null,null,null,null,null,{"$f":"IF(E67=1,TRUE,FALSE)","v":false},""]
[null,null,null,null,null,{"$f":"IF(E67=2,TRUE,FALSE)","v":false},""]
[null,null,null,null,null,{"$f":"IF(E67=3,TRUE,FALSE)","v":false},""]
[null,null,null,null,null,{"$f":"IF(E67=4,TRUE,FALSE)","v":false},""]
[null,null,null,null,null,{"$f":"IF(E67=5,TRUE,FALSE)","v":false},""]
[null,null,null,null,null,{"$f":"IF(E67=6,TRUE,FALSE)","v":false},""]
[null,"Actions to achieve maximum resilience","Responsible institution","Timescale",null,null,""]
[null,null,null,null,null,null,""]
[null,null,null,null,null,null,""]
[null,"2.5 - Mise à jour de l’information sur les scénarios, les risques, la vulnérabilité et l’exposition\n",null,null,null,null,"2.5"]
[null,null,null,null,null,null,""]
[null,"2.5.1 - Processus de mise au jour",null,null,null,null,"2.5.1"]
[null,"Question","Comments",null,null,null,""]
[null,null,null,null,null,null,""]
[null,"Response","Provide means of verification (explanation and evidence)",null,null,null,""]
[null,null,null,null,null,{"$f":"IF(E82=1,TRUE,FALSE)","v":false},""]
[null,null,null,null,null,{"$f":"IF(E82=2,TRUE,FALSE)","v":false},""]
[null,null,null,null,null,{"$f":"IF(E82=3,TRUE,FALSE)","v":false},""]
[null,null,null,null,null,{"$f":"IF(E82=4,TRUE,FALSE)","v":false},""]
[null,null,null,null,null,{"$f":"IF(E82=5,TRUE,FALSE)","v":false},""]
[null,null,null,null,null,{"$f":"IF(E82=6,TRUE,FALSE)","v":false},""]
[null,"Actions to achieve maximum resilience","Responsible institution","Timescale",null,null,""]
[null,null,null,null,null,null,""]
[null,null,null,null,null,null,""]
[null,null,null,null,null,null,""]
[null,null,null,null,null,null,""]
[null,null,null,null,null,null,""]
[null,null,null,null,null,null,""]
[null,null,null,null,null,null,""]
[null,null,null,null,null,null,""]
[null,null,null,null,null,null,""]
[null,null,null,null,null,null,""]
[null,null,null,null,null,null,""]
[null,null,null,null,null,null,""]
[null,null,null,null,null,null,""]
[null,null,null,null,null,null,""]
[null,null,null,null,null,null,""]
[null,null,null,null,null,null,""]
[null,null,null,null,null,null,""]
[null,null,null,null,null,null,""]
[null,null,null,null,null,null,""]
[null,null,null,null,null,null,""]
[null,null,null,null,null,null,""]
[null,null,null,null,null,null,""]
[null,null,null,null,null,null,""]
[null,null,null,null,null,null,""]
[null,null,null,null,null,null,""]
[null,null,null,null,null,null,""]
[null,null,null,null,null,null,""]
[null,null,null,null,null,null,""]
[null,null,null,null,null,null,""]
[null,null,null,null,null,null,""]
[null,null,null,null,null,null,""]
[null,null,null,null,null,null,""]
[null,null,null,null,null,null,""]
[null,null,null,null,null,null,""]
[null,null,null,null,null,null,""]
[null,null,null,null,null,null,""]
[null,null,null,null,null,null,""]
[null,null,null,null,null,null,""]
[null,null,null,null,null,null,""]
[null,null,null,null,null,null,""]
[null,null,null,null,null,null,""]
[null,null,null,null,null,null,""]
[null,null,null,null,null,null,""]
[null,null,null,null,null,null,""]
[null,null,null,null,null,null,""]
[null,null,null,null,null,null,""]
[null,null,null,null,null,null,""]
[null,null,null,null,null,null,""]
[null,null,null,null,null,null,""]
[null,null,null,null,null,null,""]
[null,null,null,null,null,null,""]
[null,null,null,null,null,null,""]
[null,null,null,null,null,null,""]
[null,null,null,null,null,null,""]
[null,null,null,null,null,null,""]
[null,null,null,null,null,null,""]
[null,null,null,null,null,null,""]
[null,null,null,null,null,null,""]
[null,null,null,null,null,null,""]
[null,null,null,null,null,null,""]
[null,null,null,null,null,null,""]
[null,null,null,null,null,null,""]
[null,null,null,null,null,null,""]
[null,null,null,null,null,null,""]
[null,null,null,null,null,null,""]
[null,null,null,null,null,null,""]
[null,null,null,null,null,null,""]
[null,null,null,null,null,null,""]
[null,null,null,null,null,null,""]
[null,null,null,null,null,null,""]
[null,null,null,null,null,null,""]
[null,null,null,null,null,null,""]
[null,null,null,null,null,null,""]
[null,null,null,null,null,null,""]
[null,null,null,null,null,null,""]
[null,null,null,null,null,null,""]
[null,null,null,null,null,null,""]
[null,null,null,null,null,null,""]
[null,null,null,null,null,null,""]
[null,null,null,null,null,null,""]
[null,null,null,null,null,null,""]
[null,null,null,null,null,null,""]
[null,null,null,null,null,null,""]
[null,null,null,null,null,null,""]
[null,null,null,null,null,null,""]
[null,null,null,null,null,null,""]
[null,null,null,null,null,null,""]
[null,null,null,null,null,null,""]
[null,null,null,null,null,null,""]
[null,null,null,null,null,null,""]
[null,null,null,null,null,null,""]
[null,null,null,null,null,null,""]
[null,null,null,null,null,null,""]
[null,null,null,null,null,null,""]
[null,null,null,null,null,null,""]
[null,null,null,null,null,null,""]
[null,null,null,null,null,null,""]
[null,null,null,null,null,null,""]
[null,null,null,null,null,null,""]
[null,null,null,null,null,null,""]
[null,null,null,null,null,null,""]
[null,null,null,null,null,null,""]
[null,null,null,null,null,null,""]
[null,null,null,null,null,null,""]
[null,null,null,null,null,null,""]
[null,null,null,null,null,null,""]
[null,null,null,null,null,null,""]
[null,null,null,null,null,null,""]
[null,null,null,null,null,null,""]
[null,null,null,null,null,null,""]
[null,null,null,null,null,null,""]
[null,null,null,null,null,null,""]
[null,null,null,null,null,null,""]
[null,null,null,null,null,null,""]
[null,null,null,null,null,null,""]
[null,null,null,null,null,null,""]
[null,null,null,null,null,null,""]
[null,null,null,null,null,null,""]
[null,null,null,null,null,null,""]
[null,null,null,null,null,null,""]
[null,null,null,null,null,null,""]
[null,null,null,null,null,null,""]
[null,null,null,null,null,null,""]
[null,null,null,null,null,null,""]
[null,null,null,null,null,null,""]
[null,null,null,null,null,null,""]
[null,null,null,null,null,null,""]
[null,null,null,null,null,null,""]
[null,null,null,null,null,null,""]
[null,null,null,null,null,null,""]
[null,null,null,null,null,null,""]
[null,null,null,null,null,null,""]
[null,null,null,null,null,null,""]
[null,null,null,null,null,null,""]
[null,null,null,null,null,null,""]
[null,null,null,null,null,null,""]
[null,null,null,null,null,null,""]
[null,null,null,null,null,null,""]
[null,null,null,null,null,null,""]
[null,null,null,null,null,null,""]
[null,null,null,null,null,null,""]
[null,null,null,null,null,null,""]
[null,null,null,null,null,null,""]
[null,null,null,null,null,null,""]
[null,null,null,null,null,null,""]
[null,null,null,null,null,null,""]
[null,null,null,null,null,null,""]
[null,null,null,null,null,null,""]
[null,null,null,null,null,null,""]
[null,null,null,null,null,null,""]
[null,null,null,null,null,null,""]
[null,null,null,null,null,null,""]
[null,null,null,null,null,null,""]
[null,null,null,null,null,null,""]
[null,null,null,null,null,null,""]
[null,null,null,null,null,null,""]
[null,null,null,null,null,null,""]
[null,null,null,null,null,null,""]
[null,null,null,null,null,null,""]
[null,null,null,null,null,null,""]
[null,null,null,null,null,null,""]
[null,null,null,null,null,null,""]
[null,null,null,null,null,null,""]
[null,null,null,null,null,null,""]
[null,null,null,null,null,null,""]
[null,null,null,null,null,null,""]
[null,null,null,null,null,null,""]
[null,null,null,null,null,null,""]
[null,null,null,null,null,null,""]
[null,null,null,null,null,null,""]
[null,null,null,null,null,null,""]
[null,null,null,null,null,null,""]
[null,null,null,null,null,null,""]
[null,null,null,null,null,null,""]
[null,null,null,null,null,null,""]
[null,null,null,null,null,null,""]
[null,null,null,null,null,null,""]
[null,null,null,null,null,null,""]
[null,null,null,null,null,null,""]
[null,null,null,null,null,null,""]
[null,null,null,null,null,null,""]
[null,null,null,null,null,null,""]
[null,null,null,null,null,null,""]
[null,null,null,null,null,null,""]
[null,null,null,null,null,null,""]
[null,null,null,null,null,null,""]
[null,null,null,null,null,null,""]
[null,null,null,null,null,null,""]
[null,null,null,null,null,null,""]
[null,null,null,null,null,null,""]
[null,null,null,null,null,null,""]
[null,null,null,null,null,null,""]
[null,null,null,null,null,null,""]
[null,null,null,null,null,null,""]
[null,null,null,null,null,null,""]
[null,null,null,null,null,null,""]
[null,null,null,null,null,null,""]
[null,null,null,null,null,null,""]
[null,null,null,null,null,null,""]
[null,null,null,null,null,null,""]
[null,null,null,null,null,null,""]
[null,null,null,null,null,null,""]
[null,null,null,null,null,null,""]
[null,null,null,null,null,null,""]
[null,null,null,null,null,null,""]
[null,null,null,null,null,null,""]
[null,null,null,null,null,null,""]
[null,null,null,null,null,null,""]
[null,null,null,null,null,null,""]
[null,null,null,null,null,null,""]
[null,null,null,null,null,null,""]
[null,null,null,null,null,null,""]
[null,null,null,null,null,null,""]
[null,null,null,null,null,null,""]
[null,null,null,null,null,null,""]
[null,null,null,null,null,null,""]
[null,null,null,null,null,null,""]
[null,null,null,null,null,null,""]
[null,null,null,null,null,null,""]
[null,null,null,null,null,null,""]
[null,null,null,null,null,null,""]
[null,null,null,null,null,null,""]
[null,null,null,null,null,null,""]
[null,null,null,null,null,null,""]
[null,null,null,null,null,null,""]
[null,null,null,null,null,null,""]
[null,null,null,null,null,null,""]
[null,null,null,null,null,null,""]
[null,null,null,null,null,null,""]
[null,null,null,null,null,null,""]
[null,null,null,null,null,null,""]
[null,null,null,null,null,null,""]
[null,null,null,null,null,null,""]
[null,null,null,null,null,null,""]
[null,null,null,null,null,null,""]
[null,null,null,null,null,null,""]
[null,null,null,null,null,null,""]
[null,null,null,null,null,null,""]
[null,null,null,null,null,null,""]
[null,null,null,null,null,null,""]
[null,null,null,null,null,null,""]
[null,null,null,null,null,null,""]
[null,null,null,null,null,null,""]
[null,null,null,null,null,null,""]
[null,null,null,null,null,null,""]
[null,null,null,null,null,null,""]
[null,null,null,null,null,null,""]
[null,null,null,null,null,null,""]
[null,null,null,null,null,null,""]
[null,null,null,null,null,null,""]
[null,null,null,null,null,null,""]
[null,null,null,null,null,null,""]
[null,null,null,null,null,null,""]
[null,null,null,null,null,null,""]
[null,null,null,null,null,null,""]
[null,null,null,null,null,null,""]
[null,null,null,null,null,null,""]
[null,null,null,null,null,null,""]
[null,null,null,null,null,null,""]
[null,null,null,null,null,null,""]
[null,null,null,null,null,null,""]
[null,null,null,null,null,null,""]
[null,null,null,null,null,null,""]
[null,null,null,null,null,null,""]
[null,null,null,null,null,null,""]
[null,null,null,null,null,null,""]
[null,null,null,null,null,null,""]
[null,null,null,null,null,null,""]
[null,null,null,null,null,null,""]
[null,null,null,null,null,null,""]
[null,null,null,null,null,null,""]
[null,null,null,null,null,null,""]
[null,null,null,null,null,null,""]
[null,null,null,null,null,null,""]
[null,null,null,null,null,null,""]
[null,null,null,null,null,null,""]
[null,null,null,null,null,null,""]
[null,null,null,null,null,null,""]
[null,null,null,null,null,null,""]
[null,null,null,null,null,null,""]
[null,null,null,null,null,null,""]
[null,null,null,null,null,null,""]
[null,null,null,null,null,null,""]
[null,null,null,null,null,null,""]
[null,null,null,null,null,null,""]
[null,null,null,null,null,null,""]
[null,null,null,null,null,null,""]
[null,null,null,null,null,null,""]
[null,null,null,null,null,null,""]
[null,null,null,null,null,null,""]
[null,null,null,null,null,null,""]
[null,null,null,null,null,null,""]
[null,null,null,null,null,null,""]
[null,null,null,null,null,null,""]
[null,null,null,null,null,null,""]
[null,null,null,null,null,null,""]
[null,null,null,null,null,null,""]
[null,null,null,null,null,null,""]
[null,null,null,null,null,null,""]
[null,null,null,null,null,null,""]
[null,null,null,null,null,null,""]
[null,null,null,null,null,null,""]
[null,null,null,null,null,null,""]
[null,null,null,null,null,null,""]
[null,null,null,null,null,null,""]
[null,null,null,null,null,null,""]
[null,null,null,null,null,null,""]
[null,null,null,null,null,null,""]
[null,null,null,null,null,null,""]
[null,null,null,null,null,null,""]
[null,null,null,null,null,null,""]
[null,null,null,null,null,null,""]
[null,null,null,null,null,null,""]
[null,null,null,null,null,null,""]
[null,null,null,null,null,null,""]
[null,null,null,null,null,null,""]
[null,null,null,null,null,null,""]
[null,null,null,null,null,null,""]
[null,null,null,null,null,null,""]
[null,null,null,null,null,null,""]
[null,null,null,null,null,null,""]
[null,null,null,null,null,null,""]
[null,null,null,null,null,null,""]
[null,null,null,null,null,null,""]
[null,null,null,null,null,null,""]
[null,null,null,null,null,null,""]
[null,null,null,null,null,null,""]
[null,null,null,null,null,null,""]
[null,null,null,null,null,null,""]
[null,null,null,null,null,null,""]
[null,null,null,null,null,null,""]
[null,null,null,null,null,null,""]
[null,null,null,null,null,null,""]
[null,null,null,null,null,null,""]
[null,null,null,null,null,null,""]
[null,null,null,null,null,null,""]
[null,null,null,null,null,null,""]
[null,null,null,null,null,null,""]
[null,null,null,null,null,null,""]
[null,null,null,null,null,null,""]
[null,null,null,null,null,null,""]
[null,null,null,null,null,null,""]
[null,null,null,null,null,null,""]
[null,null,null,null,null,null,""]
[null,null,null,null,null,null,""]
[null,null,null,null,null,null,""]
[null,null,null,null,null,null,""]
[null,null,null,null,null,null,""]
[null,null,null,null,null,null,""]
[null,null,null,null,null,null,""]
[null,null,null,null,null,null,""]
[null,null,null,null,null,null,""]
[null,null,null,null,null,null,""]
[null,null,null,null,null,null,""]
[null,null,null,null,null,null,""]
[null,null,null,null,null,null,""]
[null,null,null,null,null,null,""]
[null,null,null,null,null,null,""]
[null,null,null,null,null,null,""]
[null,null,null,null,null,null,""]
[null,null,null,null,null,null,""]
[null,null,null,null,null,null,""]
[null,null,null,null,null,null,""]
[null,null,null,null,null,null,""]
[null,null,null,null,null,null,""]
[null,null,null,null,null,null,""]
[null,null,null,null,null,null,""]
[null,null,null,null,null,null,""]
[null,null,null,null,null,null,""]
[null,null,null,null,null,null,""]
[null,null,null,null,null,null,""]
[null,null,null,null,null,null,""]
[null,null,null,null,null,null,""]
[null,null,null,null,null,null,""]
[null,null,null,null,null,null,""]
[null,null,null,null,null,null,""]
[null,null,null,null,null,null,""]
[null,null,null,null,null,null,""]
[null,null,null,null,null,null,""]
[null,null,null,null,null,null,""]
[null,null,null,null,null,null,""]
[null,null,null,null,null,null,""]
[null,null,null,null,null,null,""]
[null,null,null,null,null,null,""]
[null,null,null,null,null,null,""]
[null,null,null,null,null,null,""]
[null,null,null,null,null,null,""]
[null,null,null,null,null,null,""]
[null,null,null,null,null,null,""]
[null,null,null,null,null,null,""]
[null,null,null,null,null,null,""]
[null,null,null,null,null,null,""]
[null,null,null,null,null,null,""]
[null,null,null,null,null,null,""]
[null,null,null,null,null,null,""]
[null,null,null,null,null,null,""]
[null,null,null,null,null,null,""]
[null,null,null,null,null,null,""]
[null,null,null,null,null,null,""]
[null,null,null,null,null,null,""]
[null,null,null,null,null,null,""]
[null,null,null,null,null,null,""]
[null,null,null,null,null,null,""]
[null,null,null,null,null,null,""]
[null,null,null,null,null,null,""]
[null,null,null,null,null,null,""]
[null,null,null,null,null,null,""]
[null,null,null,null,null,null,""]
[null,null,null,null,null,null,""]
[null,null,null,null,null,null,""]
[null,null,null,null,null,null,""]
[null,null,null,null,null,null,""]
[null,null,null,null,null,null,""]
[null,null,null,null,null,null,""]
[null,null,null,null,null,null,""]
[null,null,null,null,null,null,""]
[null,null,null,null,null,null,""]
[null,null,null,null,null,null,""]
[null,null,null,null,null,null,""]
[null,null,null,null,null,null,""]
[null,null,null,null,null,null,""]
[null,null,null,null,null,null,""]
[null,null,null,null,null,null,""]
[null,null,null,null,null,null,""]
[null,null,null,null,null,null,""]
[null,null,null,null,null,null,""]
[null,null,null,null,null,null,""]
[null,null,null,null,null,null,""]
[null,null,null,null,null,null,""]
[null,null,null,null,null,null,""]
[null,null,null,null,null,null,""]
[null,null,null,null,null,null,""]
[null,null,null,null,null,null,""]
[null,null,null,null,null,null,""]
[null,null,null,null,null,null,""]
[null,null,null,null,null,null,""]
[null,null,null,null,null,null,""]
[null,null,null,null,null,null,""]
[null,null,null,null,null,null,""]
[null,null,null,null,null,null,""]
[null,null,null,null,null,null,""]
[null,null,null,null,null,null,""]
[null,null,null,null,null,null,""]
[null,null,null,null,null,null,""]
[null,null,null,null,null,null,""]
[null,null,null,null,null,null,""]
[null,null,null,null,null,null,""]
[null,null,null,null,null,null,""]
[null,null,null,null,null,null,""]
[null,null,null,null,null,null,""]
[null,null,null,null,null,null,""]
[null,null,null,null,null,null,""]
[null,null,null,null,null,null,""]
[null,null,null,null,null,null,""]
[null,null,null,null,null,null,""]
[null,null,null,null,null,null,""]
[null,null,null,null,null,null,""]
[null,null,null,null,null,null,""]
[null,null,null,null,null,null,""]
[null,null,null,null,null,null,""]
[null,null,null,null,null,null,""]
[null,null,null,null,null,null,""]
[null,null,null,null,null,null,""]
[null,null,null,null,null,null,""]
[null,null,null,null,null,null,""]
[null,null,null,null,null,null,""]
[null,null,null,null,null,null,""]
[null,null,null,null,null,null,""]
[null,null,null,null,null,null,""]
[null,null,null,null,null,null,""]
[null,null,null,null,null,null,""]
[null,null,null,null,null,null,""]
[null,null,null,null,null,null,""]
[null,null,null,null,null,null,""]
[null,null,null,null,null,null,""]
[null,null,null,null,null,null,""]
[null,null,null,null,null,null,""]
[null,null,null,null,null,null,""]
[null,null,null,null,null,null,""]
[null,null,null,null,null,null,""]
[null,null,null,null,null,null,""]
[null,null,null,null,null,null,""]
[null,null,null,null,null,null,""]
[null,null,null,null,null,null,""]
[null,null,null,null,null,null,""]
[null,null,null,null,null,null,""]
[null,null,null,null,null,null,""]
[null,null,null,null,null,null,""]
[null,null,null,null,null,null,""]
[null,null,null,null,null,null,""]
[null,null,null,null,null,null,""]
[null,null,null,null,null,null,""]
[null,null,null,null,null,null,""]
[null,null,null,null,null,null,""]
[null,null,null,null,null,null,""]
[null,null,null,null,null,null,""]
[null,null,null,null,null,null,""]
[null,null,null,null,null,null,""]
[null,null,null,null,null,null,""]
[null,null,null,null,null,null,""]
[null,null,null,null,null,null,""]
[null,null,null,null,null,null,""]
[null,null,null,null,null,null,""]
[null,null,null,null,null,null,""]
[null,null,null,null,null,null,""]
[null,null,null,null,null,null,""]
[null,null,null,null,null,null,""]
[null,null,null,null,null,null,""]
[null,null,null,null,null,null,""]
[null,null,null,null,null,null,""]
[null,null,null,null,null,null,""]
[null,null,null,null,null,null,""]
[null,null,null,null,null,null,""]
[null,null,null,null,null,null,""]
[null,null,null,null,null,null,""]
[null,null,null,null,null,null,""]
[null,null,null,null,null,null,""]
[null,null,null,null,null,null,""]
[null,null,null,null,null,null,""]
[null,null,null,null,null,null,""]
[null,null,null,null,null,null,""]
[null,null,null,null,null,null,""]
[null,null,null,null,null,null,""]
[null,null,null,null,null,null,""]
[null,null,null,null,null,null,""]
[null,null,null,null,null,null,""]
[null,null,null,null,null,null,""]
[null,null,null,null,null,null,""]
[null,null,null,null,null,null,""]
[null,null,null,null,null,null,""]
[null,null,null,null,null,null,""]
[null,null,null,null,null,null,""]
[null,null,null,null,null,null,""]
[null,null,null,null,null,null,""]
[null,null,null,null,null,null,""]
[null,null,null,null,null,null,""]
[null,null,null,null,null,null,""]
[null,null,null,null,null,null,""]
[null,null,null,null,null,null,""]
[null,null,null,null,null,null,""]
[null,null,null,null,null,null,""]
[null,null,null,null,null,null,""]
[null,null,null,null,null,null,""]
[null,null,null,null,null,null,""]
[null,null,null,null,null,null,""]
[null,null,null,null,null,null,""]
[null,null,null,null,null,null,""]
[null,null,null,null,null,null,""]
[null,null,null,null,null,null,""]
[null,null,null,null,null,null,""]
[null,null,null,null,null,null,""]
[null,null,null,null,null,null,""]
[null,null,null,null,null,null,""]
[null,null,null,null,null,null,""]
[null,null,null,null,null,null,""]
[null,null,null,null,null,null,""]
[null,null,null,null,null,null,""]
[null,null,null,null,null,null,""]
[null,null,null,null,null,null,""]
[null,null,null,null,null,null,""]
[null,null,null,null,null,null,""]
[null,null,null,null,null,null,""]
[null,null,null,null,null,null,""]
[null,null,null,null,null,null,""]
[null,null,null,null,null,null,""]
[null,null,null,null,null,null,""]
[null,null,null,null,null,null,""]
[null,null,null,null,null,null,""]
[null,null,null,null,null,null,""]
[null,null,null,null,null,null,""]
[null,null,null,null,null,null,""]
[null,null,null,null,null,null,""]
[null,null,null,null,null,null,""]
[null,null,null,null,null,null,""]
[null,null,null,null,null,null,""]
[null,null,null,null,null,null,""]

{"sheet":"E03","index":5,"n_rows":664,"n_cols":7,"rows_kept":664,"cut":false,"hidden":false,"merged":[[129,2,129,3],[130,2,130,3],[131,2,136,3],[116,2,116,3],[117,2,117,3],[118,2,123,3],[127,1,127,3],[128,2,128,3],[103,2,103,3],[104,2,104,3],[105,2,110,3],[114,1,114,3],[115,2,115,3],[88,2,88,3],[89,2,89,3],[90,2,95,3],[101,1,101,3],[102,2,102,3],[75,2,75,3],[76,2,76,3],[77,2,82,3],[86,1,86,3],[87,2,87,3],[60,2,60,3],[61,2,61,3],[62,2,67,3],[73,1,73,3],[74,2,74,3],[47,2,47,3],[48,2,48,3],[49,2,54,3],[58,1,58,3],[59,2,59,3],[35,2,35,3],[36,2,41,3],[32,1,32,3],[45,1,45,3],[46,2,46,3],[34,2,34,3],[5,2,5,3],[6,2,6,3],[7,2,7,3],[8,2,13,3],[4,1,4,3],[20,2,20,3],[21,2,21,3],[22,2,22,3],[23,2,28,3],[33,2,33,3]]}
[]
[null,null,null,null,null,null,""]
[null,"3.1 - Savoir des approches pour attirer vers la ville des nouveaux investissements en faveur de la Réduction des Risques de catastrophe",null,null,null,null,"3.1"]
[null,null,null,null,null,null,""]
[null,"3.1.1 - Avoir conscience et savoir toutes les méthodes de financement possibles, tel que requis. La ville oeuvre poursuivant activement au financement, tel que requis.\nNotez : Ce critère pourrait être omis si des fonds suffisants existent",null,null,null,null,"3.1.1"]
[null,"Question","Comments",null,null,null,""]
[null,null,null,null,null,null,""]
[null,"Response","Provide means of verification (explanation and evidence)",null,null,null,""]
[null,null,null,null,null,{"$f":"IF(E9=1,TRUE,FALSE)","v":false},""]
[null,null,null,null,null,{"$f":"IF(E9=2,TRUE,FALSE)","v":false},""]
[null,null,null,null,null,{"$f":"IF(E9=3,TRUE,FALSE)","v":false},""]
[null,null,null,null,null,{"$f":"IF(E9=4,TRUE,FALSE)","v":false},""]
[null,null,null,null,null,{"$f":"IF(E9=5,TRUE,FALSE)","v":false},""]
[null,null,null,null,null,{"$f":"IF(E9=6,TRUE,FALSE)","v":false},""]
[null,"Actions to achieve maximum resilience","Responsible institution","Timescale",null,null,""]
[null,null,null,null,null,null,""]
[null,null,null,null,null,null,""]
[null,"3.2 - Pertinence du plan financier pour toutes les actions nécessaires à la résilience aux catastrophes",null,null,null,null,"3.2"]
[null,null,null,null,null,null,""]
[null,"3.2.1 - Les budgets de résilience dans le plan financier de la ville y compris les fonds de réserve",null,null,null,null,"3.2.1"]
[null,"Question","Comments",null,null,null,""]
[null,null,null,null,null,null,""]
[null,"Response","Provide means of verification (explanation and evidence)",null,null,null,""]
[null,null,null,null,null,{"$f":"IF(E24=1,TRUE,FALSE)","v":false},""]
[null,null,null,null,null,{"$f":"IF(E24=2,TRUE,FALSE)","v":false},""]
[null,null,null,null,null,{"$f":"IF(E24=3,TRUE,FALSE)","v":false},""]
[null,null,null,null,null,{"$f":"IF(E24=4,TRUE,FALSE)","v":false},""]
[null,null,null,null,null,{"$f":"IF(E24=5,TRUE,FALSE)","v":false},""]
[null,null,null,null,null,{"$f":"IF(E24=6,TRUE,FALSE)","v":false},""]
[null,"Actions to achieve maximum resilience","Responsible institution","Timescale",null,null,""]
[null,null,null,null,null,null,""]
[null,null,null,null,null,null,""]
[null,"3.2.2 - Le financement des travaux d’ingénierie à long terme et d’autres travaux traitant les scénarios les actifs essentiels définis par l’Essentiel 2 et l’Essentiel 8",null,null,null,null,"3.2.2"]
[null,"Question","Comments",null,null,null,""]
[null,null,null,null,null,null,""]
[null,"Response","Provide means of verification (explanation and evidence)",null,null,null,""]
[null,null,null,null,null,{"$f":"IF(E37=1,TRUE,FALSE)","v":false},""]
[null,null,null,null,null,{"$f":"IF(E37=2,TRUE,FALSE)","v":false},""]
[null,null,null,null,null,{"$f":"IF(E37=3,TRUE,FALSE)","v":false},""]
[null,null,null,null,null,{"$f":"IF(E37=4,TRUE,FALSE)","v":false},""]
[null,null,null,null,null,{"$f":"IF(E37=5,TRUE,FALSE)","v":false},""]
[null,null,null,null,null,{"$f":"IF(E37=6,TRUE,FALSE)","v":false},""]
[null,"Actions to achieve maximum resilience","Responsible institution","Timescale",null,null,""]
[null,null,null,null,null,null,""]
[null,null,null,null,null,null,""]
[null,"3.2.3 - Financement du fonctionnement pour remplir tous les coûts du fonctionnement des activités de résilience aux catastrophes.",null,null,null,null,"3.2.3"]
[null,"Question","Comments",null,null,null,""]
[null,null,null,null,null,null,""]
[null,"Response","Provide means of verification (explanation and evidence)",null,null,null,""]
[null,null,null,null,null,{"$f":"IF(E50=1,TRUE,FALSE)","v":false},""]
[null,null,null,null,null,{"$f":"IF(E50=2,TRUE,FALSE)","v":false},""]
[null,null,null,null,null,{"$f":"IF(E50=3,TRUE,FALSE)","v":false},""]
[null,null,null,null,null,{"$f":"IF(E50=4,TRUE,FALSE)","v":false},""]
[null,null,null,null,null,{"$f":"IF(E50=5,TRUE,FALSE)","v":false},""]
[null,null,null,null,null,{"$f":"IF(E50=6,TRUE,FALSE)","v":false},""]
[null,"Actions to achieve maximum resilience","Responsible institution","Timescale",null,null,""]
[null,null,null,null,null,null,""]
[null,null,null,null,null,null,""]
[null,"3.2.4 - Les fonds de réserve pour la récupération post-catastrophe (on s’y réfère par « les réserves des mauvais jours »",null,null,null,null,"3.2.4"]
[null,"Question","Comments",null,null,null,""]
[null,null,null,null,null,null,""]
[null,"Response","Provide means of verification (explanation and evidence)",null,null,null,""]
[null,null,null,null,null,{"$f":"IF(E63=1,TRUE,FALSE)","v":false},""]
[null,null,null,null,null,{"$f":"IF(E63=2,TRUE,FALSE)","v":false},""]
[null,null,null,null,null,{"$f":"IF(E63=3,TRUE,FALSE)","v":false},""]
[null,null,null,null,null,{"$f":"IF(E63=4,TRUE,FALSE)","v":false},""]
[null,null,null,null,null,{"$f":"IF(E63=5,TRUE,FALSE)","v":false},""]
[null,null,null,null,null,{"$f":"IF(E63=6,TRUE,FALSE)","v":false},""]
[null,"Actions to achieve maximum resilience","Responsible institution","Timescale",null,null,""]
[null,null,null,null,null,null,""]
[null,null,null,null,null,null,""]
[null,"3.3 - Assurance",null,null,null,null,"3.3"]
[null,null,null,null,null,null,""]
[null,"3.3.1 - Couvertured’assurancedomestique",null,null,null,null,"3.3.1"]
[null,"Question","Comments",null,null,null,""]
[null,null,null,null,null,null,""]
[null,"Response","Provide means of verification (explanation and evidence)",null,null,null,""]
[null,null,null,null,null,{"$f":"IF(E78=1,TRUE,FALSE)","v":false},""]
[null,null,null,null,null,{"$f":"IF(E78=2,TRUE,FALSE)","v":false},""]
[null,null,null,null,null,{"$f":"IF(E78=3,TRUE,FALSE)","v":false},""]
[null,null,null,null,null,{"$f":"IF(E78=4,TRUE,FALSE)","v":false},""]
[null,null,null,null,null,{"$f":"IF(E78=5,TRUE,FALSE)","v":false},""]
[null,null,null,null,null,{"$f":"IF(E78=6,TRUE,FALSE)","v":false},""]
[null,"Actions to achieve maximum resilience","Responsible institution","Timescale",null,null,""]
[null,null,null,null,null,null,""]
[null,null,null,null,null,null,""]
[null,"3.3.2 - Couverture d’assurance nondomestique",null,null,null,null,"3.3.2"]
[null,"Question","Comments",null,null,null,""]
[null,null,null,null,null,null,""]
[null,"Response","Provide means of verification (explanation and evidence)",null,null,null,""]
[null,null,null,null,null,{"$f":"IF(E91=1,TRUE,FALSE)","v":false},""]
[null,null,null,null,null,{"$f":"IF(E91=2,TRUE,FALSE)","v":false},""]
[null,null,null,null,null,{"$f":"IF(E91=3,TRUE,FALSE)","v":false},""]
[null,null,null,null,null,{"$f":"IF(E91=4,TRUE,FALSE)","v":false},""]
[null,null,null,null,null,{"$f":"IF(E91=5,TRUE,FALSE)","v":false},""]
[null,null,null,null,null,{"$f":"IF(E91=6,TRUE,FALSE)","v":false},""]
[null,"Actions to achieve maximum resilience","Responsible institution","Timescale",null,null,""]
[null,null,null,null,null,null,""]
[null,null,null,null,null,null,""]
[null,"3.4 - Incitations et financement aux entreprises, organisations communautaires et citoyens.",null,null,null,null,"3.4"]
[null,null,null,null,null,null,""]
[null,"3.4.1 - Incitations aux entreprises, aux organisations pour améliorer la résilience aux catastrophesles plans de catastrophes, locaux, etc",null,null,null,null,"3.4.1"]
[null,"Question","Comments",null,null,null,""]
[null,null,null,null,null,null,""]
[null,"Response","Provide means of verification (explanation and evidence)",null,null,null,""]
[null,null,null,null,null,{"$f":"IF(E106=1,TRUE,FALSE)","v":false},""]
[null,null,null,null,null,{"$f":"IF(E106=2,TRUE,FALSE)","v":false},""]
[null,null,null,null,null,{"$f":"IF(E106=3,TRUE,FALSE)","v":false},""]
[null,null,null,null,null,{"$f":"IF(E106=4,TRUE,FALSE)","v":false},""]
[null,null,null,null,null,{"$f":"IF(E106=5,TRUE,FALSE)","v":false},""]
[null,null,null,null,null,{"$f":"IF(E106=6,TRUE,FALSE)","v":false},""]
[null,"Actions to achieve maximum resilience","Responsible institution","Timescale",null,null,""]
[null,null,null,null,null,null,""]
[null,null,null,null,null,null,""]
[null,"3.4.2 - Incitations aux organisations non lucratives, pour améliorer la résilience aux catastrophesles plans de catastrophes, locaux, etc",null,null,null,null,"3.4.2"]
[null,"Question","Comments",null,null,null,""]
[null,null,null,null,null,null,""]
[null,"Response","Provide means of verification (explanation and evidence)",null,null,null,""]
[null,null,null,null,null,{"$f":"IF(E119=1,TRUE,FALSE)","v":false},""]
[null,null,null,null,null,{"$f":"IF(E119=2,TRUE,FALSE)","v":false},""]
[null,null,null,null,null,{"$f":"IF(E119=3,TRUE,FALSE)","v":false},""]
[null,null,null,null,null,{"$f":"IF(E119=4,TRUE,FALSE)","v":false},""]
[null,null,null,null,null,{"$f":"IF(E119=5,TRUE,FALSE)","v":false},""]
[null,null,null,null,null,{"$f":"IF(E119=6,TRUE,FALSE)","v":false},""]
[null,"Actions to achieve maximum resilience","Responsible institution","Timescale",null,null,""]
[null,null,null,null,null,null,""]
[null,null,null,null,null,null,""]
[null,"3.4.3 - Incitations aux propriétaires de logements, pour améliorer la résilience aux catastrophesles plans de catastrophes, locaux, etc",null,null,null,null,"3.4.3"]
[null,"Question","Comments",null,null,null,""]
[null,null,null,null,null,null,""]
[null,"Response","Provide means of verification (explanation and evidence)",null,null,null,""]
[null,null,null,null,null,{"$f":"IF(E132=1,TRUE,FALSE)","v":false},""]
[null,null,null,null,null,{"$f":"IF(E132=2,TRUE,FALSE)","v":false},""]
[null,null,null,null,null,{"$f":"IF(E132=3,TRUE,FALSE)","v":false},""]
[null,null,null,null,null,{"$f":"IF(E132=4,TRUE,FALSE)","v":false},""]
[null,null,null,null,null,{"$f":"IF(E132=5,TRUE,FALSE)","v":false},""]
[null,null,null,null,null,{"$f":"IF(E132=6,TRUE,FALSE)","v":false},""]
[null,"Actions to achieve maximum resilience","Responsible institution","Timescale",null,null,""]
[null,null,null,null,null,null,""]
[null,null,null,null,null,null,""]
[null,null,null,null,null,null,""]
[null,null,null,null,null,null,""]
[null,null,null,null,null,null,""]
[null,null,null,null,null,null,""]
[null,null,null,null,null,null,""]
[null,null,null,null,null,null,""]
[null,null,null,null,null,null,""]
[null,null,null,null,null,null,""]
[null,null,null,null,null,null,""]
[null,null,null,null,null,null,""]
[null,null,null,null,null,null,""]
[null,null,null,null,null,null,""]
[null,null,null,null,null,null,""]
[null,null,null,null,null,null,""]
[null,null,null,null,null,null,""]
[null,null,null,null,null,null,""]
[null,null,null,null,null,null,""]
[null,null,null,null,null,null,""]
[null,null,null,null,null,null,""]
[null,null,null,null,null,null,""]
[null,null,null,null,null,null,""]
[null,null,null,null,null,null,""]
[null,null,null,null,null,null,""]
[null,null,null,null,null,null,""]
[null,null,null,null,null,null,""]
[null,null,null,null,null,null,""]
[null,null,null,null,null,null,""]
[null,null,null,null,null,null,""]
[null,null,null,null,null,null,""]
[null,null,null,null,null,null,""]
[null,null,null,null,null,null,""]
[null,null,null,null,null,null,""]
[null,null,null,null,null,null,""]
[null,null,null,null,null,null,""]
[null,null,null,null,null,null,""]
[null,null,null,null,null,null,""]
[null,null,null,null,null,null,""]
[null,null,null,null,null,null,""]
[null,null,null,null,null,null,""]
[null,null,null,null,null,null,""]
[null,null,null,null,null,null,""]
[null,null,null,null,null,null,""]
[null,null,null,null,null,null,""]
[null,null,null,null,null,null,""]
[null,null,null,null,null,null,""]
[null,null,null,null,null,null,""]
[null,null,null,null,null,null,""]
[null,null,null,null,null,null,""]
[null,null,null,null,null,null,""]
[null,null,null,null,null,null,""]
[null,null,null,null,null,null,""]
[null,null,null,null,null,null,""]
[null,null,null,null,null,null,""]
[null,null,null,null,null,null,""]
[null,null,null,null,null,null,""]
[null,null,null,null,null,null,""]
[null,null,null,null,null,null,""]
[null,null,null,null,null,null,""]
[null,null,null,null,null,null,""]
[null,null,null,null,null,null,""]
[null,null,null,null,null,null,""]
[null,null,null,null,null,null,""]
[null,null,null,null,null,null,""]
[null,null,null,null,null,null,""]
[null,null,null,null,null,null,""]
[null,null,null,null,null,null,""]
[null,null,null,null,null,null,""]
[null,null,null,null,null,null,""]
[null,null,null,null,null,null,""]
[null,null,null,null,null,null,""]
[null,null,null,null,null,null,""]
[null,null,null,null,null,null,""]
[null,null,null,null,null,null,""]
[null,null,null,null,null,null,""]
[null,null,null,null,null,null,""]
[null,null,null,null,null,null,""]
[null,null,null,null,null,null,""]
[null,null,null,null,null,null,""]
[null,null,null,null,null,null,""]
[null,null,null,null,null,null,""]
[null,null,null,null,null,null,""]
[null,null,null,null,null,null,""]
[null,null,null,null,null,null,""]
[null,null,null,null,null,null,""]
[null,null,null,null,null,null,""]
[null,null,null,null,null,null,""]
[null,null,null,null,null,null,""]
[null,null,null,null,null,null,""]
[null,null,null,null,null,null,""]
[null,null,null,null,null,null,""]
[null,null,null,null,null,null,""]
[null,null,null,null,null,null,""]
[null,null,null,null,null,null,""]
[null,null,null,null,null,null,""]
[null,null,null,null,null,null,""]
[null,null,null,null,null,null,""]
[null,null,null,null,null,null,""]
[null,null,null,null,null,null,""]
[null,null,null,null,null,null,""]
[null,null,null,null,null,null,""]
[null,null,null,null,null,null,""]
[null,null,null,null,null,null,""]
[null,null,null,null,null,null,""]
[null,null,null,null,null,null,""]
[null,null,null,null,null,null,""]
[null,null,null,null,null,null,""]
[null,null,null,null,null,null,""]
[null,null,null,null,null,null,""]
[null,null,null,null,null,null,""]
[null,null,null,null,null,null,""]
[null,null,null,null,null,null,""]
[null,null,null,null,null,null,""]
[null,null,null,null,null,null,""]
[null,null,null,null,null,null,""]
[null,null,null,null,null,null,""]
[null,null,null,null,null,null,""]
[null,null,null,null,null,null,""]
[null,null,null,null,null,null,""]
[null,null,null,null,null,null,""]
[null,null,null,null,null,null,""]
[null,null,null,null,null,null,""]
[null,null,null,null,null,null,""]
[null,null,null,null,null,null,""]
[null,null,null,null,null,null,""]
[null,null,null,null,null,null,""]
[null,null,null,null,null,null,""]
[null,null,null,null,null,null,""]
[null,null,null,null,null,null,""]
[null,null,null,null,null,null,""]
[null,null,null,null,null,null,""]
[null,null,null,null,null,null,""]
[null,null,null,null,null,null,""]
[null,null,null,null,null,null,""]
[null,null,null,null,null,null,""]
[null,null,null,null,null,null,""]
[null,null,null,null,null,null,""]
[null,null,null,null,null,null,""]
[null,null,null,null,null,null,""]
[null,null,null,null,null,null,""]
[null,null,null,null,null,null,""]
[null,null,null,null,null,null,""]
[null,null,null,null,null,null,""]
[null,null,null,null,null,null,""]
[null,null,null,null,null,null,""]
[null,null,null,null,null,null,""]
[null,null,null,null,null,null,""]
[null,null,null,null,null,null,""]
[null,null,null,null,null,null,""]
[null,null,null,null,null,null,""]
[null,null,null,null,null,null,""]
[null,null,null,null,null,null,""]
[null,null,null,null,null,null,""]
[null,null,null,null,null,null,""]
[null,null,null,null,null,null,""]
[null,null,null,null,null,null,""]
[null,null,null,null,null,null,""]
[null,null,null,null,null,null,""]
[null,null,null,null,null,null,""]
[null,null,null,null,null,null,""]
[null,null,null,null,null,null,""]
[null,null,null,null,null,null,""]
[null,null,null,null,null,null,""]
[null,null,null,null,null,null,""]
[null,null,null,null,null,null,""]
[null,null,null,null,null,null,""]
[null,null,null,null,null,null,""]
[null,null,null,null,null,null,""]
[null,null,null,null,null,null,""]
[null,null,null,null,null,null,""]
[null,null,null,null,null,null,""]
[null,null,null,null,null,null,""]
[null,null,null,null,null,null,""]
[null,null,null,null,null,null,""]
[null,null,null,null,null,null,""]
[null,null,null,null,null,null,""]
[null,null,null,null,null,null,""]
[null,null,null,null,null,null,""]
[null,null,null,null,null,null,""]
[null,null,null,null,null,null,""]
[null,null,null,null,null,null,""]
[null,null,null,null,null,null,""]
[null,null,null,null,null,null,""]
[null,null,null,null,null,null,""]
[null,null,null,null,null,null,""]
[null,null,null,null,null,null,""]
[null,null,null,null,null,null,""]
[null,null,null,null,null,null,""]
[null,null,null,null,null,null,""]
[null,null,null,null,null,null,""]
[null,null,null,null,null,null,""]
[null,null,null,null,null,null,""]
[null,null,null,null,null,null,""]
[null,null,null,null,null,null,""]
[null,null,null,null,null,null,""]
[null,null,null,null,null,null,""]
[null,null,null,null,null,null,""]
[null,null,null,null,null,null,""]
[null,null,null,null,null,null,""]
[null,null,null,null,null,null,""]
[null,null,null,null,null,null,""]
[null,null,null,null,null,null,""]
[null,null,null,null,null,null,""]
[null,null,null,null,null,null,""]
[null,null,null,null,null,null,""]
[null,null,null,null,null,null,""]
[null,null,null,null,null,null,""]
[null,null,null,null,null,null,""]
[null,null,null,null,null,null,""]
[null,null,null,null,null,null,""]
[null,null,null,null,null,null,""]
[null,null,null,null,null,null,""]
[null,null,null,null,null,null,""]
[null,null,null,null,null,null,""]
[null,null,null,null,null,null,""]
[null,null,null,null,null,null,""]
[null,null,null,null,null,null,""]
[null,null,null,null,null,null,""]
[null,null,null,null,null,null,""]
[null,null,null,null,null,null,""]
[null,null,null,null,null,null,""]
[null,null,null,null,null,null,""]
[null,null,null,null,null,null,""]
[null,null,null,null,null,null,""]
[null,null,null,null,null,null,""]
[null,null,null,null,null,null,""]
[null,null,null,null,null,null,""]
[null,null,null,null,null,null,""]
[null,null,null,null,null,null,""]
[null,null,null,null,null,null,""]
[null,null,null,null,null,null,""]
[null,null,null,null,null,null,""]
[null,null,null,null,null,null,""]
[null,null,null,null,null,null,""]
[null,null,null,null,null,null,""]
[null,null,null,null,null,null,""]
[null,null,null,null,null,null,""]
[null,null,null,null,null,null,""]
[null,null,null,null,null,null,""]
[null,null,null,null,null,null,""]
[null,null,null,null,null,null,""]
[null,null,null,null,null,null,""]
[null,null,null,null,null,null,""]
[null,null,null,null,null,null,""]
[null,null,null,null,null,null,""]
[null,null,null,null,null,null,""]
[null,null,null,null,null,null,""]
[null,null,null,null,null,null,""]
[null,null,null,null,null,null,""]
[null,null,null,null,null,null,""]
[null,null,null,null,null,null,""]
[null,null,null,null,null,null,""]
[null,null,null,null,null,null,""]
[null,null,null,null,null,null,""]
[null,null,null,null,null,null,""]
[null,null,null,null,null,null,""]
[null,null,null,null,null,null,""]
[null,null,null,null,null,null,""]
[null,null,null,null,null,null,""]
[null,null,null,null,null,null,""]
[null,null,null,null,null,null,""]
[null,null,null,null,null,null,""]
[null,null,null,null,null,null,""]
[null,null,null,null,null,null,""]
[null,null,null,null,null,null,""]
[null,null,null,null,null,null,""]
[null,null,null,null,null,null,""]
[null,null,null,null,null,null,""]
[null,null,null,null,null,null,""]
[null,null,null,null,null,null,""]
[null,null,null,null,null,null,""]
[null,null,null,null,null,null,""]
[null,null,null,null,null,null,""]
[null,null,null,null,null,null,""]
[null,null,null,null,null,null,""]
[null,null,null,null,null,null,""]
[null,null,null,null,null,null,""]
[null,null,null,null,null,null,""]
[null,null,null,null,null,null,""]
[null,null,null,null,null,null,""]
[null,null,null,null,null,null,""]
[null,null,null,null,null,null,""]
[null,null,null,null,null,null,""]
[null,null,null,null,null,null,""]
[null,null,null,null,null,null,""]
[null,null,null,null,null,null,""]
[null,null,null,null,null,null,""]
[null,null,null,null,null,null,""]
[null,null,null,null,null,null,""]
[null,null,null,null,null,null,""]
[null,null,null,null,null,null,""]
[null,null,null,null,null,null,""]
[null,null,null,null,null,null,""]
[null,null,null,null,null,null,""]
[null,null,null,null,null,null,""]
[null,null,null,null,null,null,""]
[null,null,null,null,null,null,""]
[null,null,null,null,null,null,""]
[null,null,null,null,null,null,""]
[null,null,null,null,null,null,""]
[null,null,null,null,null,null,""]
[null,null,null,null,null,null,""]
[null,null,null,null,null,null,""]
[null,null,null,null,null,null,""]
[null,null,null,null,null,null,""]
[null,null,null,null,null,null,""]
[null,null,null,null,null,null,""]
[null,null,null,null,null,null,""]
[null,null,null,null,null,null,""]
[null,null,null,null,null,null,""]
[null,null,null,null,null,null,""]
[null,null,null,null,null,null,""]
[null,null,null,null,null,null,""]
[null,null,null,null,null,null,""]
[null,null,null,null,null,null,""]
[null,null,null,null,null,null,""]
[null,null,null,null,null,null,""]
[null,null,null,null,null,null,""]
[null,null,null,null,null,null,""]
[null,null,null,null,null,null,""]
[null,null,null,null,null,null,""]
[null,null,null,null,null,null,""]
[null,null,null,null,null,null,""]
[null,null,null,null,null,null,""]
[null,null,null,null,null,null,""]
[null,null,null,null,null,null,""]
[null,null,null,null,null,null,""]
[null,null,null,null,null,null,""]
[null,null,null,null,null,null,""]
[null,null,null,null,null,null,""]
[null,null,null,null,null,null,""]
[null,null,null,null,null,null,""]
[null,null,null,null,null,null,""]
[null,null,null,null,null,null,""]
[null,null,null,null,null,null,""]
[null,null,null,null,null,null,""]
[null,null,null,null,null,null,""]
[null,null,null,null,null,null,""]
[null,null,null,null,null,null,""]
[null,null,null,null,null,null,""]
[null,null,null,null,null,null,""]
[null,null,null,null,null,null,""]
[null,null,null,null,null,null,""]
[null,null,null,null,null,null,""]
[null,null,null,null,null,null,""]
[null,null,null,null,null,null,""]
[null,null,null,null,null,null,""]
[null,null,null,null,null,null,""]
[null,null,null,null,null,null,""]
[null,null,null,null,null,null,""]
[null,null,null,null,null,null,""]
[null,null,null,null,null,null,""]
[null,null,null,null,null,null,""]
[null,null,null,null,null,null,""]
[null,null,null,null,null,null,""]
[null,null,null,null,null,null,""]
[null,null,null,null,null,null,""]
[null,null,null,null,null,null,""]
[null,null,null,null,null,null,""]
[null,null,null,null,null,null,""]
[null,null,null,null,null,null,""]
[null,null,null,null,null,null,""]
[null,null,null,null,null,null,""]
[null,null,null,null,null,null,""]
[null,null,null,null,null,null,""]
[null,null,null,null,null,null,""]
[null,null,null,null,null,null,""]
[null,null,null,null,null,null,""]
[null,null,null,null,null,null,""]
[null,null,null,null,null,null,""]
[null,null,null,null,null,null,""]
[null,null,null,null,null,null,""]
[null,null,null,null,null,null,""]
[null,null,null,null,null,null,""]
[null,null,null,null,null,null,""]
[null,null,null,null,null,null,""]
[null,null,null,null,null,null,""]
[null,null,null,null,null,null,""]
[null,null,null,null,null,null,""]
[null,null,null,null,null,null,""]
[null,null,null,null,null,null,""]
[null,null,null,null,null,null,""]
[null,null,null,null,null,null,""]
[null,null,null,null,null,null,""]
[null,null,null,null,null,null,""]
[null,null,null,null,null,null,""]
[null,null,null,null,null,null,""]
[null,null,null,null,null,null,""]
[null,null,null,null,null,null,""]
[null,null,null,null,null,null,""]
[null,null,null,null,null,null,""]
[null,null,null,null,null,null,""]
[null,null,null,null,null,null,""]
[null,null,null,null,null,null,""]
[null,null,null,null,null,null,""]
[null,null,null,null,null,null,""]
[null,null,null,null,null,null,""]
[null,null,null,null,null,null,""]
[null,null,null,null,null,null,""]
[null,null,null,null,null,null,""]
[null,null,null,null,null,null,""]
[null,null,null,null,null,null,""]
[null,null,null,null,null,null,""]
[null,null,null,null,null,null,""]
[null,null,null,null,null,null,""]
[null,null,null,null,null,null,""]
[null,null,null,null,null,null,""]
[null,null,null,null,null,null,""]
[null,null,null,null,null,null,""]
[null,null,null,null,null,null,""]
[null,null,null,null,null,null,""]
[null,null,null,null,null,null,""]
[null,null,null,null,null,null,""]
[null,null,null,null,null,null,""]
[null,null,null,null,null,null,""]
[null,null,null,null,null,null,""]
[null,null,null,null,null,null,""]
[null,null,null,null,null,null,""]
[null,null,null,null,null,null,""]
[null,null,null,null,null,null,""]
[null,null,null,null,null,null,""]
[null,null,null,null,null,null,""]
[null,null,null,null,null,null,""]
[null,null,null,null,null,null,""]
[null,null,null,null,null,null,""]
[null,null,null,null,null,null,""]
[null,null,null,null,null,null,""]
[null,null,null,null,null,null,""]
[null,null,null,null,null,null,""]
[null,null,null,null,null,null,""]
[null,null,null,null,null,null,""]
[null,null,null,null,null,null,""]
[null,null,null,null,null,null,""]
[null,null,null,null,null,null,""]
[null,null,null,null,null,null,""]
[null,null,null,null,null,null,""]
[null,null,null,null,null,null,""]
[null,null,null,null,null,null,""]
[null,null,null,null,null,null,""]
[null,null,null,null,null,null,""]
[null,null,null,null,null,null,""]
[null,null,null,null,null,null,""]
[null,null,null,null,null,null,""]
[null,null,null,null,null,null,""]
[null,null,null,null,null,null,""]
[null,null,null,null,null,null,""]
[null,null,null,null,null,null,""]
[null,null,null,null,null,null,""]
[null,null,null,null,null,null,""]
[null,null,null,null,null,null,""]
[null,null,null,null,null,null,""]
[null,null,null,null,null,null,""]
[null,null,null,null,null,null,""]
[null,null,null,null,null,null,""]
[null,null,null,null,null,null,""]
[null,null,null,null,null,null,""]
[null,null,null,null,null,null,""]
[null,null,null,null,null,null,""]
[null,null,null,null,null,null,""]
[null,null,null,null,null,null,""]
[null,null,null,null,null,null,""]
[null,null,null,null,null,null,""]
[null,null,null,null,null,null,""]
[null,null,null,null,null,null,""]
[null,null,null,null,null,null,""]
[null,null,null,null,null,null,""]
[null,null,null,null,null,null,""]
[null,null,null,null,null,null,""]
[null,null,null,null,null,null,""]
[null,null,null,null,null,null,""]
[null,null,null,null,null,null,""]
[null,null,null,null,null,null,""]
[null,null,null,null,null,null,""]
[null,null,null,null,null,null,""]
[null,null,null,null,null,null,""]
[null,null,null,null,null,null,""]
[null,null,null,null,null,null,""]
[null,null,null,null,null,null,""]
[null,null,null,null,null,null,""]
[null,null,null,null,null,null,""]
[null,null,null,null,null,null,""]
[null,null,null,null,null,null,""]
[null,null,null,null,null,null,""]
[null,null,null,null,null,null,""]
[null,null,null,null,null,null,""]
[null,null,null,null,null,null,""]
[null,null,null,null,null,null,""]
[null,null,null,null,null,null,""]
[null,null,null,null,null,null,""]
[null,null,null,null,null,null,""]
[null,null,null,null,null,null,""]
[null,null,null,null,null,null,""]
[null,null,null,null,null,null,""]
[null,null,null,null,null,null,""]
[null,null,null,null,null,null,""]
[null,null,null,null,null,null,""]
[null,null,null,null,null,null,""]
[null,null,null,null,null,null,""]
[null,null,null,null,null,null,""]
[null,null,null,null,null,null,""]
[null,null,null,null,null,null,""]
[null,null,null,null,null,null,""]
[null,null,null,null,null,null,""]
[null,null,null,null,null,null,""]
[null,null,null,null,null,null,""]
[null,null,null,null,null,null,""]
[null,null,null,null,null,null,""]
[null,null,null,null,null,null,""]
[null,null,null,null,null,null,""]
[null,null,null,null,null,null,""]
[null,null,null,null,null,null,""]
[null,null,null,null,null,null,""]
[null,null,null,null,null,null,""]
[null,null,null,null,null,null,""]
[null,null,null,null,null,null,""]
[null,null,null,null,null,null,""]
[null,null,null,null,null,null,""]
[null,null,null,null,null,null,""]
[null,null,null,null,null,null,""]
[null,null,null,null,null,null,""]
[null,null,null,null,null,null,""]
[null,null,null,null,null,null,""]
[null,null,null,null,null,null,""]
[null,null,null,null,null,null,""]
[null,null,null,null,null,null,""]

{"sheet":"E04","index":6,"n_rows":664,"n_cols":7,"rows_kept":664,"cut":false,"hidden":false,"merged":[[128,2,128,3],[129,2,129,3],[130,2,130,3],[131,2,136,3],[115,2,115,3],[116,2,116,3],[117,2,117,3],[118,2,123,3],[127,1,127,3],[100,2,100,3],[101,2,101,3],[102,2,102,3],[103,2,108,3],[114,1,114,3],[87,2,87,3],[88,2,88,3],[89,2,89,3],[90,2,95,3],[99,1,99,3],[74,2,74,3],[75,2,75,3],[76,2,76,3],[77,2,82,3],[86,1,86,3],[59,2,59,3],[60,2,60,3],[61,2,61,3],[62,2,67,3],[73,1,73,3],[44,2,44,3],[45,2,45,3],[46,2,46,3],[47,2,52,3],[58,1,58,3],[31,2,31,3],[32,2,32,3],[33,2,33,3],[34,2,39,3],[43,1,43,3],[5,2,5,3],[4,1,4,3],[6,2,6,3],[7,2,7,3],[8,2,13,3],[30,1,30,3],[17,1,17,3],[18,2,18,3],[19,2,19,3],[20,2,20,3],[21,2,26,3]]}
[]
[null,null,null,null,null,null,""]
[null,"4.1 - Zonage des terres",null,null,null,null,"4.1"]
[null,null,null,null,null,null,""]
[null,"4.1.1 - Possibilité de déplacement de la population",null,null,null,null,"4.1.1"]
[null,"Question","Comments",null,null,null,""]
[null,null,null,null,null,null,""]
[null,"Response","Provide means of verification (explanation and evidence)",null,null,null,""]
[null,null,null,null,null,{"$f":"IF(E9=1,TRUE,FALSE)","v":false},""]
[null,null,null,null,null,{"$f":"IF(E9=2,TRUE,FALSE)","v":false},""]
[null,null,null,null,null,{"$f":"IF(E9=3,TRUE,FALSE)","v":false},""]
[null,null,null,null,null,{"$f":"IF(E9=4,TRUE,FALSE)","v":false},""]
[null,null,null,null,null,{"$f":"IF(E9=5,TRUE,FALSE)","v":false},""]
[null,null,null,null,null,{"$f":"IF(E9=6,TRUE,FALSE)","v":false},""]
[null,"Actions to achieve maximum resilience","Responsible institution","Timescale",null,null,""]
[null,null,null,null,null,null,""]
[null,null,null,null,null,null,""]
[null,"4.1.2 - Activité économique dans le risque",null,null,null,null,"4.1.2"]
[null,"Question","Comments",null,null,null,""]
[null,null,null,null,null,null,""]
[null,"Response","Provide means of verification (explanation and evidence)",null,null,null,""]
[null,null,null,null,null,{"$f":"IF(E22=1,TRUE,FALSE)","v":false},""]
[null,null,null,null,null,{"$f":"IF(E22=2,TRUE,FALSE)","v":false},""]
[null,null,null,null,null,{"$f":"IF(E22=3,TRUE,FALSE)","v":false},""]
[null,null,null,null,null,{"$f":"IF(E22=4,TRUE,FALSE)","v":false},""]
[null,null,null,null,null,{"$f":"IF(E22=5,TRUE,FALSE)","v":false},""]
[null,null,null,null,null,{"$f":"IF(E22=6,TRUE,FALSE)","v":false},""]
[null,"Actions to achieve maximum resilience","Responsible institution","Timescale",null,null,""]
[null,null,null,null,null,null,""]
[null,null,null,null,null,null,""]
[null,"4.1.2.1 - Activité économique dans le risque",null,null,null,null,"4.1.2.1"]
[null,"Question","Comments",null,null,null,""]
[null,null,null,null,null,null,""]
[null,"Response","Provide means of verification (explanation and evidence)",null,null,null,""]
[null,null,null,null,null,{"$f":"IF(E35=1,TRUE,FALSE)","v":false},""]
[null,null,null,null,null,{"$f":"IF(E35=2,TRUE,FALSE)","v":false},""]
[null,null,null,null,null,{"$f":"IF(E35=3,TRUE,FALSE)","v":false},""]
[null,null,null,null,null,{"$f":"IF(E35=4,TRUE,FALSE)","v":false},""]
[null,null,null,null,null,{"$f":"IF(E35=5,TRUE,FALSE)","v":false},""]
[null,null,null,null,null,{"$f":"IF(E35=6,TRUE,FALSE)","v":false},""]
[null,"Actions to achieve maximum resilience","Responsible institution","Timescale",null,null,""]
[null,null,null,null,null,null,""]
[null,null,null,null,null,null,""]
[null,"4.1.3 - Terres agricoles dans le risque",null,null,null,null,"4.1.3"]
[null,"Question","Comments",null,null,null,""]
[null,null,null,null,null,null,""]
[null,"Response","Provide means of verification (explanation and evidence)",null,null,null,""]
[null,null,null,null,null,{"$f":"IF(E48=1,TRUE,FALSE)","v":false},""]
[null,null,null,null,null,{"$f":"IF(E48=2,TRUE,FALSE)","v":false},""]
[null,null,null,null,null,{"$f":"IF(E48=3,TRUE,FALSE)","v":false},""]
[null,null,null,null,null,{"$f":"IF(E48=4,TRUE,FALSE)","v":false},""]
[null,null,null,null,null,{"$f":"IF(E48=5,TRUE,FALSE)","v":false},""]
[null,null,null,null,null,{"$f":"IF(E48=6,TRUE,FALSE)","v":false},""]
[null,"Actions to achieve maximum resilience","Responsible institution","Timescale",null,null,""]
[null,null,null,null,null,null,""]
[null,null,null,null,null,null,""]
[null,"4.2 - Nouveau développement urbain",null,null,null,null,"4.2"]
[null,null,null,null,null,null,""]
[null,"4.2.1 - Les solutions du design urbain favorisant la résilience",null,null,null,null,"4.2.1"]
[null,"Question","Comments",null,null,null,""]
[null,null,null,null,null,null,""]
[null,"Response","Provide means of verification (explanation and evidence)",null,null,null,""]
[null,null,null,null,null,{"$f":"IF(E63=1,TRUE,FALSE)","v":false},""]
[null,null,null,null,null,{"$f":"IF(E63=2,TRUE,FALSE)","v":false},""]
[null,null,null,null,null,{"$f":"IF(E63=3,TRUE,FALSE)","v":false},""]
[null,null,null,null,null,{"$f":"IF(E63=4,TRUE,FALSE)","v":false},""]
[null,null,null,null,null,{"$f":"IF(E63=5,TRUE,FALSE)","v":false},""]
[null,null,null,null,null,{"$f":"IF(E63=6,TRUE,FALSE)","v":false},""]
[null,"Actions to achieve maximum resilience","Responsible institution","Timescale",null,null,""]
[null,null,null,null,null,null,""]
[null,null,null,null,null,null,""]
[null,"4.3 - Les codes et les normes de construction",null,null,null,null,"4.3"]
[null,null,null,null,null,null,""]
[null,"4.3.1 - Existence des codes de construction conçus pour traiter les risques identifiés dans l’Essentiel 2.",null,null,null,null,"4.3.1"]
[null,"Question","Comments",null,null,null,""]
[null,null,null,null,null,null,""]
[null,"Response","Provide means of verification (explanation and evidence)",null,null,null,""]
[null,null,null,null,null,{"$f":"IF(E78=1,TRUE,FALSE)","v":false},""]
[null,null,null,null,null,{"$f":"IF(E78=2,TRUE,FALSE)","v":false},""]
[null,null,null,null,null,{"$f":"IF(E78=3,TRUE,FALSE)","v":false},""]
[null,null,null,null,null,{"$f":"IF(E78=4,TRUE,FALSE)","v":false},""]
[null,null,null,null,null,{"$f":"IF(E78=5,TRUE,FALSE)","v":false},""]
[null,null,null,null,null,{"$f":"IF(E78=6,TRUE,FALSE)","v":false},""]
[null,"Actions to achieve maximum resilience","Responsible institution","Timescale",null,null,""]
[null,null,null,null,null,null,""]
[null,null,null,null,null,null,""]
[null,"4.3.2 - Mise au jour des codes de construction",null,null,null,null,"4.3.2"]
[null,"Question","Comments",null,null,null,""]
[null,null,null,null,null,null,""]
[null,"Response","Provide means of verification (explanation and evidence)",null,null,null,""]
[null,null,null,null,null,{"$f":"IF(E91=1,TRUE,FALSE)","v":false},""]
[null,null,null,null,null,{"$f":"IF(E91=2,TRUE,FALSE)","v":false},""]
[null,null,null,null,null,{"$f":"IF(E91=3,TRUE,FALSE)","v":false},""]
[null,null,null,null,null,{"$f":"IF(E91=4,TRUE,FALSE)","v":false},""]
[null,null,null,null,null,{"$f":"IF(E91=5,TRUE,FALSE)","v":false},""]
[null,null,null,null,null,{"$f":"IF(E91=6,TRUE,FALSE)","v":false},""]
[null,"Actions to achieve maximum resilience","Responsible institution","Timescale",null,null,""]
[null,null,null,null,null,null,""]
[null,null,null,null,null,null,""]
[null,"4.3.3 - Les normes de la conception architecturale durables",null,null,null,null,"4.3.3"]
[null,"Question","Comments",null,null,null,""]
[null,null,null,null,null,null,""]
[null,"Response","Provide means of verification (explanation and evidence)",null,null,null,""]
[null,null,null,null,null,{"$f":"IF(E104=1,TRUE,FALSE)","v":false},""]
[null,null,null,null,null,{"$f":"IF(E104=2,TRUE,FALSE)","v":false},""]
[null,null,null,null,null,{"$f":"IF(E104=3,TRUE,FALSE)","v":false},""]
[null,null,null,null,null,{"$f":"IF(E104=4,TRUE,FALSE)","v":false},""]
[null,null,null,null,null,{"$f":"IF(E104=5,TRUE,FALSE)","v":false},""]
[null,null,null,null,null,{"$f":"IF(E104=6,TRUE,FALSE)","v":false},""]
[null,"Actions to achieve maximum resilience","Responsible institution","Timescale",null,null,""]
[null,null,null,null,null,null,""]
[null,null,null,null,null,null,""]
[null,"4.4 - Application du zonage et des codes et normes de construction",null,null,null,null,"4.4"]
[null,null,null,null,null,null,""]
[null,"4.4.1 - Application du zonage pour l’exploitation des terres",null,null,null,null,"4.4.1"]
[null,"Question","Comments",null,null,null,""]
[null,null,null,null,null,null,""]
[null,"Response","Provide means of verification (explanation and evidence)",null,null,null,""]
[null,null,null,null,null,{"$f":"IF(E119=1,TRUE,FALSE)","v":false},""]
[null,null,null,null,null,{"$f":"IF(E119=2,TRUE,FALSE)","v":false},""]
[null,null,null,null,null,{"$f":"IF(E119=3,TRUE,FALSE)","v":false},""]
[null,null,null,null,null,{"$f":"IF(E119=4,TRUE,FALSE)","v":false},""]
[null,null,null,null,null,{"$f":"IF(E119=5,TRUE,FALSE)","v":false},""]
[null,null,null,null,null,{"$f":"IF(E119=6,TRUE,FALSE)","v":false},""]
[null,"Actions to achieve maximum resilience","Responsible institution","Timescale",null,null,""]
[null,null,null,null,null,null,""]
[null,null,null,null,null,null,""]
[null,"4.4.2 - Application des codes de construction",null,null,null,null,"4.4.2"]
[null,"Question","Comments",null,null,null,""]
[null,null,null,null,null,null,""]
[null,"Response","Provide means of verification (explanation and evidence)",null,null,null,""]
[null,null,null,null,null,{"$f":"IF(E132=1,TRUE,FALSE)","v":false},""]
[null,null,null,null,null,{"$f":"IF(E132=2,TRUE,FALSE)","v":false},""]
[null,null,null,null,null,{"$f":"IF(E132=3,TRUE,FALSE)","v":false},""]
[null,null,null,null,null,{"$f":"IF(E132=4,TRUE,FALSE)","v":false},""]
[null,null,null,null,null,{"$f":"IF(E132=5,TRUE,FALSE)","v":false},""]
[null,null,null,null,null,{"$f":"IF(E132=6,TRUE,FALSE)","v":false},""]
[null,"Actions to achieve maximum resilience","Responsible institution","Timescale",null,null,""]
[null,null,null,null,null,null,""]
[null,null,null,null,null,null,""]
[null,null,null,null,null,null,""]
[null,null,null,null,null,null,""]
[null,null,null,null,null,null,""]
[null,null,null,null,null,null,""]
[null,null,null,null,null,null,""]
[null,null,null,null,null,null,""]
[null,null,null,null,null,null,""]
[null,null,null,null,null,null,""]
[null,null,null,null,null,null,""]
[null,null,null,null,null,null,""]
[null,null,null,null,null,null,""]
[null,null,null,null,null,null,""]
[null,null,null,null,null,null,""]
[null,null,null,null,null,null,""]
[null,null,null,null,null,null,""]
[null,null,null,null,null,null,""]
[null,null,null,null,null,null,""]
[null,null,null,null,null,null,""]
[null,null,null,null,null,null,""]
[null,null,null,null,null,null,""]
[null,null,null,null,null,null,""]
[null,null,null,null,null,null,""]
[null,null,null,null,null,null,""]
[null,null,null,null,null,null,""]
[null,null,null,null,null,null,""]
[null,null,null,null,null,null,""]
[null,null,null,null,null,null,""]
[null,null,null,null,null,null,""]
[null,null,null,null,null,null,""]
[null,null,null,null,null,null,""]
[null,null,null,null,null,null,""]
[null,null,null,null,null,null,""]
[null,null,null,null,null,null,""]
[null,null,null,null,null,null,""]
[null,null,null,null,null,null,""]
[null,null,null,null,null,null,""]
[null,null,null,null,null,null,""]
[null,null,null,null,null,null,""]
[null,null,null,null,null,null,""]
[null,null,null,null,null,null,""]
[null,null,null,null,null,null,""]
[null,null,null,null,null,null,""]
[null,null,null,null,null,null,""]
[null,null,null,null,null,null,""]
[null,null,null,null,null,null,""]
[null,null,null,null,null,null,""]
[null,null,null,null,null,null,""]
[null,null,null,null,null,null,""]
[null,null,null,null,null,null,""]
[null,null,null,null,null,null,""]
[null,null,null,null,null,null,""]
[null,null,null,null,null,null,""]
[null,null,null,null,null,null,""]
[null,null,null,null,null,null,""]
[null,null,null,null,null,null,""]
[null,null,null,null,null,null,""]
[null,null,null,null,null,null,""]
[null,null,null,null,null,null,""]
[null,null,null,null,null,null,""]
[null,null,null,null,null,null,""]
[null,null,null,null,null,null,""]
[null,null,null,null,null,null,""]
[null,null,null,null,null,null,""]
[null,null,null,null,null,null,""]
[null,null,null,null,null,null,""]
[null,null,null,null,null,null,""]
[null,null,null,null,null,null,""]
[null,null,null,null,null,null,""]
[null,null,null,null,null,null,""]
[null,null,null,null,null,null,""]
[null,null,null,null,null,null,""]
[null,null,null,null,null,null,""]
[null,null,null,null,null,null,""]
[null,null,null,null,null,null,""]
[null,null,null,null,null,null,""]
[null,null,null,null,null,null,""]
[null,null,null,null,null,null,""]
[null,null,null,null,null,null,""]
[null,null,null,null,null,null,""]
[null,null,null,null,null,null,""]
[null,null,null,null,null,null,""]
[null,null,null,null,null,null,""]
[null,null,null,null,null,null,""]
[null,null,null,null,null,null,""]
[null,null,null,null,null,null,""]
[null,null,null,null,null,null,""]
[null,null,null,null,null,null,""]
[null,null,null,null,null,null,""]
[null,null,null,null,null,null,""]
[null,null,null,null,null,null,""]
[null,null,null,null,null,null,""]
[null,null,null,null,null,null,""]
[null,null,null,null,null,null,""]
[null,null,null,null,null,null,""]
[null,null,null,null,null,null,""]
[null,null,null,null,null,null,""]
[null,null,null,null,null,null,""]
[null,null,null,null,null,null,""]
[null,null,null,null,null,null,""]
[null,null,null,null,null,null,""]
[null,null,null,null,null,null,""]
[null,null,null,null,null,null,""]
[null,null,null,null,null,null,""]
[null,null,null,null,null,null,""]
[null,null,null,null,null,null,""]
[null,null,null,null,null,null,""]
[null,null,null,null,null,null,""]
[null,null,null,null,null,null,""]
[null,null,null,null,null,null,""]
[null,null,null,null,null,null,""]
[null,null,null,null,null,null,""]
[null,null,null,null,null,null,""]
[null,null,null,null,null,null,""]
[null,null,null,null,null,null,""]
[null,null,null,null,null,null,""]
[null,null,null,null,null,null,""]
[null,null,null,null,null,null,""]
[null,null,null,null,null,null,""]
[null,null,null,null,null,null,""]
[null,null,null,null,null,null,""]
[null,null,null,null,null,null,""]
[null,null,null,null,null,null,""]
[null,null,null,null,null,null,""]
[null,null,null,null,null,null,""]
[null,null,null,null,null,null,""]
[null,null,null,null,null,null,""]
[null,null,null,null,null,null,""]
[null,null,null,null,null,null,""]
[null,null,null,null,null,null,""]
[null,null,null,null,null,null,""]
[null,null,null,null,null,null,""]
[null,null,null,null,null,null,""]
[null,null,null,null,null,null,""]
[null,null,null,null,null,null,""]
[null,null,null,null,null,null,""]
[null,null,null,null,null,null,""]
[null,null,null,null,null,null,""]
[null,null,null,null,null,null,""]
[null,null,null,null,null,null,""]
[null,null,null,null,null,null,""]
[null,null,null,null,null,null,""]
[null,null,null,null,null,null,""]
[null,null,null,null,null,null,""]
[null,null,null,null,null,null,""]
[null,null,null,null,null,null,""]
[null,null,null,null,null,null,""]
[null,null,null,null,null,null,""]
[null,null,null,null,null,null,""]
[null,null,null,null,null,null,""]
[null,null,null,null,null,null,""]
[null,null,null,null,null,null,""]
[null,null,null,null,null,null,""]
[null,null,null,null,null,null,""]
[null,null,null,null,null,null,""]
[null,null,null,null,null,null,""]
[null,null,null,null,null,null,""]
[null,null,null,null,null,null,""]
[null,null,null,null,null,null,""]
[null,null,null,null,null,null,""]
[null,null,null,null,null,null,""]
[null,null,null,null,null,null,""]
[null,null,null,null,null,null,""]
[null,null,null,null,null,null,""]
[null,null,null,null,null,null,""]
[null,null,null,null,null,null,""]
[null,null,null,null,null,null,""]
[null,null,null,null,null,null,""]
[null,null,null,null,null,null,""]
[null,null,null,null,null,null,""]
[null,null,null,null,null,null,""]
[null,null,null,null,null,null,""]
[null,null,null,null,null,null,""]
[null,null,null,null,null,null,""]
[null,null,null,null,null,null,""]
[null,null,null,null,null,null,""]
[null,null,null,null,null,null,""]
[null,null,null,null,null,null,""]
[null,null,null,null,null,null,""]
[null,null,null,null,null,null,""]
[null,null,null,null,null,null,""]
[null,null,null,null,null,null,""]
[null,null,null,null,null,null,""]
[null,null,null,null,null,null,""]
[null,null,null,null,null,null,""]
[null,null,null,null,null,null,""]
[null,null,null,null,null,null,""]
[null,null,null,null,null,null,""]
[null,null,null,null,null,null,""]
[null,null,null,null,null,null,""]
[null,null,null,null,null,null,""]
[null,null,null,null,null,null,""]
[null,null,null,null,null,null,""]
[null,null,null,null,null,null,""]
[null,null,null,null,null,null,""]
[null,null,null,null,null,null,""]
[null,null,null,null,null,null,""]
[null,null,null,null,null,null,""]
[null,null,null,null,null,null,""]
[null,null,null,null,null,null,""]
[null,null,null,null,null,null,""]
[null,null,null,null,null,null,""]
[null,null,null,null,null,null,""]
[null,null,null,null,null,null,""]
[null,null,null,null,null,null,""]
[null,null,null,null,null,null,""]
[null,null,null,null,null,null,""]
[null,null,null,null,null,null,""]
[null,null,null,null,null,null,""]
[null,null,null,null,null,null,""]
[null,null,null,null,null,null,""]
[null,null,null,null,null,null,""]
[null,null,null,null,null,null,""]
[null,null,null,null,null,null,""]
[null,null,null,null,null,null,""]
[null,null,null,null,null,null,""]
[null,null,null,null,null,null,""]
[null,null,null,null,null,null,""]
[null,null,null,null,null,null,""]
[null,null,null,null,null,null,""]
[null,null,null,null,null,null,""]
[null,null,null,null,null,null,""]
[null,null,null,null,null,null,""]
[null,null,null,null,null,null,""]
[null,null,null,null,null,null,""]
[null,null,null,null,null,null,""]
[null,null,null,null,null,null,""]
[null,null,null,null,null,null,""]
[null,null,null,null,null,null,""]
[null,null,null,null,null,null,""]
[null,null,null,null,null,null,""]
[null,null,null,null,null,null,""]
[null,null,null,null,null,null,""]
[null,null,null,null,null,null,""]
[null,null,null,null,null,null,""]
[null,null,null,null,null,null,""]
[null,null,null,null,null,null,""]
[null,null,null,null,null,null,""]
[null,null,null,null,null,null,""]
[null,null,null,null,null,null,""]
[null,null,null,null,null,null,""]
[null,null,null,null,null,null,""]
[null,null,null,null,null,null,""]
[null,null,null,null,null,null,""]
[null,null,null,null,null,null,""]
[null,null,null,null,null,null,""]
[null,null,null,null,null,null,""]
[null,null,null,null,null,null,""]
[null,null,null,null,null,null,""]
[null,null,null,null,null,null,""]
[null,null,null,null,null,null,""]
[null,null,null,null,null,null,""]
[null,null,null,null,null,null,""]
[null,null,null,null,null,null,""]
[null,null,null,null,null,null,""]
[null,null,null,null,null,null,""]
[null,null,null,null,null,null,""]
[null,null,null,null,null,null,""]
[null,null,null,null,null,null,""]
[null,null,null,null,null,null,""]
[null,null,null,null,null,null,""]
[null,null,null,null,null,null,""]
[null,null,null,null,null,null,""]
[null,null,null,null,null,null,""]
[null,null,null,null,null,null,""]
[null,null,null,null,null,null,""]
[null,null,null,null,null,null,""]
[null,null,null,null,null,null,""]
[null,null,null,null,null,null,""]
[null,null,null,null,null,null,""]
[null,null,null,null,null,null,""]
[null,null,null,null,null,null,""]
[null,null,null,null,null,null,""]
[null,null,null,null,null,null,""]
[null,null,null,null,null,null,""]
[null,null,null,null,null,null,""]
[null,null,null,null,null,null,""]
[null,null,null,null,null,null,""]
[null,null,null,null,null,null,""]
[null,null,null,null,null,null,""]
[null,null,null,null,null,null,""]
[null,null,null,null,null,null,""]
[null,null,null,null,null,null,""]
[null,null,null,null,null,null,""]
[null,null,null,null,null,null,""]
[null,null,null,null,null,null,""]
[null,null,null,null,null,null,""]
[null,null,null,null,null,null,""]
[null,null,null,null,null,null,""]
[null,null,null,null,null,null,""]
[null,null,null,null,null,null,""]
[null,null,null,null,null,null,""]
[null,null,null,null,null,null,""]
[null,null,null,null,null,null,""]
[null,null,null,null,null,null,""]
[null,null,null,null,null,null,""]
[null,null,null,null,null,null,""]
[null,null,null,null,null,null,""]
[null,null,null,null,null,null,""]
[null,null,null,null,null,null,""]
[null,null,null,null,null,null,""]
[null,null,null,null,null,null,""]
[null,null,null,null,null,null,""]
[null,null,null,null,null,null,""]
[null,null,null,null,null,null,""]
[null,null,null,null,null,null,""]
[null,null,null,null,null,null,""]
[null,null,null,null,null,null,""]
[null,null,null,null,null,null,""]
[null,null,null,null,null,null,""]
[null,null,null,null,null,null,""]
[null,null,null,null,null,null,""]
[null,null,null,null,null,null,""]
[null,null,null,null,null,null,""]
[null,null,null,null,null,null,""]
[null,null,null,null,null,null,""]
[null,null,null,null,null,null,""]
[null,null,null,null,null,null,""]
[null,null,null,null,null,null,""]
[null,null,null,null,null,null,""]
[null,null,null,null,null,null,""]
[null,null,null,null,null,null,""]
[null,null,null,null,null,null,""]
[null,null,null,null,null,null,""]
[null,null,null,null,null,null,""]
[null,null,null,null,null,null,""]
[null,null,null,null,null,null,""]
[null,null,null,null,null,null,""]
[null,null,null,null,null,null,""]
[null,null,null,null,null,null,""]
[null,null,null,null,null,null,""]
[null,null,null,null,null,null,""]
[null,null,null,null,null,null,""]
[null,null,null,null,null,null,""]
[null,null,null,null,null,null,""]
[null,null,null,null,null,null,""]
[null,null,null,null,null,null,""]
[null,null,null,null,null,null,""]
[null,null,null,null,null,null,""]
[null,null,null,null,null,null,""]
[null,null,null,null,null,null,""]
[null,null,null,null,null,null,""]
[null,null,null,null,null,null,""]
[null,null,null,null,null,null,""]
[null,null,null,null,null,null,""]
[null,null,null,null,null,null,""]
[null,null,null,null,null,null,""]
[null,null,null,null,null,null,""]
[null,null,null,null,null,null,""]
[null,null,null,null,null,null,""]
[null,null,null,null,null,null,""]
[null,null,null,null,null,null,""]
[null,null,null,null,null,null,""]
[null,null,null,null,null,null,""]
[null,null,null,null,null,null,""]
[null,null,null,null,null,null,""]
[null,null,null,null,null,null,""]
[null,null,null,null,null,null,""]
[null,null,null,null,null,null,""]
[null,null,null,null,null,null,""]
[null,null,null,null,null,null,""]
[null,null,null,null,null,null,""]
[null,null,null,null,null,null,""]
[null,null,null,null,null,null,""]
[null,null,null,null,null,null,""]
[null,null,null,null,null,null,""]
[null,null,null,null,null,null,""]
[null,null,null,null,null,null,""]
[null,null,null,null,null,null,""]
[null,null,null,null,null,null,""]
[null,null,null,null,null,null,""]
[null,null,null,null,null,null,""]
[null,null,null,null,null,null,""]
[null,null,null,null,null,null,""]
[null,null,null,null,null,null,""]
[null,null,null,null,null,null,""]
[null,null,null,null,null,null,""]
[null,null,null,null,null,null,""]
[null,null,null,null,null,null,""]
[null,null,null,null,null,null,""]
[null,null,null,null,null,null,""]
[null,null,null,null,null,null,""]
[null,null,null,null,null,null,""]
[null,null,null,null,null,null,""]
[null,null,null,null,null,null,""]
[null,null,null,null,null,null,""]
[null,null,null,null,null,null,""]
[null,null,null,null,null,null,""]
[null,null,null,null,null,null,""]
[null,null,null,null,null,null,""]
[null,null,null,null,null,null,""]
[null,null,null,null,null,null,""]
[null,null,null,null,null,null,""]
[null,null,null,null,null,null,""]
[null,null,null,null,null,null,""]
[null,null,null,null,null,null,""]
[null,null,null,null,null,null,""]
[null,null,null,null,null,null,""]
[null,null,null,null,null,null,""]
[null,null,null,null,null,null,""]
[null,null,null,null,null,null,""]
[null,null,null,null,null,null,""]
[null,null,null,null,null,null,""]
[null,null,null,null,null,null,""]
[null,null,null,null,null,null,""]
[null,null,null,null,null,null,""]
[null,null,null,null,null,null,""]
[null,null,null,null,null,null,""]
[null,null,null,null,null,null,""]
[null,null,null,null,null,null,""]
[null,null,null,null,null,null,""]
[null,null,null,null,null,null,""]
[null,null,null,null,null,null,""]
[null,null,null,null,null,null,""]
[null,null,null,null,null,null,""]
[null,null,null,null,null,null,""]
[null,null,null,null,null,null,""]
[null,null,null,null,null,null,""]
[null,null,null,null,null,null,""]
[null,null,null,null,null,null,""]
[null,null,null,null,null,null,""]
[null,null,null,null,null,null,""]
[null,null,null,null,null,null,""]
[null,null,null,null,null,null,""]
[null,null,null,null,null,null,""]
[null,null,null,null,null,null,""]
[null,null,null,null,null,null,""]
[null,null,null,null,null,null,""]
[null,null,null,null,null,null,""]
[null,null,null,null,null,null,""]
[null,null,null,null,null,null,""]
[null,null,null,null,null,null,""]
[null,null,null,null,null,null,""]
[null,null,null,null,null,null,""]
[null,null,null,null,null,null,""]
[null,null,null,null,null,null,""]
[null,null,null,null,null,null,""]
[null,null,null,null,null,null,""]
[null,null,null,null,null,null,""]
[null,null,null,null,null,null,""]
[null,null,null,null,null,null,""]
[null,null,null,null,null,null,""]
[null,null,null,null,null,null,""]
[null,null,null,null,null,null,""]
[null,null,null,null,null,null,""]
[null,null,null,null,null,null,""]
[null,null,null,null,null,null,""]
[null,null,null,null,null,null,""]
[null,null,null,null,null,null,""]
[null,null,null,null,null,null,""]
[null,null,null,null,null,null,""]
[null,null,null,null,null,null,""]
[null,null,null,null,null,null,""]
[null,null,null,null,null,null,""]
[null,null,null,null,null,null,""]
[null,null,null,null,null,null,""]
[null,null,null,null,null,null,""]
[null,null,null,null,null,null,""]
[null,null,null,null,null,null,""]
[null,null,null,null,null,null,""]
[null,null,null,null,null,null,""]
[null,null,null,null,null,null,""]
[null,null,null,null,null,null,""]
[null,null,null,null,null,null,""]
[null,null,null,null,null,null,""]
[null,null,null,null,null,null,""]
[null,null,null,null,null,null,""]
[null,null,null,null,null,null,""]
[null,null,null,null,null,null,""]
[null,null,null,null,null,null,""]
[null,null,null,null,null,null,""]
[null,null,null,null,null,null,""]
[null,null,null,null,null,null,""]
[null,null,null,null,null,null,""]
[null,null,null,null,null,null,""]
[null,null,null,null,null,null,""]
[null,null,null,null,null,null,""]
[null,null,null,null,null,null,""]
[null,null,null,null,null,null,""]
[null,null,null,null,null,null,""]
[null,null,null,null,null,null,""]
[null,null,null,null,null,null,""]
[null,null,null,null,null,null,""]
[null,null,null,null,null,null,""]
[null,null,null,null,null,null,""]
[null,null,null,null,null,null,""]
[null,null,null,null,null,null,""]
[null,null,null,null,null,null,""]
[null,null,null,null,null,null,""]
[null,null,null,null,null,null,""]
[null,null,null,null,null,null,""]
[null,null,null,null,null,null,""]
[null,null,null,null,null,null,""]
[null,null,null,null,null,null,""]
[null,null,null,null,null,null,""]
[null,null,null,null,null,null,""]
[null,null,null,null,null,null,""]
[null,null,null,null,null,null,""]
[null,null,null,null,null,null,""]
[null,null,null,null,null,null,""]
[null,null,null,null,null,null,""]
[null,null,null,null,null,null,""]
[null,null,null,null,null,null,""]
[null,null,null,null,null,null,""]
[null,null,null,null,null,null,""]
[null,null,null,null,null,null,""]
[null,null,null,null,null,null,""]
[null,null,null,null,null,null,""]
[null,null,null,null,null,null,""]
[null,null,null,null,null,null,""]
[null,null,null,null,null,null,""]
[null,null,null,null,null,null,""]
[null,null,null,null,null,null,""]
[null,null,null,null,null,null,""]
[null,null,null,null,null,null,""]
[null,null,null,null,null,null,""]
[null,null,null,null,null,null,""]
[null,null,null,null,null,null,""]
[null,null,null,null,null,null,""]
[null,null,null,null,null,null,""]
[null,null,null,null,null,null,""]
[null,null,null,null,null,null,""]
[null,null,null,null,null,null,""]
[null,null,null,null,null,null,""]
[null,null,null,null,null,null,""]

{"sheet":"E05","index":7,"n_rows":664,"n_cols":7,"rows_kept":664,"cut":false,"hidden":false,"merged":[[73,1,73,3],[74,2,74,3],[75,2,75,3],[76,2,76,3],[77,2,82,3],[60,1,60,3],[61,2,61,3],[62,2,62,3],[63,2,63,3],[64,2,69,3],[45,1,45,3],[46,2,46,3],[47,2,47,3],[48,2,48,3],[49,2,54,3],[32,1,32,3],[33,2,33,3],[34,2,34,3],[35,2,35,3],[36,2,41,3],[20,2,20,3],[17,1,17,3],[18,2,18,3],[21,2,26,3],[4,1,4,3],[8,2,13,3],[19,2,19,3],[5,2,5,3],[6,2,6,3],[7,2,7,3]]}
[]
[null,null,null,null,null,null,""]
[null,"5.1 - L’environnement naturel et la santé de l’écosystème existant",null,null,null,null,"5.1"]
[null,null,null,null,null,null,""]
[null,"5.1.1 - Avoir conscience du rôle que les services des écosystèmes peuvent jouer dans la résilience des villes aux catastrophes",null,null,null,null,"5.1.1"]
[null,"Question","Comments",null,null,null,""]
[null,null,null,null,null,null,""]
[null,"Response","Provide means of verification (explanation and evidence)",null,null,null,""]
[null,null,null,null,null,{"$f":"IF(E9=1,TRUE,FALSE)","v":false},""]
[null,null,null,null,null,{"$f":"IF(E9=2,TRUE,FALSE)","v":false},""]
[null,null,null,null,null,{"$f":"IF(E9=3,TRUE,FALSE)","v":false},""]
[null,null,null,null,null,{"$f":"IF(E9=4,TRUE,FALSE)","v":false},""]
[null,null,null,null,null,{"$f":"IF(E9=5,TRUE,FALSE)","v":false},""]
[null,null,null,null,null,{"$f":"IF(E9=6,TRUE,FALSE)","v":false},""]
[null,"Actions to achieve maximum resilience","Responsible institution","Timescale",null,null,""]
[null,null,null,null,null,null,""]
[null,null,null,null,null,null,""]
[null,"5.1.2 - Santé de l’écosystème",null,null,null,null,"5.1.2"]
[null,"Question","Comments",null,null,null,""]
[null,null,null,null,null,null,""]
[null,"Response","Provide means of verification (explanation and evidence)",null,null,null,""]
[null,null,null,null,null,{"$f":"IF(E22=1,TRUE,FALSE)","v":false},""]
[null,null,null,null,null,{"$f":"IF(E22=2,TRUE,FALSE)","v":false},""]
[null,null,null,null,null,{"$f":"IF(E22=3,TRUE,FALSE)","v":false},""]
[null,null,null,null,null,{"$f":"IF(E22=4,TRUE,FALSE)","v":false},""]
[null,null,null,null,null,{"$f":"IF(E22=5,TRUE,FALSE)","v":false},""]
[null,null,null,null,null,{"$f":"IF(E22=6,TRUE,FALSE)","v":false},""]
[null,"Actions to achieve maximum resilience","Responsible institution","Timescale",null,null,""]
[null,null,null,null,null,null,""]
[null,null,null,null,null,null,""]
[null,"5.2 - Intégration de l’infrastructure verte et bleue dans la politique et les projets de la ville",null,null,null,null,"5.2"]
[null,null,null,null,null,null,""]
[null,"5.2.1 - Impact de l’exploitation des terres et des autres politiques sur les services des écosystèmes.",null,null,null,null,"5.2.1"]
[null,"Question","Comments",null,null,null,""]
[null,null,null,null,null,null,""]
[null,"Response","Provide means of verification (explanation and evidence)",null,null,null,""]
[null,null,null,null,null,{"$f":"IF(E37=1,TRUE,FALSE)","v":false},""]
[null,null,null,null,null,{"$f":"IF(E37=2,TRUE,FALSE)","v":false},""]
[null,null,null,null,null,{"$f":"IF(E37=3,TRUE,FALSE)","v":false},""]
[null,null,null,null,null,{"$f":"IF(E37=4,TRUE,FALSE)","v":false},""]
[null,null,null,null,null,{"$f":"IF(E37=5,TRUE,FALSE)","v":false},""]
[null,null,null,null,null,{"$f":"IF(E37=6,TRUE,FALSE)","v":false},""]
[null,"Actions to achieve maximum resilience","Responsible institution","Timescale",null,null,""]
[null,null,null,null,null,null,""]
[null,null,null,null,null,null,""]
[null,"5.2.2 - Les infrastructures vertes et bleues sont systématiquement intégrées dans les projets de la ville",null,null,null,null,"5.2.2"]
[null,"Question","Comments",null,null,null,""]
[null,null,null,null,null,null,""]
[null,"Response","Provide means of verification (explanation and evidence)",null,null,null,""]
[null,null,null,null,null,{"$f":"IF(E50=1,TRUE,FALSE)","v":false},""]
[null,null,null,null,null,{"$f":"IF(E50=2,TRUE,FALSE)","v":false},""]
[null,null,null,null,null,{"$f":"IF(E50=3,TRUE,FALSE)","v":false},""]
[null,null,null,null,null,{"$f":"IF(E50=4,TRUE,FALSE)","v":false},""]
[null,null,null,null,null,{"$f":"IF(E50=5,TRUE,FALSE)","v":false},""]
[null,null,null,null,null,{"$f":"IF(E50=6,TRUE,FALSE)","v":false},""]
[null,"Actions to achieve maximum resilience","Responsible institution","Timescale",null,null,""]
[null,null,null,null,null,null,""]
[null,null,null,null,null,null,""]
[null,"5.3 - Questions d’environnement transfrontières",null,null,null,null,"5.3"]
[null,null,null,null,null,null,""]
[null,"5.3.1 - Identification des actifs environnementaux critiques",null,null,null,null,"5.3.1"]
[null,"Question","Comments",null,null,null,""]
[null,null,null,null,null,null,""]
[null,"Response","Provide means of verification (explanation and evidence)",null,null,null,""]
[null,null,null,null,null,{"$f":"IF(E65=1,TRUE,FALSE)","v":false},""]
[null,null,null,null,null,{"$f":"IF(E65=2,TRUE,FALSE)","v":false},""]
[null,null,null,null,null,{"$f":"IF(E65=3,TRUE,FALSE)","v":false},""]
[null,null,null,null,null,{"$f":"IF(E65=4,TRUE,FALSE)","v":false},""]
[null,null,null,null,null,{"$f":"IF(E65=5,TRUE,FALSE)","v":false},""]
[null,null,null,null,null,{"$f":"IF(E65=6,TRUE,FALSE)","v":false},""]
[null,"Actions to achieve maximum resilience","Responsible institution","Timescale",null,null,""]
[null,null,null,null,null,null,""]
[null,null,null,null,null,null,""]
[null,"5.3.2 - Les accords transfrontières",null,null,null,null,"5.3.2"]
[null,"Question","Comments",null,null,null,""]
[null,null,null,null,null,null,""]
[null,"Response","Provide means of verification (explanation and evidence)",null,null,null,""]
[null,null,null,null,null,{"$f":"IF(E78=1,TRUE,FALSE)","v":false},""]
[null,null,null,null,null,{"$f":"IF(E78=2,TRUE,FALSE)","v":false},""]
[null,null,null,null,null,{"$f":"IF(E78=3,TRUE,FALSE)","v":false},""]
[null,null,null,null,null,{"$f":"IF(E78=4,TRUE,FALSE)","v":false},""]
[null,null,null,null,null,{"$f":"IF(E78=5,TRUE,FALSE)","v":false},""]
[null,null,null,null,null,{"$f":"IF(E78=6,TRUE,FALSE)","v":false},""]
[null,"Actions to achieve maximum resilience","Responsible institution","Timescale",null,null,""]
[null,null,null,null,null,null,""]
[null,null,null,null,null,null,""]
[null,null,null,null,null,null,""]
[null,null,null,null,null,null,""]
[null,null,null,null,null,null,""]
[null,null,null,null,null,null,""]
[null,null,null,null,null,null,""]
[null,null,null,null,null,null,""]
[null,null,null,null,null,null,""]
[null,null,null,null,null,null,""]
[null,null,null,null,null,null,""]
[null,null,null,null,null,null,""]
[null,null,null,null,null,null,""]
[null,null,null,null,null,null,""]
[null,null,null,null,null,null,""]
[null,null,null,null,null,null,""]
[null,null,null,null,null,null,""]
[null,null,null,null,null,null,""]
[null,null,null,null,null,null,""]
[null,null,null,null,null,null,""]
[null,null,null,null,null,null,""]
[null,null,null,null,null,null,""]
[null,null,null,null,null,null,""]
[null,null,null,null,null,null,""]
[null,null,null,null,null,null,""]
[null,null,null,null,null,null,""]
[null,null,null,null,null,null,""]
[null,null,null,null,null,null,""]
[null,null,null,null,null,null,""]
[null,null,null,null,null,null,""]
[null,null,null,null,null,null,""]
[null,null,null,null,null,null,""]
[null,null,null,null,null,null,""]
[null,null,null,null,null,null,""]
[null,null,null,null,null,null,""]
[null,null,null,null,null,null,""]
[null,null,null,null,null,null,""]
[null,null,null,null,null,null,""]
[null,null,null,null,null,null,""]
[null,null,null,null,null,null,""]
[null,null,null,null,null,null,""]
[null,null,null,null,null,null,""]
[null,null,null,null,null,null,""]
[null,null,null,null,null,null,""]
[null,null,null,null,null,null,""]
[null,null,null,null,null,null,""]
[null,null,null,null,null,null,""]
[null,null,null,null,null,null,""]
[null,null,null,null,null,null,""]
[null,null,null,null,null,null,""]
[null,null,null,null,null,null,""]
[null,null,null,null,null,null,""]
[null,null,null,null,null,null,""]
[null,null,null,null,null,null,""]
[null,null,null,null,null,null,""]
[null,null,null,null,null,null,""]
[null,null,null,null,null,null,""]
[null,null,null,null,null,null,""]
[null,null,null,null,null,null,""]
[null,null,null,null,null,null,""]
[null,null,null,null,null,null,""]
[null,null,null,null,null,null,""]
[null,null,null,null,null,null,""]
[null,null,null,null,null,null,""]
[null,null,null,null,null,null,""]
[null,null,null,null,null,null,""]
[null,null,null,null,null,null,""]
[null,null,null,null,null,null,""]
[null,null,null,null,null,null,""]
[null,null,null,null,null,null,""]
[null,null,null,null,null,null,""]
[null,null,null,null,null,null,""]
[null,null,null,null,null,null,""]
[null,null,null,null,null,null,""]
[null,null,null,null,null,null,""]
[null,null,null,null,null,null,""]
[null,null,null,null,null,null,""]
[null,null,null,null,null,null,""]
[null,null,null,null,null,null,""]
[null,null,null,null,null,null,""]
[null,null,null,null,null,null,""]
[null,null,null,null,null,null,""]
[null,null,null,null,null,null,""]
[null,null,null,null,null,null,""]
[null,null,null,null,null,null,""]
[null,null,null,null,null,null,""]
[null,null,null,null,null,null,""]
[null,null,null,null,null,null,""]
[null,null,null,null,null,null,""]
[null,null,null,null,null,null,""]
[null,null,null,null,null,null,""]
[null,null,null,null,null,null,""]
[null,null,null,null,null,null,""]
[null,null,null,null,null,null,""]
[null,null,null,null,null,null,""]
[null,null,null,null,null,null,""]
[null,null,null,null,null,null,""]
[null,null,null,null,null,null,""]
[null,null,null,null,null,null,""]
[null,null,null,null,null,null,""]
[null,null,null,null,null,null,""]
[null,null,null,null,null,null,""]
[null,null,null,null,null,null,""]
[null,null,null,null,null,null,""]
[null,null,null,null,null,null,""]
[null,null,null,null,null,null,""]
[null,null,null,null,null,null,""]
[null,null,null,null,null,null,""]
[null,null,null,null,null,null,""]
[null,null,null,null,null,null,""]
[null,null,null,null,null,null,""]
[null,null,null,null,null,null,""]
[null,null,null,null,null,null,""]
[null,null,null,null,null,null,""]
[null,null,null,null,null,null,""]
[null,null,null,null,null,null,""]
[null,null,null,null,null,null,""]
[null,null,null,null,null,null,""]
[null,null,null,null,null,null,""]
[null,null,null,null,null,null,""]
[null,null,null,null,null,null,""]
[null,null,null,null,null,null,""]
[null,null,null,null,null,null,""]
[null,null,null,null,null,null,""]
[null,null,null,null,null,null,""]
[null,null,null,null,null,null,""]
[null,null,null,null,null,null,""]
[null,null,null,null,null,null,""]
[null,null,null,null,null,null,""]
[null,null,null,null,null,null,""]
[null,null,null,null,null,null,""]
[null,null,null,null,null,null,""]
[null,null,null,null,null,null,""]
[null,null,null,null,null,null,""]
[null,null,null,null,null,null,""]
[null,null,null,null,null,null,""]
[null,null,null,null,null,null,""]
[null,null,null,null,null,null,""]
[null,null,null,null,null,null,""]
[null,null,null,null,null,null,""]
[null,null,null,null,null,null,""]
[null,null,null,null,null,null,""]
[null,null,null,null,null,null,""]
[null,null,null,null,null,null,""]
[null,null,null,null,null,null,""]
[null,null,null,null,null,null,""]
[null,null,null,null,null,null,""]
[null,null,null,null,null,null,""]
[null,null,null,null,null,null,""]
[null,null,null,null,null,null,""]
[null,null,null,null,null,null,""]
[null,null,null,null,null,null,""]
[null,null,null,null,null,null,""]
[null,null,null,null,null,null,""]
[null,null,null,null,null,null,""]
[null,null,null,null,null,null,""]
[null,null,null,null,null,null,""]
[null,null,null,null,null,null,""]
[null,null,null,null,null,null,""]
[null,null,null,null,null,null,""]
[null,null,null,null,null,null,""]
[null,null,null,null,null,null,""]
[null,null,null,null,null,null,""]
[null,null,null,null,null,null,""]
[null,null,null,null,null,null,""]
[null,null,null,null,null,null,""]
[null,null,null,null,null,null,""]
[null,null,null,null,null,null,""]
[null,null,null,null,null,null,""]
[null,null,null,null,null,null,""]
[null,null,null,null,null,null,""]
[null,null,null,null,null,null,""]
[null,null,null,null,null,null,""]
[null,null,null,null,null,null,""]
[null,null,null,null,null,null,""]
[null,null,null,null,null,null,""]
[null,null,null,null,null,null,""]
[null,null,null,null,null,null,""]
[null,null,null,null,null,null,""]
[null,null,null,null,null,null,""]
[null,null,null,null,null,null,""]
[null,null,null,null,null,null,""]
[null,null,null,null,null,null,""]
[null,null,null,null,null,null,""]
[null,null,null,null,null,null,""]
[null,null,null,null,null,null,""]
[null,null,null,null,null,null,""]
[null,null,null,null,null,null,""]
[null,null,null,null,null,null,""]
[null,null,null,null,null,null,""]
[null,null,null,null,null,null,""]
[null,null,null,null,null,null,""]
[null,null,null,null,null,null,""]
[null,null,null,null,null,null,""]
[null,null,null,null,null,null,""]
[null,null,null,null,null,null,""]
[null,null,null,null,null,null,""]
[null,null,null,null,null,null,""]
[null,null,null,null,null,null,""]
[null,null,null,null,null,null,""]
[null,null,null,null,null,null,""]
[null,null,null,null,null,null,""]
[null,null,null,null,null,null,""]
[null,null,null,null,null,null,""]
[null,null,null,null,null,null,""]
[null,null,null,null,null,null,""]
[null,null,null,null,null,null,""]
[null,null,null,null,null,null,""]
[null,null,null,null,null,null,""]
[null,null,null,null,null,null,""]
[null,null,null,null,null,null,""]
[null,null,null,null,null,null,""]
[null,null,null,null,null,null,""]
[null,null,null,null,null,null,""]
[null,null,null,null,null,null,""]
[null,null,null,null,null,null,""]
[null,null,null,null,null,null,""]
[null,null,null,null,null,null,""]
[null,null,null,null,null,null,""]
[null,null,null,null,null,null,""]
[null,null,null,null,null,null,""]
[null,null,null,null,null,null,""]
[null,null,null,null,null,null,""]
[null,null,null,null,null,null,""]
[null,null,null,null,null,null,""]
[null,null,null,null,null,null,""]
[null,null,null,null,null,null,""]
[null,null,null,null,null,null,""]
[null,null,null,null,null,null,""]
[null,null,null,null,null,null,""]
[null,null,null,null,null,null,""]
[null,null,null,null,null,null,""]
[null,null,null,null,null,null,""]
[null,null,null,null,null,null,""]
[null,null,null,null,null,null,""]
[null,null,null,null,null,null,""]
[null,null,null,null,null,null,""]
[null,null,null,null,null,null,""]
[null,null,null,null,null,null,""]
[null,null,null,null,null,null,""]
[null,null,null,null,null,null,""]
[null,null,null,null,null,null,""]
[null,null,null,null,null,null,""]
[null,null,null,null,null,null,""]
[null,null,null,null,null,null,""]
[null,null,null,null,null,null,""]
[null,null,null,null,null,null,""]
[null,null,null,null,null,null,""]
[null,null,null,null,null,null,""]
[null,null,null,null,null,null,""]
[null,null,null,null,null,null,""]
[null,null,null,null,null,null,""]
[null,null,null,null,null,null,""]
[null,null,null,null,null,null,""]
[null,null,null,null,null,null,""]
[null,null,null,null,null,null,""]
[null,null,null,null,null,null,""]
[null,null,null,null,null,null,""]
[null,null,null,null,null,null,""]
[null,null,null,null,null,null,""]
[null,null,null,null,null,null,""]
[null,null,null,null,null,null,""]
[null,null,null,null,null,null,""]
[null,null,null,null,null,null,""]
[null,null,null,null,null,null,""]
[null,null,null,null,null,null,""]
[null,null,null,null,null,null,""]
[null,null,null,null,null,null,""]
[null,null,null,null,null,null,""]
[null,null,null,null,null,null,""]
[null,null,null,null,null,null,""]
[null,null,null,null,null,null,""]
[null,null,null,null,null,null,""]
[null,null,null,null,null,null,""]
[null,null,null,null,null,null,""]
[null,null,null,null,null,null,""]
[null,null,null,null,null,null,""]
[null,null,null,null,null,null,""]
[null,null,null,null,null,null,""]
[null,null,null,null,null,null,""]
[null,null,null,null,null,null,""]
[null,null,null,null,null,null,""]
[null,null,null,null,null,null,""]
[null,null,null,null,null,null,""]
[null,null,null,null,null,null,""]
[null,null,null,null,null,null,""]
[null,null,null,null,null,null,""]
[null,null,null,null,null,null,""]
[null,null,null,null,null,null,""]
[null,null,null,null,null,null,""]
[null,null,null,null,null,null,""]
[null,null,null,null,null,null,""]
[null,null,null,null,null,null,""]
[null,null,null,null,null,null,""]
[null,null,null,null,null,null,""]
[null,null,null,null,null,null,""]
[null,null,null,null,null,null,""]
[null,null,null,null,null,null,""]
[null,null,null,null,null,null,""]
[null,null,null,null,null,null,""]
[null,null,null,null,null,null,""]
[null,null,null,null,null,null,""]
[null,null,null,null,null,null,""]
[null,null,null,null,null,null,""]
[null,null,null,null,null,null,""]
[null,null,null,null,null,null,""]
[null,null,null,null,null,null,""]
[null,null,null,null,null,null,""]
[null,null,null,null,null,null,""]
[null,null,null,null,null,null,""]
[null,null,null,null,null,null,""]
[null,null,null,null,null,null,""]
[null,null,null,null,null,null,""]
[null,null,null,null,null,null,""]
[null,null,null,null,null,null,""]
[null,null,null,null,null,null,""]
[null,null,null,null,null,null,""]
[null,null,null,null,null,null,""]
[null,null,null,null,null,null,""]
[null,null,null,null,null,null,""]
[null,null,null,null,null,null,""]
[null,null,null,null,null,null,""]
[null,null,null,null,null,null,""]
[null,null,null,null,null,null,""]
[null,null,null,null,null,null,""]
[null,null,null,null,null,null,""]
[null,null,null,null,null,null,""]
[null,null,null,null,null,null,""]
[null,null,null,null,null,null,""]
[null,null,null,null,null,null,""]
[null,null,null,null,null,null,""]
[null,null,null,null,null,null,""]
[null,null,null,null,null,null,""]
[null,null,null,null,null,null,""]
[null,null,null,null,null,null,""]
[null,null,null,null,null,null,""]
[null,null,null,null,null,null,""]
[null,null,null,null,null,null,""]
[null,null,null,null,null,null,""]
[null,null,null,null,null,null,""]
[null,null,null,null,null,null,""]
[null,null,null,null,null,null,""]
[null,null,null,null,null,null,""]
[null,null,null,null,null,null,""]
[null,null,null,null,null,null,""]
[null,null,null,null,null,null,""]
[null,null,null,null,null,null,""]
[null,null,null,null,null,null,""]
[null,null,null,null,null,null,""]
[null,null,null,null,null,null,""]
[null,null,null,null,null,null,""]
[null,null,null,null,null,null,""]
[null,null,null,null,null,null,""]
[null,null,null,null,null,null,""]
[null,null,null,null,null,null,""]
[null,null,null,null,null,null,""]
[null,null,null,null,null,null,""]
[null,null,null,null,null,null,""]
[null,null,null,null,null,null,""]
[null,null,null,null,null,null,""]
[null,null,null,null,null,null,""]
[null,null,null,null,null,null,""]
[null,null,null,null,null,null,""]
[null,null,null,null,null,null,""]
[null,null,null,null,null,null,""]
[null,null,null,null,null,null,""]
[null,null,null,null,null,null,""]
[null,null,null,null,null,null,""]
[null,null,null,null,null,null,""]
[null,null,null,null,null,null,""]
[null,null,null,null,null,null,""]
[null,null,null,null,null,null,""]
[null,null,null,null,null,null,""]
[null,null,null,null,null,null,""]
[null,null,null,null,null,null,""]
[null,null,null,null,null,null,""]
[null,null,null,null,null,null,""]
[null,null,null,null,null,null,""]
[null,null,null,null,null,null,""]
[null,null,null,null,null,null,""]
[null,null,null,null,null,null,""]
[null,null,null,null,null,null,""]
[null,null,null,null,null,null,""]
[null,null,null,null,null,null,""]
[null,null,null,null,null,null,""]
[null,null,null,null,null,null,""]
[null,null,null,null,null,null,""]
[null,null,null,null,null,null,""]
[null,null,null,null,null,null,""]
[null,null,null,null,null,null,""]
[null,null,null,null,null,null,""]
[null,null,null,null,null,null,""]
[null,null,null,null,null,null,""]
[null,null,null,null,null,null,""]
[null,null,null,null,null,null,""]
[null,null,null,null,null,null,""]
[null,null,null,null,null,null,""]
[null,null,null,null,null,null,""]
[null,null,null,null,null,null,""]
[null,null,null,null,null,null,""]
[null,null,null,null,null,null,""]
[null,null,null,null,null,null,""]
[null,null,null,null,null,null,""]
[null,null,null,null,null,null,""]
[null,null,null,null,null,null,""]
[null,null,null,null,null,null,""]
[null,null,null,null,null,null,""]
[null,null,null,null,null,null,""]
[null,null,null,null,null,null,""]
[null,null,null,null,null,null,""]
[null,null,null,null,null,null,""]
[null,null,null,null,null,null,""]
[null,null,null,null,null,null,""]
[null,null,null,null,null,null,""]
[null,null,null,null,null,null,""]
[null,null,null,null,null,null,""]
[null,null,null,null,null,null,""]
[null,null,null,null,null,null,""]
[null,null,null,null,null,null,""]
[null,null,null,null,null,null,""]
[null,null,null,null,null,null,""]
[null,null,null,null,null,null,""]
[null,null,null,null,null,null,""]
[null,null,null,null,null,null,""]
[null,null,null,null,null,null,""]
[null,null,null,null,null,null,""]
[null,null,null,null,null,null,""]
[null,null,null,null,null,null,""]
[null,null,null,null,null,null,""]
[null,null,null,null,null,null,""]
[null,null,null,null,null,null,""]
[null,null,null,null,null,null,""]
[null,null,null,null,null,null,""]
[null,null,null,null,null,null,""]
[null,null,null,null,null,null,""]
[null,null,null,null,null,null,""]
[null,null,null,null,null,null,""]
[null,null,null,null,null,null,""]
[null,null,null,null,null,null,""]
[null,null,null,null,null,null,""]
[null,null,null,null,null,null,""]
[null,null,null,null,null,null,""]
[null,null,null,null,null,null,""]
[null,null,null,null,null,null,""]
[null,null,null,null,null,null,""]
[null,null,null,null,null,null,""]
[null,null,null,null,null,null,""]
[null,null,null,null,null,null,""]
[null,null,null,null,null,null,""]
[null,null,null,null,null,null,""]
[null,null,null,null,null,null,""]
[null,null,null,null,null,null,""]
[null,null,null,null,null,null,""]
[null,null,null,null,null,null,""]
[null,null,null,null,null,null,""]
[null,null,null,null,null,null,""]
[null,null,null,null,null,null,""]
[null,null,null,null,null,null,""]
[null,null,null,null,null,null,""]
[null,null,null,null,null,null,""]
[null,null,null,null,null,null,""]
[null,null,null,null,null,null,""]
[null,null,null,null,null,null,""]
[null,null,null,null,null,null,""]
[null,null,null,null,null,null,""]
[null,null,null,null,null,null,""]
[null,null,null,null,null,null,""]
[null,null,null,null,null,null,""]
[null,null,null,null,null,null,""]
[null,null,null,null,null,null,""]
[null,null,null,null,null,null,""]
[null,null,null,null,null,null,""]
[null,null,null,null,null,null,""]
[null,null,null,null,null,null,""]
[null,null,null,null,null,null,""]
[null,null,null,null,null,null,""]
[null,null,null,null,null,null,""]
[null,null,null,null,null,null,""]
[null,null,null,null,null,null,""]
[null,null,null,null,null,null,""]
[null,null,null,null,null,null,""]
[null,null,null,null,null,null,""]
[null,null,null,null,null,null,""]
[null,null,null,null,null,null,""]
[null,null,null,null,null,null,""]
[null,null,null,null,null,null,""]
[null,null,null,null,null,null,""]
[null,null,null,null,null,null,""]
[null,null,null,null,null,null,""]
[null,null,null,null,null,null,""]
[null,null,null,null,null,null,""]
[null,null,null,null,null,null,""]
[null,null,null,null,null,null,""]
[null,null,null,null,null,null,""]
[null,null,null,null,null,null,""]
[null,null,null,null,null,null,""]
[null,null,null,null,null,null,""]
[null,null,null,null,null,null,""]
[null,null,null,null,null,null,""]
[null,null,null,null,null,null,""]
[null,null,null,null,null,null,""]
[null,null,null,null,null,null,""]
[null,null,null,null,null,null,""]
[null,null,null,null,null,null,""]
[null,null,null,null,null,null,""]
[null,null,null,null,null,null,""]
[null,null,null,null,null,null,""]
[null,null,null,null,null,null,""]
[null,null,null,null,null,null,""]
[null,null,null,null,null,null,""]
[null,null,null,null,null,null,""]
[null,null,null,null,null,null,""]
[null,null,null,null,null,null,""]
[null,null,null,null,null,null,""]
[null,null,null,null,null,null,""]
[null,null,null,null,null,null,""]
[null,null,null,null,null,null,""]
[null,null,null,null,null,null,""]
[null,null,null,null,null,null,""]
[null,null,null,null,null,null,""]
[null,null,null,null,null,null,""]
[null,null,null,null,null,null,""]
[null,null,null,null,null,null,""]
[null,null,null,null,null,null,""]
[null,null,null,null,null,null,""]
[null,null,null,null,null,null,""]
[null,null,null,null,null,null,""]
[null,null,null,null,null,null,""]
[null,null,null,null,null,null,""]
[null,null,null,null,null,null,""]
[null,null,null,null,null,null,""]
[null,null,null,null,null,null,""]
[null,null,null,null,null,null,""]
[null,null,null,null,null,null,""]
[null,null,null,null,null,null,""]
[null,null,null,null,null,null,""]
[null,null,null,null,null,null,""]
[null,null,null,null,null,null,""]
[null,null,null,null,null,null,""]
[null,null,null,null,null,null,""]
[null,null,null,null,null,null,""]
[null,null,null,null,null,null,""]
[null,null,null,null,null,null,""]
[null,null,null,null,null,null,""]
[null,null,null,null,null,null,""]
[null,null,null,null,null,null,""]
[null,null,null,null,null,null,""]
[null,null,null,null,null,null,""]
[null,null,null,null,null,null,""]
[null,null,null,null,null,null,""]
[null,null,null,null,null,null,""]
[null,null,null,null,null,null,""]
[null,null,null,null,null,null,""]
[null,null,null,null,null,null,""]
[null,null,null,null,null,null,""]
[null,null,null,null,null,null,""]
[null,null,null,null,null,null,""]
[null,null,null,null,null,null,""]
[null,null,null,null,null,null,""]
[null,null,null,null,null,null,""]
[null,null,null,null,null,null,""]
[null,null,null,null,null,null,""]
[null,null,null,null,null,null,""]
[null,null,null,null,null,null,""]
[null,null,null,null,null,null,""]
[null,null,null,null,null,null,""]
[null,null,null,null,null,null,""]
[null,null,null,null,null,null,""]
[null,null,null,null,null,null,""]
[null,null,null,null,null,null,""]
[null,null,null,null,null,null,""]
[null,null,null,null,null,null,""]
[null,null,null,null,null,null,""]
[null,null,null,null,null,null,""]
[null,null,null,null,null,null,""]
[null,null,null,null,null,null,""]
[null,null,null,null,null,null,""]
[null,null,null,null,null,null,""]
[null,null,null,null,null,null,""]
[null,null,null,null,null,null,""]

{"sheet":"E06","index":8,"n_rows":664,"n_cols":7,"rows_kept":664,"cut":false,"hidden":false,"merged":[[174,2,179,3],[173,2,173,3],[172,2,172,3],[171,2,171,3],[170,1,170,3],[155,1,155,3],[156,2,156,3],[157,2,157,3],[158,2,158,3],[159,2,164,3],[140,1,140,3],[141,2,141,3],[142,2,142,3],[143,2,143,3],[144,2,149,3],[131,2,136,3],[130,2,130,3],[129,2,129,3],[128,2,128,3],[127,1,127,3],[114,1,114,3],[115,2,115,3],[116,2,116,3],[117,2,117,3],[118,2,123,3],[103,2,108,3],[102,2,102,3],[101,2,101,3],[100,2,100,3],[99,1,99,3],[86,1,86,3],[87,2,87,3],[88,2,88,3],[89,2,89,3],[90,2,95,3],[43,1,43,3],[58,1,58,3],[61,2,61,3],[62,2,67,3],[75,2,80,3],[74,2,74,3],[73,2,73,3],[72,2,72,3],[71,1,71,3],[59,2,59,3],[60,2,60,3],[47,2,52,3],[46,2,46,3],[45,2,45,3],[44,2,44,3],[30,1,30,3],[31,2,31,3],[32,2,32,3],[33,2,33,3],[34,2,39,3],[17,1,17,3],[18,2,18,3],[19,2,19,3],[20,2,20,3],[21,2,26,3],[5,2,5,3],[4,1,4,3],[6,2,6,3],[7,2,7,3],[8,2,13,3]]}
[]
[null,null,null,null,null,null,""]
[null,"6.1 - Compétence et expérience",null,null,null,null,"6.1"]
[null,null,null,null,null,null,""]
[null,"6.1.1 - Disponibilité des compétences et d’expériences en matière de résilienceidentification et atténuation du risque, planification, réaction et réaction postévénement",null,null,null,null,"6.1.1"]
[null,"Question","Comments",null,null,null,""]
[null,null,null,null,null,null,""]
[null,"Response","Provide means of verification (explanation and evidence)",null,null,null,""]
[null,null,null,null,null,{"$f":"IF(E9=1,TRUE,FALSE)","v":false},""]
[null,null,null,null,null,{"$f":"IF(E9=2,TRUE,FALSE)","v":false},""]
[null,null,null,null,null,{"$f":"IF(E9=3,TRUE,FALSE)","v":false},""]
[null,null,null,null,null,{"$f":"IF(E9=4,TRUE,FALSE)","v":false},""]
[null,null,null,null,null,{"$f":"IF(E9=5,TRUE,FALSE)","v":false},""]
[null,null,null,null,null,{"$f":"IF(E9=6,TRUE,FALSE)","v":false},""]
[null,"Actions to achieve maximum resilience","Responsible institution","Timescale",null,null,""]
[null,null,null,null,null,null,""]
[null,null,null,null,null,null,""]
[null,"6.1.2 - Les liens avec le secteur privé",null,null,null,null,"6.1.2"]
[null,"Question","Comments",null,null,null,""]
[null,null,null,null,null,null,""]
[null,"Response","Provide means of verification (explanation and evidence)",null,null,null,""]
[null,null,null,null,null,{"$f":"IF(E22=1,TRUE,FALSE)","v":false},""]
[null,null,null,null,null,{"$f":"IF(E22=2,TRUE,FALSE)","v":false},""]
[null,null,null,null,null,{"$f":"IF(E22=3,TRUE,FALSE)","v":false},""]
[null,null,null,null,null,{"$f":"IF(E22=4,TRUE,FALSE)","v":false},""]
[null,null,null,null,null,{"$f":"IF(E22=5,TRUE,FALSE)","v":false},""]
[null,null,null,null,null,{"$f":"IF(E22=6,TRUE,FALSE)","v":false},""]
[null,"Actions to achieve maximum resilience","Responsible institution","Timescale",null,null,""]
[null,null,null,null,null,null,""]
[null,null,null,null,null,null,""]
[null,"6.1.3 - Engagement du secteur assurance",null,null,null,null,"6.1.3"]
[null,"Question","Comments",null,null,null,""]
[null,null,null,null,null,null,""]
[null,"Response","Provide means of verification (explanation and evidence)",null,null,null,""]
[null,null,null,null,null,{"$f":"IF(E35=1,TRUE,FALSE)","v":false},""]
[null,null,null,null,null,{"$f":"IF(E35=2,TRUE,FALSE)","v":false},""]
[null,null,null,null,null,{"$f":"IF(E35=3,TRUE,FALSE)","v":false},""]
[null,null,null,null,null,{"$f":"IF(E35=4,TRUE,FALSE)","v":false},""]
[null,null,null,null,null,{"$f":"IF(E35=5,TRUE,FALSE)","v":false},""]
[null,null,null,null,null,{"$f":"IF(E35=6,TRUE,FALSE)","v":false},""]
[null,"Actions to achieve maximum resilience","Responsible institution","Timescale",null,null,""]
[null,null,null,null,null,null,""]
[null,null,null,null,null,null,""]
[null,"6.1.4 - Les liens avec la société civile",null,null,null,null,"6.1.4"]
[null,"Question","Comments",null,null,null,""]
[null,null,null,null,null,null,""]
[null,"Response","Provide means of verification (explanation and evidence)",null,null,null,""]
[null,null,null,null,null,{"$f":"IF(E48=1,TRUE,FALSE)","v":false},""]
[null,null,null,null,null,{"$f":"IF(E48=2,TRUE,FALSE)","v":false},""]
[null,null,null,null,null,{"$f":"IF(E48=3,TRUE,FALSE)","v":false},""]
[null,null,null,null,null,{"$f":"IF(E48=4,TRUE,FALSE)","v":false},""]
[null,null,null,null,null,{"$f":"IF(E48=5,TRUE,FALSE)","v":false},""]
[null,null,null,null,null,{"$f":"IF(E48=6,TRUE,FALSE)","v":false},""]
[null,"Actions to achieve maximum resilience","Responsible institution","Timescale",null,null,""]
[null,null,null,null,null,null,""]
[null,null,null,null,null,null,""]
[null,"6.2 - Education publique et sensibilisation",null,null,null,null,"6.2"]
[null,null,null,null,null,null,""]
[null,"6.2.1 - Exposition du public aux matériaux/ messages de l’éducation et de la sensibilisation",null,null,null,null,"6.2.1"]
[null,"Question","Comments",null,null,null,""]
[null,null,null,null,null,null,""]
[null,"Response","Provide means of verification (explanation and evidence)",null,null,null,""]
[null,null,null,null,null,{"$f":"IF(E63=1,TRUE,FALSE)","v":false},""]
[null,null,null,null,null,{"$f":"IF(E63=2,TRUE,FALSE)","v":false},""]
[null,null,null,null,null,{"$f":"IF(E63=3,TRUE,FALSE)","v":false},""]
[null,null,null,null,null,{"$f":"IF(E63=4,TRUE,FALSE)","v":false},""]
[null,null,null,null,null,{"$f":"IF(E63=5,TRUE,FALSE)","v":false},""]
[null,null,null,null,null,{"$f":"IF(E63=6,TRUE,FALSE)","v":false},""]
[null,"Actions to achieve maximum resilience","Responsible institution","Timescale",null,null,""]
[null,null,null,null,null,null,""]
[null,null,null,null,null,null,""]
[null,"6.2.1.1 - Exposition du public aux matériaux/ messages de l’éducation et de la sensibilisation",null,null,null,null,"6.2.1.1"]
[null,"Question","Comments",null,null,null,""]
[null,null,null,null,null,null,""]
[null,"Response","Provide means of verification (explanation and evidence)",null,null,null,""]
[null,null,null,null,null,{"$f":"IF(E76=1,TRUE,FALSE)","v":false},""]
[null,null,null,null,null,{"$f":"IF(E76=2,TRUE,FALSE)","v":false},""]
[null,null,null,null,null,{"$f":"IF(E76=3,TRUE,FALSE)","v":false},""]
[null,null,null,null,null,{"$f":"IF(E76=4,TRUE,FALSE)","v":false},""]
[null,null,null,null,null,{"$f":"IF(E76=5,TRUE,FALSE)","v":false},""]
[null,null,null,null,null,{"$f":"IF(E76=6,TRUE,FALSE)","v":false},""]
[null,"Actions to achieve maximum resilience","Responsible institution","Timescale",null,null,""]
[null,null,null,null,null,null,""]
[null,null,null,null,null,null,""]
[null,"6.3 - Saisie, publication et partage des données",null,null,null,null,"6.3"]
[null,null,null,null,null,null,""]
[null,"6.3.1 - Le degré de partage des données sur la résilience de la ville avec les autres organisations impliquées dans la résilience de la ville",null,null,null,null,"6.3.1"]
[null,"Question","Comments",null,null,null,""]
[null,null,null,null,null,null,""]
[null,"Response","Provide means of verification (explanation and evidence)",null,null,null,""]
[null,null,null,null,null,{"$f":"IF(E91=1,TRUE,FALSE)","v":false},""]
[null,null,null,null,null,{"$f":"IF(E91=2,TRUE,FALSE)","v":false},""]
[null,null,null,null,null,{"$f":"IF(E91=3,TRUE,FALSE)","v":false},""]
[null,null,null,null,null,{"$f":"IF(E91=4,TRUE,FALSE)","v":false},""]
[null,null,null,null,null,{"$f":"IF(E91=5,TRUE,FALSE)","v":false},""]
[null,null,null,null,null,{"$f":"IF(E91=6,TRUE,FALSE)","v":false},""]
[null,"Actions to achieve maximum resilience","Responsible institution","Timescale",null,null,""]
[null,null,null,null,null,null,""]
[null,null,null,null,null,null,""]
[null,"6.3.2 - Le degré de partage des données sur la résilience de la ville avec les organisations communautaires et le public",null,null,null,null,"6.3.2"]
[null,"Question","Comments",null,null,null,""]
[null,null,null,null,null,null,""]
[null,"Response","Provide means of verification (explanation and evidence)",null,null,null,""]
[null,null,null,null,null,{"$f":"IF(E104=1,TRUE,FALSE)","v":false},""]
[null,null,null,null,null,{"$f":"IF(E104=2,TRUE,FALSE)","v":false},""]
[null,null,null,null,null,{"$f":"IF(E104=3,TRUE,FALSE)","v":false},""]
[null,null,null,null,null,{"$f":"IF(E104=4,TRUE,FALSE)","v":false},""]
[null,null,null,null,null,{"$f":"IF(E104=5,TRUE,FALSE)","v":false},""]
[null,null,null,null,null,{"$f":"IF(E104=6,TRUE,FALSE)","v":false},""]
[null,"Actions to achieve maximum resilience","Responsible institution","Timescale",null,null,""]
[null,null,null,null,null,null,""]
[null,null,null,null,null,null,""]
[null,"6.4 - Formation dispensée",null,null,null,null,"6.4"]
[null,null,null,null,null,null,""]
[null,"6.4.1 - Disponibilité, taux de participation à des formations focalisées sur le risque et la résilience (formation professionnelle)",null,null,null,null,"6.4.1"]
[null,"Question","Comments",null,null,null,""]
[null,null,null,null,null,null,""]
[null,"Response","Provide means of verification (explanation and evidence)",null,null,null,""]
[null,null,null,null,null,{"$f":"IF(E119=1,TRUE,FALSE)","v":false},""]
[null,null,null,null,null,{"$f":"IF(E119=2,TRUE,FALSE)","v":false},""]
[null,null,null,null,null,{"$f":"IF(E119=3,TRUE,FALSE)","v":false},""]
[null,null,null,null,null,{"$f":"IF(E119=4,TRUE,FALSE)","v":false},""]
[null,null,null,null,null,{"$f":"IF(E119=5,TRUE,FALSE)","v":false},""]
[null,null,null,null,null,{"$f":"IF(E119=6,TRUE,FALSE)","v":false},""]
[null,"Actions to achieve maximum resilience","Responsible institution","Timescale",null,null,""]
[null,null,null,null,null,null,""]
[null,null,null,null,null,null,""]
[null,"6.4.1.1 - Disponibilité, taux de participation à des formations focalisées sur le risque et la résilience (formation professionnelle)",null,null,null,null,"6.4.1.1"]
[null,"Question","Comments",null,null,null,""]
[null,null,null,null,null,null,""]
[null,"Response","Provide means of verification (explanation and evidence)",null,null,null,""]
[null,null,null,null,null,{"$f":"IF(E132=1,TRUE,FALSE)","v":false},""]
[null,null,null,null,null,{"$f":"IF(E132=2,TRUE,FALSE)","v":false},""]
[null,null,null,null,null,{"$f":"IF(E132=3,TRUE,FALSE)","v":false},""]
[null,null,null,null,null,{"$f":"IF(E132=4,TRUE,FALSE)","v":false},""]
[null,null,null,null,null,{"$f":"IF(E132=5,TRUE,FALSE)","v":false},""]
[null,null,null,null,null,{"$f":"IF(E132=6,TRUE,FALSE)","v":false},""]
[null,"Actions to achieve maximum resilience","Responsible institution","Timescale",null,null,""]
[null,null,null,null,null,null,""]
[null,null,null,null,null,null,""]
[null,"6.4.2 - Système/ processus de mise au jour de l’entraînement pertinent",null,null,null,null,"6.4.2"]
[null,"Question","Comments",null,null,null,""]
[null,null,null,null,null,null,""]
[null,"Response","Provide means of verification (explanation and evidence)",null,null,null,""]
[null,null,null,null,null,{"$f":"IF(E145=1,TRUE,FALSE)","v":false},""]
[null,null,null,null,null,{"$f":"IF(E145=2,TRUE,FALSE)","v":false},""]
[null,null,null,null,null,{"$f":"IF(E145=3,TRUE,FALSE)","v":false},""]
[null,null,null,null,null,{"$f":"IF(E145=4,TRUE,FALSE)","v":false},""]
[null,null,null,null,null,{"$f":"IF(E145=5,TRUE,FALSE)","v":false},""]
[null,null,null,null,null,{"$f":"IF(E145=6,TRUE,FALSE)","v":false},""]
[null,"Actions to achieve maximum resilience","Responsible institution","Timescale",null,null,""]
[null,null,null,null,null,null,""]
[null,null,null,null,null,null,""]
[null,"6.5 - Langues",null,null,null,null,"6.5"]
[null,null,null,null,null,null,""]
[null,"6.5.1 - Accessibilité de l’éducation et de la formation pour tous les groupes linguistiques de la ville",null,null,null,null,"6.5.1"]
[null,"Question","Comments",null,null,null,""]
[null,null,null,null,null,null,""]
[null,"Response","Provide means of verification (explanation and evidence)",null,null,null,""]
[null,null,null,null,null,{"$f":"IF(E160=1,TRUE,FALSE)","v":false},""]
[null,null,null,null,null,{"$f":"IF(E160=2,TRUE,FALSE)","v":false},""]
[null,null,null,null,null,{"$f":"IF(E160=3,TRUE,FALSE)","v":false},""]
[null,null,null,null,null,{"$f":"IF(E160=4,TRUE,FALSE)","v":false},""]
[null,null,null,null,null,{"$f":"IF(E160=5,TRUE,FALSE)","v":false},""]
[null,null,null,null,null,{"$f":"IF(E160=6,TRUE,FALSE)","v":false},""]
[null,"Actions to achieve maximum resilience","Responsible institution","Timescale",null,null,""]
[null,null,null,null,null,null,""]
[null,null,null,null,null,null,""]
[null,"6.6 - Apprentissage par autrui",null,null,null,null,"6.6"]
[null,null,null,null,null,null,""]
[null,"6.6.1 - L’effort déployé pour apprendre ce que font les autres villes, états et pays (et compagnies) pour accroître la résilience.",null,null,null,null,"6.6.1"]
[null,"Question","Comments",null,null,null,""]
[null,null,null,null,null,null,""]
[null,"Response","Provide means of verification (explanation and evidence)",null,null,null,""]
[null,null,null,null,null,{"$f":"IF(E175=1,TRUE,FALSE)","v":false},""]
[null,null,null,null,null,{"$f":"IF(E175=2,TRUE,FALSE)","v":false},""]
[null,null,null,null,null,{"$f":"IF(E175=3,TRUE,FALSE)","v":false},""]
[null,null,null,null,null,{"$f":"IF(E175=4,TRUE,FALSE)","v":false},""]
[null,null,null,null,null,{"$f":"IF(E175=5,TRUE,FALSE)","v":false},""]
[null,null,null,null,null,{"$f":"IF(E175=6,TRUE,FALSE)","v":false},""]
[null,"Actions to achieve maximum resilience","Responsible institution","Timescale",null,null,""]
[null,null,null,null,null,null,""]
[null,null,null,null,null,null,""]
[null,null,null,null,null,null,""]
[null,null,null,null,null,null,""]
[null,null,null,null,null,null,""]
[null,null,null,null,null,null,""]
[null,null,null,null,null,null,""]
[null,null,null,null,null,null,""]
[null,null,null,null,null,null,""]
[null,null,null,null,null,null,""]
[null,null,null,null,null,null,""]
[null,null,null,null,null,null,""]
[null,null,null,null,null,null,""]
[null,null,null,null,null,null,""]
[null,null,null,null,null,null,""]
[null,null,null,null,null,null,""]
[null,null,null,null,null,null,""]
[null,null,null,null,null,null,""]
[null,null,null,null,null,null,""]
[null,null,null,null,null,null,""]
[null,null,null,null,null,null,""]
[null,null,null,null,null,null,""]
[null,null,null,null,null,null,""]
[null,null,null,null,null,null,""]
[null,null,null,null,null,null,""]
[null,null,null,null,null,null,""]
[null,null,null,null,null,null,""]
[null,null,null,null,null,null,""]
[null,null,null,null,null,null,""]
[null,null,null,null,null,null,""]
[null,null,null,null,null,null,""]
[null,null,null,null,null,null,""]
[null,null,null,null,null,null,""]
[null,null,null,null,null,null,""]
[null,null,null,null,null,null,""]
[null,null,null,null,null,null,""]
[null,null,null,null,null,null,""]
[null,null,null,null,null,null,""]
[null,null,null,null,null,null,""]
[null,null,null,null,null,null,""]
[null,null,null,null,null,null,""]
[null,null,null,null,null,null,""]
[null,null,null,null,null,null,""]
[null,null,null,null,null,null,""]
[null,null,null,null,null,null,""]
[null,null,null,null,null,null,""]
[null,null,null,null,null,null,""]
[null,null,null,null,null,null,""]
[null,null,null,null,null,null,""]
[null,null,null,null,null,null,""]
[null,null,null,null,null,null,""]
[null,null,null,null,null,null,""]
[null,null,null,null,null,null,""]
[null,null,null,null,null,null,""]
[null,null,null,null,null,null,""]
[null,null,null,null,null,null,""]
[null,null,null,null,null,null,""]
[null,null,null,null,null,null,""]
[null,null,null,null,null,null,""]
[null,null,null,null,null,null,""]
[null,null,null,null,null,null,""]
[null,null,null,null,null,null,""]
[null,null,null,null,null,null,""]
[null,null,null,null,null,null,""]
[null,null,null,null,null,null,""]
[null,null,null,null,null,null,""]
[null,null,null,null,null,null,""]
[null,null,null,null,null,null,""]
[null,null,null,null,null,null,""]
[null,null,null,null,null,null,""]
[null,null,null,null,null,null,""]
[null,null,null,null,null,null,""]
[null,null,null,null,null,null,""]
[null,null,null,null,null,null,""]
[null,null,null,null,null,null,""]
[null,null,null,null,null,null,""]
[null,null,null,null,null,null,""]
[null,null,null,null,null,null,""]
[null,null,null,null,null,null,""]
[null,null,null,null,null,null,""]
[null,null,null,null,null,null,""]
[null,null,null,null,null,null,""]
[null,null,null,null,null,null,""]
[null,null,null,null,null,null,""]
[null,null,null,null,null,null,""]
[null,null,null,null,null,null,""]
[null,null,null,null,null,null,""]
[null,null,null,null,null,null,""]
[null,null,null,null,null,null,""]
[null,null,null,null,null,null,""]
[null,null,null,null,null,null,""]
[null,null,null,null,null,null,""]
[null,null,null,null,null,null,""]
[null,null,null,null,null,null,""]
[null,null,null,null,null,null,""]
[null,null,null,null,null,null,""]
[null,null,null,null,null,null,""]
[null,null,null,null,null,null,""]
[null,null,null,null,null,null,""]
[null,null,null,null,null,null,""]
[null,null,null,null,null,null,""]
[null,null,null,null,null,null,""]
[null,null,null,null,null,null,""]
[null,null,null,null,null,null,""]
[null,null,null,null,null,null,""]
[null,null,null,null,null,null,""]
[null,null,null,null,null,null,""]
[null,null,null,null,null,null,""]
[null,null,null,null,null,null,""]
[null,null,null,null,null,null,""]
[null,null,null,null,null,null,""]
[null,null,null,null,null,null,""]
[null,null,null,null,null,null,""]
[null,null,null,null,null,null,""]
[null,null,null,null,null,null,""]
[null,null,null,null,null,null,""]
[null,null,null,null,null,null,""]
[null,null,null,null,null,null,""]
[null,null,null,null,null,null,""]
[null,null,null,null,null,null,""]
[null,null,null,null,null,null,""]
[null,null,null,null,null,null,""]
[null,null,null,null,null,null,""]
[null,null,null,null,null,null,""]
[null,null,null,null,null,null,""]
[null,null,null,null,null,null,""]
[null,null,null,null,null,null,""]
[null,null,null,null,null,null,""]
[null,null,null,null,null,null,""]
[null,null,null,null,null,null,""]
[null,null,null,null,null,null,""]
[null,null,null,null,null,null,""]
[null,null,null,null,null,null,""]
[null,null,null,null,null,null,""]
[null,null,null,null,null,null,""]
[null,null,null,null,null,null,""]
[null,null,null,null,null,null,""]
[null,null,null,null,null,null,""]
[null,null,null,null,null,null,""]
[null,null,null,null,null,null,""]
[null,null,null,null,null,null,""]
[null,null,null,null,null,null,""]
[null,null,null,null,null,null,""]
[null,null,null,null,null,null,""]
[null,null,null,null,null,null,""]
[null,null,null,null,null,null,""]
[null,null,null,null,null,null,""]
[null,null,null,null,null,null,""]
[null,null,null,null,null,null,""]
[null,null,null,null,null,null,""]
[null,null,null,null,null,null,""]
[null,null,null,null,null,null,""]
[null,null,null,null,null,null,""]
[null,null,null,null,null,null,""]
[null,null,null,null,null,null,""]
[null,null,null,null,null,null,""]
[null,null,null,null,null,null,""]
[null,null,null,null,null,null,""]
[null,null,null,null,null,null,""]
[null,null,null,null,null,null,""]
[null,null,null,null,null,null,""]
[null,null,null,null,null,null,""]
[null,null,null,null,null,null,""]
[null,null,null,null,null,null,""]
[null,null,null,null,null,null,""]
[null,null,null,null,null,null,""]
[null,null,null,null,null,null,""]
[null,null,null,null,null,null,""]
[null,null,null,null,null,null,""]
[null,null,null,null,null,null,""]
[null,null,null,null,null,null,""]
[null,null,null,null,null,null,""]
[null,null,null,null,null,null,""]
[null,null,null,null,null,null,""]
[null,null,null,null,null,null,""]
[null,null,null,null,null,null,""]
[null,null,null,null,null,null,""]
[null,null,null,null,null,null,""]
[null,null,null,null,null,null,""]
[null,null,null,null,null,null,""]
[null,null,null,null,null,null,""]
[null,null,null,null,null,null,""]
[null,null,null,null,null,null,""]
[null,null,null,null,null,null,""]
[null,null,null,null,null,null,""]
[null,null,null,null,null,null,""]
[null,null,null,null,null,null,""]
[null,null,null,null,null,null,""]
[null,null,null,null,null,null,""]
[null,null,null,null,null,null,""]
[null,null,null,null,null,null,""]
[null,null,null,null,null,null,""]
[null,null,null,null,null,null,""]
[null,null,null,null,null,null,""]
[null,null,null,null,null,null,""]
[null,null,null,null,null,null,""]
[null,null,null,null,null,null,""]
[null,null,null,null,null,null,""]
[null,null,null,null,null,null,""]
[null,null,null,null,null,null,""]
[null,null,null,null,null,null,""]
[null,null,null,null,null,null,""]
[null,null,null,null,null,null,""]
[null,null,null,null,null,null,""]
[null,null,null,null,null,null,""]
[null,null,null,null,null,null,""]
[null,null,null,null,null,null,""]
[null,null,null,null,null,null,""]
[null,null,null,null,null,null,""]
[null,null,null,null,null,null,""]
[null,null,null,null,null,null,""]
[null,null,null,null,null,null,""]
[null,null,null,null,null,null,""]
[null,null,null,null,null,null,""]
[null,null,null,null,null,null,""]
[null,null,null,null,null,null,""]
[null,null,null,null,null,null,""]
[null,null,null,null,null,null,""]
[null,null,null,null,null,null,""]
[null,null,null,null,null,null,""]
[null,null,null,null,null,null,""]
[null,null,null,null,null,null,""]
[null,null,null,null,null,null,""]
[null,null,null,null,null,null,""]
[null,null,null,null,null,null,""]
[null,null,null,null,null,null,""]
[null,null,null,null,null,null,""]
[null,null,null,null,null,null,""]
[null,null,null,null,null,null,""]
[null,null,null,null,null,null,""]
[null,null,null,null,null,null,""]
[null,null,null,null,null,null,""]
[null,null,null,null,null,null,""]
[null,null,null,null,null,null,""]
[null,null,null,null,null,null,""]
[null,null,null,null,null,null,""]
[null,null,null,null,null,null,""]
[null,null,null,null,null,null,""]
[null,null,null,null,null,null,""]
[null,null,null,null,null,null,""]
[null,null,null,null,null,null,""]
[null,null,null,null,null,null,""]
[null,null,null,null,null,null,""]
[null,null,null,null,null,null,""]
[null,null,null,null,null,null,""]
[null,null,null,null,null,null,""]
[null,null,null,null,null,null,""]
[null,null,null,null,null,null,""]
[null,null,null,null,null,null,""]
[null,null,null,null,null,null,""]
[null,null,null,null,null,null,""]
[null,null,null,null,null,null,""]
[null,null,null,null,null,null,""]
[null,null,null,null,null,null,""]
[null,null,null,null,null,null,""]
[null,null,null,null,null,null,""]
[null,null,null,null,null,null,""]
[null,null,null,null,null,null,""]
[null,null,null,null,null,null,""]
[null,null,null,null,null,null,""]
[null,null,null,null,null,null,""]
[null,null,null,null,null,null,""]
[null,null,null,null,null,null,""]
[null,null,null,null,null,null,""]
[null,null,null,null,null,null,""]
[null,null,null,null,null,null,""]
[null,null,null,null,null,null,""]
[null,null,null,null,null,null,""]
[null,null,null,null,null,null,""]
[null,null,null,null,null,null,""]
[null,null,null,null,null,null,""]
[null,null,null,null,null,null,""]
[null,null,null,null,null,null,""]
[null,null,null,null,null,null,""]
[null,null,null,null,null,null,""]
[null,null,null,null,null,null,""]
[null,null,null,null,null,null,""]
[null,null,null,null,null,null,""]
[null,null,null,null,null,null,""]
[null,null,null,null,null,null,""]
[null,null,null,null,null,null,""]
[null,null,null,null,null,null,""]
[null,null,null,null,null,null,""]
[null,null,null,null,null,null,""]
[null,null,null,null,null,null,""]
[null,null,null,null,null,null,""]
[null,null,null,null,null,null,""]
[null,null,null,null,null,null,""]
[null,null,null,null,null,null,""]
[null,null,null,null,null,null,""]
[null,null,null,null,null,null,""]
[null,null,null,null,null,null,""]
[null,null,null,null,null,null,""]
[null,null,null,null,null,null,""]
[null,null,null,null,null,null,""]
[null,null,null,null,null,null,""]
[null,null,null,null,null,null,""]
[null,null,null,null,null,null,""]
[null,null,null,null,null,null,""]
[null,null,null,null,null,null,""]
[null,null,null,null,null,null,""]
[null,null,null,null,null,null,""]
[null,null,null,null,null,null,""]
[null,null,null,null,null,null,""]
[null,null,null,null,null,null,""]
[null,null,null,null,null,null,""]
[null,null,null,null,null,null,""]
[null,null,null,null,null,null,""]
[null,null,null,null,null,null,""]
[null,null,null,null,null,null,""]
[null,null,null,null,null,null,""]
[null,null,null,null,null,null,""]
[null,null,null,null,null,null,""]
[null,null,null,null,null,null,""]
[null,null,null,null,null,null,""]
[null,null,null,null,null,null,""]
[null,null,null,null,null,null,""]
[null,null,null,null,null,null,""]
[null,null,null,null,null,null,""]
[null,null,null,null,null,null,""]
[null,null,null,null,null,null,""]
[null,null,null,null,null,null,""]
[null,null,null,null,null,null,""]
[null,null,null,null,null,null,""]
[null,null,null,null,null,null,""]
[null,null,null,null,null,null,""]
[null,null,null,null,null,null,""]
[null,null,null,null,null,null,""]
[null,null,null,null,null,null,""]
[null,null,null,null,null,null,""]
[null,null,null,null,null,null,""]
[null,null,null,null,null,null,""]
[null,null,null,null,null,null,""]
[null,null,null,null,null,null,""]
[null,null,null,null,null,null,""]
[null,null,null,null,null,null,""]
[null,null,null,null,null,null,""]
[null,null,null,null,null,null,""]
[null,null,null,null,null,null,""]
[null,null,null,null,null,null,""]
[null,null,null,null,null,null,""]
[null,null,null,null,null,null,""]
[null,null,null,null,null,null,""]
[null,null,null,null,null,null,""]
[null,null,null,null,null,null,""]
[null,null,null,null,null,null,""]
[null,null,null,null,null,null,""]
[null,null,null,null,null,null,""]
[null,null,null,null,null,null,""]
[null,null,null,null,null,null,""]
[null,null,null,null,null,null,""]
[null,null,null,null,null,null,""]
[null,null,null,null,null,null,""]
[null,null,null,null,null,null,""]
[null,null,null,null,null,null,""]
[null,null,null,null,null,null,""]
[null,null,null,null,null,null,""]
[null,null,null,null,null,null,""]
[null,null,null,null,null,null,""]
[null,null,null,null,null,null,""]
[null,null,null,null,null,null,""]
[null,null,null,null,null,null,""]
[null,null,null,null,null,null,""]
[null,null,null,null,null,null,""]
[null,null,null,null,null,null,""]
[null,null,null,null,null,null,""]
[null,null,null,null,null,null,""]
[null,null,null,null,null,null,""]
[null,null,null,null,null,null,""]
[null,null,null,null,null,null,""]
[null,null,null,null,null,null,""]
[null,null,null,null,null,null,""]
[null,null,null,null,null,null,""]
[null,null,null,null,null,null,""]
[null,null,null,null,null,null,""]
[null,null,null,null,null,null,""]
[null,null,null,null,null,null,""]
[null,null,null,null,null,null,""]
[null,null,null,null,null,null,""]
[null,null,null,null,null,null,""]
[null,null,null,null,null,null,""]
[null,null,null,null,null,null,""]
[null,null,null,null,null,null,""]
[null,null,null,null,null,null,""]
[null,null,null,null,null,null,""]
[null,null,null,null,null,null,""]
[null,null,null,null,null,null,""]
[null,null,null,null,null,null,""]
[null,null,null,null,null,null,""]
[null,null,null,null,null,null,""]
[null,null,null,null,null,null,""]
[null,null,null,null,null,null,""]
[null,null,null,null,null,null,""]
[null,null,null,null,null,null,""]
[null,null,null,null,null,null,""]
[null,null,null,null,null,null,""]
[null,null,null,null,null,null,""]
[null,null,null,null,null,null,""]
[null,null,null,null,null,null,""]
[null,null,null,null,null,null,""]
[null,null,null,null,null,null,""]
[null,null,null,null,null,null,""]
[null,null,null,null,null,null,""]
[null,null,null,null,null,null,""]
[null,null,null,null,null,null,""]
[null,null,null,null,null,null,""]
[null,null,null,null,null,null,""]
[null,null,null,null,null,null,""]
[null,null,null,null,null,null,""]
[null,null,null,null,null,null,""]
[null,null,null,null,null,null,""]
[null,null,null,null,null,null,""]
[null,null,null,null,null,null,""]
[null,null,null,null,null,null,""]
[null,null,null,null,null,null,""]
[null,null,null,null,null,null,""]
[null,null,null,null,null,null,""]
[null,null,null,null,null,null,""]
[null,null,null,null,null,null,""]
[null,null,null,null,null,null,""]
[null,null,null,null,null,null,""]
[null,null,null,null,null,null,""]
[null,null,null,null,null,null,""]
[null,null,null,null,null,null,""]
[null,null,null,null,null,null,""]
[null,null,null,null,null,null,""]
[null,null,null,null,null,null,""]
[null,null,null,null,null,null,""]
[null,null,null,null,null,null,""]
[null,null,null,null,null,null,""]
[null,null,null,null,null,null,""]
[null,null,null,null,null,null,""]
[null,null,null,null,null,null,""]
[null,null,null,null,null,null,""]
[null,null,null,null,null,null,""]
[null,null,null,null,null,null,""]
[null,null,null,null,null,null,""]
[null,null,null,null,null,null,""]
[null,null,null,null,null,null,""]
[null,null,null,null,null,null,""]
[null,null,null,null,null,null,""]
[null,null,null,null,null,null,""]
[null,null,null,null,null,null,""]
[null,null,null,null,null,null,""]
[null,null,null,null,null,null,""]
[null,null,null,null,null,null,""]
[null,null,null,null,null,null,""]
[null,null,null,null,null,null,""]
[null,null,null,null,null,null,""]
[null,null,null,null,null,null,""]
[null,null,null,null,null,null,""]
[null,null,null,null,null,null,""]
[null,null,null,null,null,null,""]
[null,null,null,null,null,null,""]
[null,null,null,null,null,null,""]
[null,null,null,null,null,null,""]
[null,null,null,null,null,null,""]
[null,null,null,null,null,null,""]
[null,null,null,null,null,null,""]
[null,null,null,null,null,null,""]
[null,null,null,null,null,null,""]
[null,null,null,null,null,null,""]
[null,null,null,null,null,null,""]
[null,null,null,null,null,null,""]
[null,null,null,null,null,null,""]
[null,null,null,null,null,null,""]
[null,null,null,null,null,null,""]
[null,null,null,null,null,null,""]
[null,null,null,null,null,null,""]
[null,null,null,null,null,null,""]
[null,null,null,null,null,null,""]
[null,null,null,null,null,null,""]
[null,null,null,null,null,null,""]
[null,null,null,null,null,null,""]
[null,null,null,null,null,null,""]
[null,null,null,null,null,null,""]
[null,null,null,null,null,null,""]
[null,null,null,null,null,null,""]
[null,null,null,null,null,null,""]
[null,null,null,null,null,null,""]
[null,null,null,null,null,null,""]
[null,null,null,null,null,null,""]
[null,null,null,null,null,null,""]

{"sheet":"E07","index":9,"n_rows":664,"n_cols":7,"rows_kept":664,"cut":false,"hidden":false,"merged":[[127,1,127,3],[128,2,128,3],[129,2,129,3],[130,2,130,3],[131,2,136,3],[118,2,123,3],[117,2,117,3],[116,2,116,3],[115,2,115,3],[114,1,114,3],[101,1,101,3],[102,2,102,3],[103,2,103,3],[104,2,104,3],[105,2,110,3],[90,2,95,3],[89,2,89,3],[88,2,88,3],[87,2,87,3],[86,1,86,3],[73,1,73,3],[74,2,74,3],[75,2,75,3],[76,2,76,3],[77,2,82,3],[46,2,46,3],[47,2,47,3],[48,2,48,3],[49,2,54,3],[62,2,67,3],[61,2,61,3],[60,2,60,3],[59,2,59,3],[58,1,58,3],[33,2,33,3],[32,2,32,3],[31,2,31,3],[30,1,30,3],[45,1,45,3],[34,2,39,3],[5,2,5,3],[4,1,4,3],[6,2,6,3],[7,2,7,3],[8,2,13,3],[21,2,26,3],[20,2,20,3],[19,2,19,3],[18,2,18,3],[17,1,17,3]]}
[]
[null,null,null,null,null,null,""]
[null,"7.1 - Organisations communautaires ou organisations « de base »",null,null,null,null,"7.1"]
[null,null,null,null,null,null,""]
[null,"7.1.1 - Etendue des organisations communautaires ou “de base” dans la ville",null,null,null,null,"7.1.1"]
[null,"Question","Comments",null,null,null,""]
[null,null,null,null,null,null,""]
[null,"Response","Provide means of verification (explanation and evidence)",null,null,null,""]
[null,null,null,null,null,{"$f":"IF(E9=1,TRUE,FALSE)","v":false},""]
[null,null,null,null,null,{"$f":"IF(E9=2,TRUE,FALSE)","v":false},""]
[null,null,null,null,null,{"$f":"IF(E9=3,TRUE,FALSE)","v":false},""]
[null,null,null,null,null,{"$f":"IF(E9=4,TRUE,FALSE)","v":false},""]
[null,null,null,null,null,{"$f":"IF(E9=5,TRUE,FALSE)","v":false},""]
[null,null,null,null,null,{"$f":"IF(E9=6,TRUE,FALSE)","v":false},""]
[null,"Actions to achieve maximum resilience","Responsible institution","Timescale",null,null,""]
[null,null,null,null,null,null,""]
[null,null,null,null,null,null,""]
[null,"7.1.2 - Efficacité du réseau communautaire",null,null,null,null,"7.1.2"]
[null,"Question","Comments",null,null,null,""]
[null,null,null,null,null,null,""]
[null,"Response","Provide means of verification (explanation and evidence)",null,null,null,""]
[null,null,null,null,null,{"$f":"IF(E22=1,TRUE,FALSE)","v":false},""]
[null,null,null,null,null,{"$f":"IF(E22=2,TRUE,FALSE)","v":false},""]
[null,null,null,null,null,{"$f":"IF(E22=3,TRUE,FALSE)","v":false},""]
[null,null,null,null,null,{"$f":"IF(E22=4,TRUE,FALSE)","v":false},""]
[null,null,null,null,null,{"$f":"IF(E22=5,TRUE,FALSE)","v":false},""]
[null,null,null,null,null,{"$f":"IF(E22=6,TRUE,FALSE)","v":false},""]
[null,"Actions to achieve maximum resilience","Responsible institution","Timescale",null,null,""]
[null,null,null,null,null,null,""]
[null,null,null,null,null,null,""]
[null,"7.1.2.1 - Efficacité du réseau communautaire",null,null,null,null,"7.1.2.1"]
[null,"Question","Comments",null,null,null,""]
[null,null,null,null,null,null,""]
[null,"Response","Provide means of verification (explanation and evidence)",null,null,null,""]
[null,null,null,null,null,{"$f":"IF(E35=1,TRUE,FALSE)","v":false},""]
[null,null,null,null,null,{"$f":"IF(E35=2,TRUE,FALSE)","v":false},""]
[null,null,null,null,null,{"$f":"IF(E35=3,TRUE,FALSE)","v":false},""]
[null,null,null,null,null,{"$f":"IF(E35=4,TRUE,FALSE)","v":false},""]
[null,null,null,null,null,{"$f":"IF(E35=5,TRUE,FALSE)","v":false},""]
[null,null,null,null,null,{"$f":"IF(E35=6,TRUE,FALSE)","v":false},""]
[null,"Actions to achieve maximum resilience","Responsible institution","Timescale",null,null,""]
[null,null,null,null,null,null,""]
[null,null,null,null,null,null,""]
[null,"7.2 - Réseaux sociaux",null,null,null,null,"7.2"]
[null,null,null,null,null,null,""]
[null,"7.2.1 - La connectivité sociale et la cohésion du voisinage",null,null,null,null,"7.2.1"]
[null,"Question","Comments",null,null,null,""]
[null,null,null,null,null,null,""]
[null,"Response","Provide means of verification (explanation and evidence)",null,null,null,""]
[null,null,null,null,null,{"$f":"IF(E50=1,TRUE,FALSE)","v":false},""]
[null,null,null,null,null,{"$f":"IF(E50=2,TRUE,FALSE)","v":false},""]
[null,null,null,null,null,{"$f":"IF(E50=3,TRUE,FALSE)","v":false},""]
[null,null,null,null,null,{"$f":"IF(E50=4,TRUE,FALSE)","v":false},""]
[null,null,null,null,null,{"$f":"IF(E50=5,TRUE,FALSE)","v":false},""]
[null,null,null,null,null,{"$f":"IF(E50=6,TRUE,FALSE)","v":false},""]
[null,"Actions to achieve maximum resilience","Responsible institution","Timescale",null,null,""]
[null,null,null,null,null,null,""]
[null,null,null,null,null,null,""]
[null,"7.2.2 - Engagement des groupes vulnérables de la population",null,null,null,null,"7.2.2"]
[null,"Question","Comments",null,null,null,""]
[null,null,null,null,null,null,""]
[null,"Response","Provide means of verification (explanation and evidence)",null,null,null,""]
[null,null,null,null,null,{"$f":"IF(E63=1,TRUE,FALSE)","v":false},""]
[null,null,null,null,null,{"$f":"IF(E63=2,TRUE,FALSE)","v":false},""]
[null,null,null,null,null,{"$f":"IF(E63=3,TRUE,FALSE)","v":false},""]
[null,null,null,null,null,{"$f":"IF(E63=4,TRUE,FALSE)","v":false},""]
[null,null,null,null,null,{"$f":"IF(E63=5,TRUE,FALSE)","v":false},""]
[null,null,null,null,null,{"$f":"IF(E63=6,TRUE,FALSE)","v":false},""]
[null,"Actions to achieve maximum resilience","Responsible institution","Timescale",null,null,""]
[null,null,null,null,null,null,""]
[null,null,null,null,null,null,""]
[null,"7.3 - Secteur privé/Patrons",null,null,null,null,"7.3"]
[null,null,null,null,null,null,""]
[null,"7.3.1 - La mesure dans laquelle les patrons agissent comme intermédiaires avec les employés",null,null,null,null,"7.3.1"]
[null,"Question","Comments",null,null,null,""]
[null,null,null,null,null,null,""]
[null,"Response","Provide means of verification (explanation and evidence)",null,null,null,""]
[null,null,null,null,null,{"$f":"IF(E78=1,TRUE,FALSE)","v":false},""]
[null,null,null,null,null,{"$f":"IF(E78=2,TRUE,FALSE)","v":false},""]
[null,null,null,null,null,{"$f":"IF(E78=3,TRUE,FALSE)","v":false},""]
[null,null,null,null,null,{"$f":"IF(E78=4,TRUE,FALSE)","v":false},""]
[null,null,null,null,null,{"$f":"IF(E78=5,TRUE,FALSE)","v":false},""]
[null,null,null,null,null,{"$f":"IF(E78=6,TRUE,FALSE)","v":false},""]
[null,"Actions to achieve maximum resilience","Responsible institution","Timescale",null,null,""]
[null,null,null,null,null,null,""]
[null,null,null,null,null,null,""]
[null,"7.3.2 - Planification de la continuité de l’activité commerciale",null,null,null,null,"7.3.2"]
[null,"Question","Comments",null,null,null,""]
[null,null,null,null,null,null,""]
[null,"Response","Provide means of verification (explanation and evidence)",null,null,null,""]
[null,null,null,null,null,{"$f":"IF(E91=1,TRUE,FALSE)","v":false},""]
[null,null,null,null,null,{"$f":"IF(E91=2,TRUE,FALSE)","v":false},""]
[null,null,null,null,null,{"$f":"IF(E91=3,TRUE,FALSE)","v":false},""]
[null,null,null,null,null,{"$f":"IF(E91=4,TRUE,FALSE)","v":false},""]
[null,null,null,null,null,{"$f":"IF(E91=5,TRUE,FALSE)","v":false},""]
[null,null,null,null,null,{"$f":"IF(E91=6,TRUE,FALSE)","v":false},""]
[null,"Actions to achieve maximum resilience","Responsible institution","Timescale",null,null,""]
[null,null,null,null,null,null,""]
[null,null,null,null,null,null,""]
[null,"7.4 - Techniques d’engagement des citoyens",null,null,null,null,"7.4"]
[null,null,null,null,null,null,""]
[null,"7.4.1 - fréquenced’engagement",null,null,null,null,"7.4.1"]
[null,"Question","Comments",null,null,null,""]
[null,null,null,null,null,null,""]
[null,"Response","Provide means of verification (explanation and evidence)",null,null,null,""]
[null,null,null,null,null,{"$f":"IF(E106=1,TRUE,FALSE)","v":false},""]
[null,null,null,null,null,{"$f":"IF(E106=2,TRUE,FALSE)","v":false},""]
[null,null,null,null,null,{"$f":"IF(E106=3,TRUE,FALSE)","v":false},""]
[null,null,null,null,null,{"$f":"IF(E106=4,TRUE,FALSE)","v":false},""]
[null,null,null,null,null,{"$f":"IF(E106=5,TRUE,FALSE)","v":false},""]
[null,null,null,null,null,{"$f":"IF(E106=6,TRUE,FALSE)","v":false},""]
[null,"Actions to achieve maximum resilience","Responsible institution","Timescale",null,null,""]
[null,null,null,null,null,null,""]
[null,null,null,null,null,null,""]
[null,"7.4.2 - Usage des « systèmes d’engagement » par e-mail et le mobile, pour habiliter les citoyens à recevoir et donner des mises au jour avant et après la catastrophe.",null,null,null,null,"7.4.2"]
[null,"Question","Comments",null,null,null,""]
[null,null,null,null,null,null,""]
[null,"Response","Provide means of verification (explanation and evidence)",null,null,null,""]
[null,null,null,null,null,{"$f":"IF(E119=1,TRUE,FALSE)","v":false},""]
[null,null,null,null,null,{"$f":"IF(E119=2,TRUE,FALSE)","v":false},""]
[null,null,null,null,null,{"$f":"IF(E119=3,TRUE,FALSE)","v":false},""]
[null,null,null,null,null,{"$f":"IF(E119=4,TRUE,FALSE)","v":false},""]
[null,null,null,null,null,{"$f":"IF(E119=5,TRUE,FALSE)","v":false},""]
[null,null,null,null,null,{"$f":"IF(E119=6,TRUE,FALSE)","v":false},""]
[null,"Actions to achieve maximum resilience","Responsible institution","Timescale",null,null,""]
[null,null,null,null,null,null,""]
[null,null,null,null,null,null,""]
[null,"7.4.3 - Validation de l’efficacité de l’éducation",null,null,null,null,"7.4.3"]
[null,"Question","Comments",null,null,null,""]
[null,null,null,null,null,null,""]
[null,"Response","Provide means of verification (explanation and evidence)",null,null,null,""]
[null,null,null,null,null,{"$f":"IF(E132=1,TRUE,FALSE)","v":false},""]
[null,null,null,null,null,{"$f":"IF(E132=2,TRUE,FALSE)","v":false},""]
[null,null,null,null,null,{"$f":"IF(E132=3,TRUE,FALSE)","v":false},""]
[null,null,null,null,null,{"$f":"IF(E132=4,TRUE,FALSE)","v":false},""]
[null,null,null,null,null,{"$f":"IF(E132=5,TRUE,FALSE)","v":false},""]
[null,null,null,null,null,{"$f":"IF(E132=6,TRUE,FALSE)","v":false},""]
[null,"Actions to achieve maximum resilience","Responsible institution","Timescale",null,null,""]
[null,null,null,null,null,null,""]
[null,null,null,null,null,null,""]
[null,null,null,null,null,null,""]
[null,null,null,null,null,null,""]
[null,null,null,null,null,null,""]
[null,null,null,null,null,null,""]
[null,null,null,null,null,null,""]
[null,null,null,null,null,null,""]
[null,null,null,null,null,null,""]
[null,null,null,null,null,null,""]
[null,null,null,null,null,null,""]
[null,null,null,null,null,null,""]
[null,null,null,null,null,null,""]
[null,null,null,null,null,null,""]
[null,null,null,null,null,null,""]
[null,null,null,null,null,null,""]
[null,null,null,null,null,null,""]
[null,null,null,null,null,null,""]
[null,null,null,null,null,null,""]
[null,null,null,null,null,null,""]
[null,null,null,null,null,null,""]
[null,null,null,null,null,null,""]
[null,null,null,null,null,null,""]
[null,null,null,null,null,null,""]
[null,null,null,null,null,null,""]
[null,null,null,null,null,null,""]
[null,null,null,null,null,null,""]
[null,null,null,null,null,null,""]
[null,null,null,null,null,null,""]
[null,null,null,null,null,null,""]
[null,null,null,null,null,null,""]
[null,null,null,null,null,null,""]
[null,null,null,null,null,null,""]
[null,null,null,null,null,null,""]
[null,null,null,null,null,null,""]
[null,null,null,null,null,null,""]
[null,null,null,null,null,null,""]
[null,null,null,null,null,null,""]
[null,null,null,null,null,null,""]
[null,null,null,null,null,null,""]
[null,null,null,null,null,null,""]
[null,null,null,null,null,null,""]
[null,null,null,null,null,null,""]
[null,null,null,null,null,null,""]
[null,null,null,null,null,null,""]
[null,null,null,null,null,null,""]
[null,null,null,null,null,null,""]
[null,null,null,null,null,null,""]
[null,null,null,null,null,null,""]
[null,null,null,null,null,null,""]
[null,null,null,null,null,null,""]
[null,null,null,null,null,null,""]
[null,null,null,null,null,null,""]
[null,null,null,null,null,null,""]
[null,null,null,null,null,null,""]
[null,null,null,null,null,null,""]
[null,null,null,null,null,null,""]
[null,null,null,null,null,null,""]
[null,null,null,null,null,null,""]
[null,null,null,null,null,null,""]
[null,null,null,null,null,null,""]
[null,null,null,null,null,null,""]
[null,null,null,null,null,null,""]
[null,null,null,null,null,null,""]
[null,null,null,null,null,null,""]
[null,null,null,null,null,null,""]
[null,null,null,null,null,null,""]
[null,null,null,null,null,null,""]
[null,null,null,null,null,null,""]
[null,null,null,null,null,null,""]
[null,null,null,null,null,null,""]
[null,null,null,null,null,null,""]
[null,null,null,null,null,null,""]
[null,null,null,null,null,null,""]
[null,null,null,null,null,null,""]
[null,null,null,null,null,null,""]
[null,null,null,null,null,null,""]
[null,null,null,null,null,null,""]
[null,null,null,null,null,null,""]
[null,null,null,null,null,null,""]
[null,null,null,null,null,null,""]
[null,null,null,null,null,null,""]
[null,null,null,null,null,null,""]
[null,null,null,null,null,null,""]
[null,null,null,null,null,null,""]
[null,null,null,null,null,null,""]
[null,null,null,null,null,null,""]
[null,null,null,null,null,null,""]
[null,null,null,null,null,null,""]
[null,null,null,null,null,null,""]
[null,null,null,null,null,null,""]
[null,null,null,null,null,null,""]
[null,null,null,null,null,null,""]
[null,null,null,null,null,null,""]
[null,null,null,null,null,null,""]
[null,null,null,null,null,null,""]
[null,null,null,null,null,null,""]
[null,null,null,null,null,null,""]
[null,null,null,null,null,null,""]
[null,null,null,null,null,null,""]
[null,null,null,null,null,null,""]
[null,null,null,null,null,null,""]
[null,null,null,null,null,null,""]
[null,null,null,null,null,null,""]
[null,null,null,null,null,null,""]
[null,null,null,null,null,null,""]
[null,null,null,null,null,null,""]
[null,null,null,null,null,null,""]
[null,null,null,null,null,null,""]
[null,null,null,null,null,null,""]
[null,null,null,null,null,null,""]
[null,null,null,null,null,null,""]
[null,null,null,null,null,null,""]
[null,null,null,null,null,null,""]
[null,null,null,null,null,null,""]
[null,null,null,null,null,null,""]
[null,null,null,null,null,null,""]
[null,null,null,null,null,null,""]
[null,null,null,null,null,null,""]
[null,null,null,null,null,null,""]
[null,null,null,null,null,null,""]
[null,null,null,null,null,null,""]
[null,null,null,null,null,null,""]
[null,null,null,null,null,null,""]
[null,null,null,null,null,null,""]
[null,null,null,null,null,null,""]
[null,null,null,null,null,null,""]
[null,null,null,null,null,null,""]
[null,null,null,null,null,null,""]
[null,null,null,null,null,null,""]
[null,null,null,null,null,null,""]
[null,null,null,null,null,null,""]
[null,null,null,null,null,null,""]
[null,null,null,null,null,null,""]
[null,null,null,null,null,null,""]
[null,null,null,null,null,null,""]
[null,null,null,null,null,null,""]
[null,null,null,null,null,null,""]
[null,null,null,null,null,null,""]
[null,null,null,null,null,null,""]
[null,null,null,null,null,null,""]
[null,null,null,null,null,null,""]
[null,null,null,null,null,null,""]
[null,null,null,null,null,null,""]
[null,null,null,null,null,null,""]
[null,null,null,null,null,null,""]
[null,null,null,null,null,null,""]
[null,null,null,null,null,null,""]
[null,null,null,null,null,null,""]
[null,null,null,null,null,null,""]
[null,null,null,null,null,null,""]
[null,null,null,null,null,null,""]
[null,null,null,null,null,null,""]
[null,null,null,null,null,null,""]
[null,null,null,null,null,null,""]
[null,null,null,null,null,null,""]
[null,null,null,null,null,null,""]
[null,null,null,null,null,null,""]
[null,null,null,null,null,null,""]
[null,null,null,null,null,null,""]
[null,null,null,null,null,null,""]
[null,null,null,null,null,null,""]
[null,null,null,null,null,null,""]
[null,null,null,null,null,null,""]
[null,null,null,null,null,null,""]
[null,null,null,null,null,null,""]
[null,null,null,null,null,null,""]
[null,null,null,null,null,null,""]
[null,null,null,null,null,null,""]
[null,null,null,null,null,null,""]
[null,null,null,null,null,null,""]
[null,null,null,null,null,null,""]
[null,null,null,null,null,null,""]
[null,null,null,null,null,null,""]
[null,null,null,null,null,null,""]
[null,null,null,null,null,null,""]
[null,null,null,null,null,null,""]
[null,null,null,null,null,null,""]
[null,null,null,null,null,null,""]
[null,null,null,null,null,null,""]
[null,null,null,null,null,null,""]
[null,null,null,null,null,null,""]
[null,null,null,null,null,null,""]
[null,null,null,null,null,null,""]
[null,null,null,null,null,null,""]
[null,null,null,null,null,null,""]
[null,null,null,null,null,null,""]
[null,null,null,null,null,null,""]
[null,null,null,null,null,null,""]
[null,null,null,null,null,null,""]
[null,null,null,null,null,null,""]
[null,null,null,null,null,null,""]
[null,null,null,null,null,null,""]
[null,null,null,null,null,null,""]
[null,null,null,null,null,null,""]
[null,null,null,null,null,null,""]
[null,null,null,null,null,null,""]
[null,null,null,null,null,null,""]
[null,null,null,null,null,null,""]
[null,null,null,null,null,null,""]
[null,null,null,null,null,null,""]
[null,null,null,null,null,null,""]
[null,null,null,null,null,null,""]
[null,null,null,null,null,null,""]
[null,null,null,null,null,null,""]
[null,null,null,null,null,null,""]
[null,null,null,null,null,null,""]
[null,null,null,null,null,null,""]
[null,null,null,null,null,null,""]
[null,null,null,null,null,null,""]
[null,null,null,null,null,null,""]
[null,null,null,null,null,null,""]
[null,null,null,null,null,null,""]
[null,null,null,null,null,null,""]
[null,null,null,null,null,null,""]
[null,null,null,null,null,null,""]
[null,null,null,null,null,null,""]
[null,null,null,null,null,null,""]
[null,null,null,null,null,null,""]
[null,null,null,null,null,null,""]
[null,null,null,null,null,null,""]
[null,null,null,null,null,null,""]
[null,null,null,null,null,null,""]
[null,null,null,null,null,null,""]
[null,null,null,null,null,null,""]
[null,null,null,null,null,null,""]
[null,null,null,null,null,null,""]
[null,null,null,null,null,null,""]
[null,null,null,null,null,null,""]
[null,null,null,null,null,null,""]
[null,null,null,null,null,null,""]
[null,null,null,null,null,null,""]
[null,null,null,null,null,null,""]
[null,null,null,null,null,null,""]
[null,null,null,null,null,null,""]
[null,null,null,null,null,null,""]
[null,null,null,null,null,null,""]
[null,null,null,null,null,null,""]
[null,null,null,null,null,null,""]
[null,null,null,null,null,null,""]
[null,null,null,null,null,null,""]
[null,null,null,null,null,null,""]
[null,null,null,null,null,null,""]
[null,null,null,null,null,null,""]
[null,null,null,null,null,null,""]
[null,null,null,null,null,null,""]
[null,null,null,null,null,null,""]
[null,null,null,null,null,null,""]
[null,null,null,null,null,null,""]
[null,null,null,null,null,null,""]
[null,null,null,null,null,null,""]
[null,null,null,null,null,null,""]
[null,null,null,null,null,null,""]
[null,null,null,null,null,null,""]
[null,null,null,null,null,null,""]
[null,null,null,null,null,null,""]
[null,null,null,null,null,null,""]
[null,null,null,null,null,null,""]
[null,null,null,null,null,null,""]
[null,null,null,null,null,null,""]
[null,null,null,null,null,null,""]
[null,null,null,null,null,null,""]
[null,null,null,null,null,null,""]
[null,null,null,null,null,null,""]
[null,null,null,null,null,null,""]
[null,null,null,null,null,null,""]
[null,null,null,null,null,null,""]
[null,null,null,null,null,null,""]
[null,null,null,null,null,null,""]
[null,null,null,null,null,null,""]
[null,null,null,null,null,null,""]
[null,null,null,null,null,null,""]
[null,null,null,null,null,null,""]
[null,null,null,null,null,null,""]
[null,null,null,null,null,null,""]
[null,null,null,null,null,null,""]
[null,null,null,null,null,null,""]
[null,null,null,null,null,null,""]
[null,null,null,null,null,null,""]
[null,null,null,null,null,null,""]
[null,null,null,null,null,null,""]
[null,null,null,null,null,null,""]
[null,null,null,null,null,null,""]
[null,null,null,null,null,null,""]
[null,null,null,null,null,null,""]
[null,null,null,null,null,null,""]
[null,null,null,null,null,null,""]
[null,null,null,null,null,null,""]
[null,null,null,null,null,null,""]
[null,null,null,null,null,null,""]
[null,null,null,null,null,null,""]
[null,null,null,null,null,null,""]
[null,null,null,null,null,null,""]
[null,null,null,null,null,null,""]
[null,null,null,null,null,null,""]
[null,null,null,null,null,null,""]
[null,null,null,null,null,null,""]
[null,null,null,null,null,null,""]
[null,null,null,null,null,null,""]
[null,null,null,null,null,null,""]
[null,null,null,null,null,null,""]
[null,null,null,null,null,null,""]
[null,null,null,null,null,null,""]
[null,null,null,null,null,null,""]
[null,null,null,null,null,null,""]
[null,null,null,null,null,null,""]
[null,null,null,null,null,null,""]
[null,null,null,null,null,null,""]
[null,null,null,null,null,null,""]
[null,null,null,null,null,null,""]
[null,null,null,null,null,null,""]
[null,null,null,null,null,null,""]
[null,null,null,null,null,null,""]
[null,null,null,null,null,null,""]
[null,null,null,null,null,null,""]
[null,null,null,null,null,null,""]
[null,null,null,null,null,null,""]
[null,null,null,null,null,null,""]
[null,null,null,null,null,null,""]
[null,null,null,null,null,null,""]
[null,null,null,null,null,null,""]
[null,null,null,null,null,null,""]
[null,null,null,null,null,null,""]
[null,null,null,null,null,null,""]
[null,null,null,null,null,null,""]
[null,null,null,null,null,null,""]
[null,null,null,null,null,null,""]
[null,null,null,null,null,null,""]
[null,null,null,null,null,null,""]
[null,null,null,null,null,null,""]
[null,null,null,null,null,null,""]
[null,null,null,null,null,null,""]
[null,null,null,null,null,null,""]
[null,null,null,null,null,null,""]
[null,null,null,null,null,null,""]
[null,null,null,null,null,null,""]
[null,null,null,null,null,null,""]
[null,null,null,null,null,null,""]
[null,null,null,null,null,null,""]
[null,null,null,null,null,null,""]
[null,null,null,null,null,null,""]
[null,null,null,null,null,null,""]
[null,null,null,null,null,null,""]
[null,null,null,null,null,null,""]
[null,null,null,null,null,null,""]
[null,null,null,null,null,null,""]
[null,null,null,null,null,null,""]
[null,null,null,null,null,null,""]
[null,null,null,null,null,null,""]
[null,null,null,null,null,null,""]
[null,null,null,null,null,null,""]
[null,null,null,null,null,null,""]
[null,null,null,null,null,null,""]
[null,null,null,null,null,null,""]
[null,null,null,null,null,null,""]
[null,null,null,null,null,null,""]
[null,null,null,null,null,null,""]
[null,null,null,null,null,null,""]
[null,null,null,null,null,null,""]
[null,null,null,null,null,null,""]
[null,null,null,null,null,null,""]
[null,null,null,null,null,null,""]
[null,null,null,null,null,null,""]
[null,null,null,null,null,null,""]
[null,null,null,null,null,null,""]
[null,null,null,null,null,null,""]
[null,null,null,null,null,null,""]
[null,null,null,null,null,null,""]
[null,null,null,null,null,null,""]
[null,null,null,null,null,null,""]
[null,null,null,null,null,null,""]
[null,null,null,null,null,null,""]
[null,null,null,null,null,null,""]
[null,null,null,null,null,null,""]
[null,null,null,null,null,null,""]
[null,null,null,null,null,null,""]
[null,null,null,null,null,null,""]
[null,null,null,null,null,null,""]
[null,null,null,null,null,null,""]
[null,null,null,null,null,null,""]
[null,null,null,null,null,null,""]
[null,null,null,null,null,null,""]
[null,null,null,null,null,null,""]
[null,null,null,null,null,null,""]
[null,null,null,null,null,null,""]
[null,null,null,null,null,null,""]
[null,null,null,null,null,null,""]
[null,null,null,null,null,null,""]
[null,null,null,null,null,null,""]
[null,null,null,null,null,null,""]
[null,null,null,null,null,null,""]
[null,null,null,null,null,null,""]
[null,null,null,null,null,null,""]
[null,null,null,null,null,null,""]
[null,null,null,null,null,null,""]
[null,null,null,null,null,null,""]
[null,null,null,null,null,null,""]
[null,null,null,null,null,null,""]
[null,null,null,null,null,null,""]
[null,null,null,null,null,null,""]
[null,null,null,null,null,null,""]
[null,null,null,null,null,null,""]
[null,null,null,null,null,null,""]
[null,null,null,null,null,null,""]
[null,null,null,null,null,null,""]
[null,null,null,null,null,null,""]
[null,null,null,null,null,null,""]
[null,null,null,null,null,null,""]
[null,null,null,null,null,null,""]
[null,null,null,null,null,null,""]
[null,null,null,null,null,null,""]
[null,null,null,null,null,null,""]
[null,null,null,null,null,null,""]
[null,null,null,null,null,null,""]
[null,null,null,null,null,null,""]
[null,null,null,null,null,null,""]
[null,null,null,null,null,null,""]
[null,null,null,null,null,null,""]
[null,null,null,null,null,null,""]
[null,null,null,null,null,null,""]
[null,null,null,null,null,null,""]
[null,null,null,null,null,null,""]
[null,null,null,null,null,null,""]
[null,null,null,null,null,null,""]
[null,null,null,null,null,null,""]
[null,null,null,null,null,null,""]
[null,null,null,null,null,null,""]
[null,null,null,null,null,null,""]
[null,null,null,null,null,null,""]
[null,null,null,null,null,null,""]
[null,null,null,null,null,null,""]
[null,null,null,null,null,null,""]
[null,null,null,null,null,null,""]
[null,null,null,null,null,null,""]
[null,null,null,null,null,null,""]
[null,null,null,null,null,null,""]
[null,null,null,null,null,null,""]
[null,null,null,null,null,null,""]
[null,null,null,null,null,null,""]
[null,null,null,null,null,null,""]
[null,null,null,null,null,null,""]
[null,null,null,null,null,null,""]
[null,null,null,null,null,null,""]
[null,null,null,null,null,null,""]
[null,null,null,null,null,null,""]
[null,null,null,null,null,null,""]
[null,null,null,null,null,null,""]
[null,null,null,null,null,null,""]
[null,null,null,null,null,null,""]
[null,null,null,null,null,null,""]
[null,null,null,null,null,null,""]
[null,null,null,null,null,null,""]
[null,null,null,null,null,null,""]
[null,null,null,null,null,null,""]
[null,null,null,null,null,null,""]
[null,null,null,null,null,null,""]
[null,null,null,null,null,null,""]
[null,null,null,null,null,null,""]
[null,null,null,null,null,null,""]
[null,null,null,null,null,null,""]
[null,null,null,null,null,null,""]
[null,null,null,null,null,null,""]
[null,null,null,null,null,null,""]
[null,null,null,null,null,null,""]
[null,null,null,null,null,null,""]
[null,null,null,null,null,null,""]
[null,null,null,null,null,null,""]
[null,null,null,null,null,null,""]
[null,null,null,null,null,null,""]
[null,null,null,null,null,null,""]
[null,null,null,null,null,null,""]
[null,null,null,null,null,null,""]
[null,null,null,null,null,null,""]
[null,null,null,null,null,null,""]
[null,null,null,null,null,null,""]
[null,null,null,null,null,null,""]
[null,null,null,null,null,null,""]
[null,null,null,null,null,null,""]
[null,null,null,null,null,null,""]
[null,null,null,null,null,null,""]
[null,null,null,null,null,null,""]
[null,null,null,null,null,null,""]
[null,null,null,null,null,null,""]
[null,null,null,null,null,null,""]
[null,null,null,null,null,null,""]
[null,null,null,null,null,null,""]
[null,null,null,null,null,null,""]
[null,null,null,null,null,null,""]
[null,null,null,null,null,null,""]
[null,null,null,null,null,null,""]
[null,null,null,null,null,null,""]
[null,null,null,null,null,null,""]
[null,null,null,null,null,null,""]
[null,null,null,null,null,null,""]
[null,null,null,null,null,null,""]
[null,null,null,null,null,null,""]
[null,null,null,null,null,null,""]
[null,null,null,null,null,null,""]
[null,null,null,null,null,null,""]
[null,null,null,null,null,null,""]
[null,null,null,null,null,null,""]
[null,null,null,null,null,null,""]
[null,null,null,null,null,null,""]
[null,null,null,null,null,null,""]
[null,null,null,null,null,null,""]
[null,null,null,null,null,null,""]
[null,null,null,null,null,null,""]
[null,null,null,null,null,null,""]
[null,null,null,null,null,null,""]
[null,null,null,null,null,null,""]
[null,null,null,null,null,null,""]
[null,null,null,null,null,null,""]
[null,null,null,null,null,null,""]
[null,null,null,null,null,null,""]
[null,null,null,null,null,null,""]
[null,null,null,null,null,null,""]
[null,null,null,null,null,null,""]
[null,null,null,null,null,null,""]
[null,null,null,null,null,null,""]
[null,null,null,null,null,null,""]
[null,null,null,null,null,null,""]
[null,null,null,null,null,null,""]
[null,null,null,null,null,null,""]
[null,null,null,null,null,null,""]
[null,null,null,null,null,null,""]
[null,null,null,null,null,null,""]

{"sheet":"E08","index":10,"n_rows":664,"n_cols":7,"rows_kept":664,"cut":false,"hidden":false,"merged":[[444,2,449,3],[443,2,443,3],[442,2,442,3],[441,2,441,3],[440,1,440,3],[431,2,436,3],[430,2,430,3],[429,2,429,3],[428,2,428,3],[427,1,427,3],[416,2,421,3],[415,2,415,3],[414,2,414,3],[413,2,413,3],[412,1,412,3],[397,1,397,3],[398,2,398,3],[399,2,399,3],[400,2,400,3],[401,2,406,3],[386,2,391,3],[385,2,385,3],[384,2,384,3],[383,2,383,3],[382,1,382,3],[373,2,378,3],[372,2,372,3],[371,2,371,3],[370,2,370,3],[369,1,369,3],[356,1,356,3],[357,2,357,3],[358,2,358,3],[359,2,359,3],[360,2,365,3],[341,1,341,3],[342,2,342,3],[343,2,343,3],[344,2,344,3],[345,2,350,3],[332,2,337,3],[331,2,331,3],[330,2,330,3],[329,2,329,3],[328,1,328,3],[319,2,324,3],[318,2,318,3],[317,2,317,3],[316,2,316,3],[315,1,315,3],[302,1,302,3],[303,2,303,3],[304,2,304,3],[305,2,305,3],[306,2,311,3],[291,2,296,3],[290,2,290,3],[289,2,289,3],[288,2,288,3],[287,1,287,3],[278,2,283,3],[277,2,277,3],[276,2,276,3],[275,2,275,3],[274,1,274,3],[261,1,261,3],[262,2,262,3],[263,2,263,3],[264,2,264,3],[265,2,270,3],[250,2,255,3],[249,2,249,3],[248,2,248,3],[247,2,247,3],[246,1,246,3],[237,2,242,3],[236,2,236,3],[235,2,235,3],[234,2,234,3],[224,2,229,3],[223,2,223,3],[222,2,222,3],[221,2,221,3],[211,2,216,3],[210,2,210,3],[209,2,209,3],[220,1,220,2],[233,1,233,2],[208,2,208,3],[198,2,203,3],[197,2,197,3],[196,2,196,3],[195,2,195,3],[185,2,190,3],[184,2,184,3],[194,1,194,2],[207,1,207,2],[156,2,156,3],[155,2,155,3],[154,2,154,3],[142,2,142,3],[143,2,143,3],[144,2,149,3],[141,2,141,3],[140,1,140,2],[153,1,153,2],[183,2,183,3],[182,2,182,3],[181,1,181,3],[168,1,168,3],[169,2,169,3],[170,2,170,3],[171,2,171,3],[172,2,177,3],[157,2,162,3],[128,2,128,3],[129,2,129,3],[130,2,130,3],[131,2,136,3],[115,2,115,3],[116,2,116,3],[117,2,117,3],[118,2,123,3],[114,1,114,2],[127,1,127,2],[60,2,60,3],[58,1,58,3],[103,2,108,3],[102,2,102,3],[101,2,101,3],[100,2,100,3],[99,1,99,3],[74,2,74,3],[75,2,75,3],[76,2,76,3],[77,2,82,3],[90,2,95,3],[89,2,89,3],[88,2,88,3],[87,2,87,3],[86,1,86,3],[73,1,73,3],[62,2,67,3],[61,2,61,3],[4,1,4,3],[5,2,5,3],[6,2,6,3],[7,2,7,3],[8,2,13,3],[21,2,26,3],[20,2,20,3],[19,2,19,3],[18,2,18,3],[17,1,17,3],[35,2,35,3],[46,2,46,3],[47,2,47,3],[48,2,48,3],[59,2,59,3],[32,1,32,3],[33,2,33,3],[34,2,34,3],[36,2,41,3],[49,2,54,3],[45,1,45,3]]}
[]
[null,null,null,null,null,null,""]
[null,"8.1 - Infrastructure protective",null,null,null,null,"8.1"]
[null,null,null,null,null,null,""]
[null,"8.1.1 - Suffisance de l’infrastructure protective (Les écosystèmes peuvent fournir un tampon naturel-voir Essentiel 5)",null,null,null,null,"8.1.1"]
[null,"Question","Comments",null,null,null,""]
[null,null,null,null,null,null,""]
[null,"Response","Provide means of verification (explanation and evidence)",null,null,null,""]
[null,null,null,null,null,{"$f":"IF(E9=1,TRUE,FALSE)","v":false},""]
[null,null,null,null,null,{"$f":"IF(E9=2,TRUE,FALSE)","v":false},""]
[null,null,null,null,null,{"$f":"IF(E9=3,TRUE,FALSE)","v":false},""]
[null,null,null,null,null,{"$f":"IF(E9=4,TRUE,FALSE)","v":false},""]
[null,null,null,null,null,{"$f":"IF(E9=5,TRUE,FALSE)","v":false},""]
[null,null,null,null,null,{"$f":"IF(E9=6,TRUE,FALSE)","v":false},""]
[null,"Actions to achieve maximum resilience","Responsible institution","Timescale",null,null,""]
[null,null,null,null,null,null,""]
[null,null,null,null,null,null,""]
[null,"8.1.2 - Efficacité de la maintenance",null,null,null,null,"8.1.2"]
[null,"Question","Comments",null,null,null,""]
[null,null,null,null,null,null,""]
[null,"Response","Provide means of verification (explanation and evidence)",null,null,null,""]
[null,null,null,null,null,{"$f":"IF(E22=1,TRUE,FALSE)","v":false},""]
[null,null,null,null,null,{"$f":"IF(E22=2,TRUE,FALSE)","v":false},""]
[null,null,null,null,null,{"$f":"IF(E22=3,TRUE,FALSE)","v":false},""]
[null,null,null,null,null,{"$f":"IF(E22=4,TRUE,FALSE)","v":false},""]
[null,null,null,null,null,{"$f":"IF(E22=5,TRUE,FALSE)","v":false},""]
[null,null,null,null,null,{"$f":"IF(E22=6,TRUE,FALSE)","v":false},""]
[null,"Actions to achieve maximum resilience","Responsible institution","Timescale",null,null,""]
[null,null,null,null,null,null,""]
[null,null,null,null,null,null,""]
[null,"8.2 - Assainissement et eau",null,null,null,null,"8.2"]
[null,null,null,null,null,null,""]
[null,"8.2.1 - Risque de perte des journées du service clientèle",null,null,null,null,"8.2.1"]
[null,"Question","Comments",null,null,null,""]
[null,null,null,null,null,null,""]
[null,"Response","Provide means of verification (explanation and evidence)",null,null,null,""]
[null,null,null,null,null,{"$f":"IF(E37=1,TRUE,FALSE)","v":false},""]
[null,null,null,null,null,{"$f":"IF(E37=2,TRUE,FALSE)","v":false},""]
[null,null,null,null,null,{"$f":"IF(E37=3,TRUE,FALSE)","v":false},""]
[null,null,null,null,null,{"$f":"IF(E37=4,TRUE,FALSE)","v":false},""]
[null,null,null,null,null,{"$f":"IF(E37=5,TRUE,FALSE)","v":false},""]
[null,null,null,null,null,{"$f":"IF(E37=6,TRUE,FALSE)","v":false},""]
[null,"Actions to achieve maximum resilience","Responsible institution","Timescale",null,null,""]
[null,null,null,null,null,null,""]
[null,null,null,null,null,null,""]
[null,"8.2.2 - Les jours de service d’un actif essentiel désigné (ex. service pour des hôpitaux ou autres actifs essentiels), menacés de risque de perte par la défaillance de l’eau ou de l’assainissement",null,null,null,null,"8.2.2"]
[null,"Question","Comments",null,null,null,""]
[null,null,null,null,null,null,""]
[null,"Response","Provide means of verification (explanation and evidence)",null,null,null,""]
[null,null,null,null,null,{"$f":"IF(E50=1,TRUE,FALSE)","v":false},""]
[null,null,null,null,null,{"$f":"IF(E50=2,TRUE,FALSE)","v":false},""]
[null,null,null,null,null,{"$f":"IF(E50=3,TRUE,FALSE)","v":false},""]
[null,null,null,null,null,{"$f":"IF(E50=4,TRUE,FALSE)","v":false},""]
[null,null,null,null,null,{"$f":"IF(E50=5,TRUE,FALSE)","v":false},""]
[null,null,null,null,null,{"$f":"IF(E50=6,TRUE,FALSE)","v":false},""]
[null,"Actions to achieve maximum resilience","Responsible institution","Timescale",null,null,""]
[null,null,null,null,null,null,""]
[null,null,null,null,null,null,""]
[null,"8.2.3 - Coûts de la restauration du service",null,null,null,null,"8.2.3"]
[null,"Question","Comments",null,null,null,""]
[null,null,null,null,null,null,""]
[null,"Response","Provide means of verification (explanation and evidence)",null,null,null,""]
[null,null,null,null,null,{"$f":"IF(E63=1,TRUE,FALSE)","v":false},""]
[null,null,null,null,null,{"$f":"IF(E63=2,TRUE,FALSE)","v":false},""]
[null,null,null,null,null,{"$f":"IF(E63=3,TRUE,FALSE)","v":false},""]
[null,null,null,null,null,{"$f":"IF(E63=4,TRUE,FALSE)","v":false},""]
[null,null,null,null,null,{"$f":"IF(E63=5,TRUE,FALSE)","v":false},""]
[null,null,null,null,null,{"$f":"IF(E63=6,TRUE,FALSE)","v":false},""]
[null,"Actions to achieve maximum resilience","Responsible institution","Timescale",null,null,""]
[null,null,null,null,null,null,""]
[null,null,null,null,null,null,""]
[null,"8.3 - Energie-Electricité",null,null,null,null,"8.3"]
[null,null,null,null,null,null,""]
[null,"8.3.1 - Les journées du service clientèle en risque de perte",null,null,null,null,"8.3.1"]
[null,"Question","Comments",null,null,null,""]
[null,null,null,null,null,null,""]
[null,"Response","Provide means of verification (explanation and evidence)",null,null,null,""]
[null,null,null,null,null,{"$f":"IF(E78=1,TRUE,FALSE)","v":false},""]
[null,null,null,null,null,{"$f":"IF(E78=2,TRUE,FALSE)","v":false},""]
[null,null,null,null,null,{"$f":"IF(E78=3,TRUE,FALSE)","v":false},""]
[null,null,null,null,null,{"$f":"IF(E78=4,TRUE,FALSE)","v":false},""]
[null,null,null,null,null,{"$f":"IF(E78=5,TRUE,FALSE)","v":false},""]
[null,null,null,null,null,{"$f":"IF(E78=6,TRUE,FALSE)","v":false},""]
[null,"Actions to achieve maximum resilience","Responsible institution","Timescale",null,null,""]
[null,null,null,null,null,null,""]
[null,null,null,null,null,null,""]
[null,"8.3.2 - Les journées du service de l’actif essentiel désigné, en risque de perte par la défaillance d’énergie",null,null,null,null,"8.3.2"]
[null,"Question","Comments",null,null,null,""]
[null,null,null,null,null,null,""]
[null,"Response","Provide means of verification (explanation and evidence)",null,null,null,""]
[null,null,null,null,null,{"$f":"IF(E91=1,TRUE,FALSE)","v":false},""]
[null,null,null,null,null,{"$f":"IF(E91=2,TRUE,FALSE)","v":false},""]
[null,null,null,null,null,{"$f":"IF(E91=3,TRUE,FALSE)","v":false},""]
[null,null,null,null,null,{"$f":"IF(E91=4,TRUE,FALSE)","v":false},""]
[null,null,null,null,null,{"$f":"IF(E91=5,TRUE,FALSE)","v":false},""]
[null,null,null,null,null,{"$f":"IF(E91=6,TRUE,FALSE)","v":false},""]
[null,"Actions to achieve maximum resilience","Responsible institution","Timescale",null,null,""]
[null,null,null,null,null,null,""]
[null,null,null,null,null,null,""]
[null,"8.3.3 - Coûts de restauration",null,null,null,null,"8.3.3"]
[null,"Question","Comments",null,null,null,""]
[null,null,null,null,null,null,""]
[null,"Response","Provide means of verification (explanation and evidence)",null,null,null,""]
[null,null,null,null,null,{"$f":"IF(E104=1,TRUE,FALSE)","v":false},""]
[null,null,null,null,null,{"$f":"IF(E104=2,TRUE,FALSE)","v":false},""]
[null,null,null,null,null,{"$f":"IF(E104=3,TRUE,FALSE)","v":false},""]
[null,null,null,null,null,{"$f":"IF(E104=4,TRUE,FALSE)","v":false},""]
[null,null,null,null,null,{"$f":"IF(E104=5,TRUE,FALSE)","v":false},""]
[null,null,null,null,null,{"$f":"IF(E104=6,TRUE,FALSE)","v":false},""]
[null,"Actions to achieve maximum resilience","Responsible institution","Timescale",null,null,""]
[null,null,null,null,null,null,""]
[null,null,null,null,null,null,""]
[null,"8.4 - Energie-Gaz",null,null,null,null,"8.4"]
[null,null,null,null,null,null,""]
[null,"8.4.1 - Sécurité et intégrité du système du gaz (si applicable)",null,null,null,null,"8.4.1"]
[null,"Question","Comments",null,null,null,""]
[null,null,null,null,null,null,""]
[null,"Response","Provide means of verification (explanation and evidence)",null,null,null,""]
[null,null,null,null,null,{"$f":"IF(E119=1,TRUE,FALSE)","v":false},""]
[null,null,null,null,null,{"$f":"IF(E119=2,TRUE,FALSE)","v":false},""]
[null,null,null,null,null,{"$f":"IF(E119=3,TRUE,FALSE)","v":false},""]
[null,null,null,null,null,{"$f":"IF(E119=4,TRUE,FALSE)","v":false},""]
[null,null,null,null,null,{"$f":"IF(E119=5,TRUE,FALSE)","v":false},""]
[null,null,null,null,null,{"$f":"IF(E119=6,TRUE,FALSE)","v":false},""]
[null,"Actions to achieve maximum resilience","Responsible institution","Timescale",null,null,""]
[null,null,null,null,null,null,""]
[null,null,null,null,null,null,""]
[null,"8.4.2 - Journées de service clientèle en risque de perte",null,null,null,null,"8.4.2"]
[null,"Question","Comments",null,null,null,""]
[null,null,null,null,null,null,""]
[null,"Response","Provide means of verification (explanation and evidence)",null,null,null,""]
[null,null,null,null,null,{"$f":"IF(E132=1,TRUE,FALSE)","v":false},""]
[null,null,null,null,null,{"$f":"IF(E132=2,TRUE,FALSE)","v":false},""]
[null,null,null,null,null,{"$f":"IF(E132=3,TRUE,FALSE)","v":false},""]
[null,null,null,null,null,{"$f":"IF(E132=4,TRUE,FALSE)","v":false},""]
[null,null,null,null,null,{"$f":"IF(E132=5,TRUE,FALSE)","v":false},""]
[null,null,null,null,null,{"$f":"IF(E132=6,TRUE,FALSE)","v":false},""]
[null,"Actions to achieve maximum resilience","Responsible institution","Timescale",null,null,""]
[null,null,null,null,null,null,""]
[null,null,null,null,null,null,""]
[null,"8.4.3 - Les journées de service de l’actif essentiel désigné en risque de perte, par la chute d’alimentation en gaz",null,null,null,null,"8.4.3"]
[null,"Question","Comments",null,null,null,""]
[null,null,null,null,null,null,""]
[null,"Response","Provide means of verification (explanation and evidence)",null,null,null,""]
[null,null,null,null,null,{"$f":"IF(E145=1,TRUE,FALSE)","v":false},""]
[null,null,null,null,null,{"$f":"IF(E145=2,TRUE,FALSE)","v":false},""]
[null,null,null,null,null,{"$f":"IF(E145=3,TRUE,FALSE)","v":false},""]
[null,null,null,null,null,{"$f":"IF(E145=4,TRUE,FALSE)","v":false},""]
[null,null,null,null,null,{"$f":"IF(E145=5,TRUE,FALSE)","v":false},""]
[null,null,null,null,null,{"$f":"IF(E145=6,TRUE,FALSE)","v":false},""]
[null,"Actions to achieve maximum resilience","Responsible institution","Timescale",null,null,""]
[null,null,null,null,null,null,""]
[null,null,null,null,null,null,""]
[null,"8.4.4 - Coûts de restauration du service",null,null,null,null,"8.4.4"]
[null,"Question","Comments",null,null,null,""]
[null,null,null,null,null,null,""]
[null,"Response","Provide means of verification (explanation and evidence)",null,null,null,""]
[null,null,null,null,null,{"$f":"IF(E158=1,TRUE,FALSE)","v":false},""]
[null,null,null,null,null,{"$f":"IF(E158=2,TRUE,FALSE)","v":false},""]
[null,null,null,null,null,{"$f":"IF(E158=3,TRUE,FALSE)","v":false},""]
[null,null,null,null,null,{"$f":"IF(E158=4,TRUE,FALSE)","v":false},""]
[null,null,null,null,null,{"$f":"IF(E158=5,TRUE,FALSE)","v":false},""]
[null,null,null,null,null,{"$f":"IF(E158=6,TRUE,FALSE)","v":false},""]
[null,"Actions to achieve maximum resilience","Responsible institution","Timescale",null,null,""]
[null,null,null,null,null,null,""]
[null,null,null,null,null,null,""]
[null,"8.5 - Les transports",null,null,null,null,"8.5"]
[null,null,null,null,null,null,""]
[null,"8.5.1 - Le service du système routier en risque",null,null,null,null,"8.5.1"]
[null,"Question","Comments",null,null,null,""]
[null,null,null,null,null,null,""]
[null,"Response","Provide means of verification (explanation and evidence)",null,null,null,""]
[null,null,null,null,null,{"$f":"IF(E173=1,TRUE,FALSE)","v":false},""]
[null,null,null,null,null,{"$f":"IF(E173=2,TRUE,FALSE)","v":false},""]
[null,null,null,null,null,{"$f":"IF(E173=3,TRUE,FALSE)","v":false},""]
[null,null,null,null,null,{"$f":"IF(E173=4,TRUE,FALSE)","v":false},""]
[null,null,null,null,null,{"$f":"IF(E173=5,TRUE,FALSE)","v":false},""]
[null,null,null,null,null,{"$f":"IF(E173=6,TRUE,FALSE)","v":false},""]
[null,"Actions to achieve maximum resilience","Responsible institution","Timescale",null,null,""]
[null,null,null,null,null,null,""]
[null,null,null,null,null,null,""]
[null,"8.5.2 - Subsistance des accès essentiels et des routes d’évacuation",null,null,null,null,"8.5.2"]
[null,"Question","Comments",null,null,null,""]
[null,null,null,null,null,null,""]
[null,"Response","Provide means of verification (explanation and evidence)",null,null,null,""]
[null,null,null,null,null,{"$f":"IF(E186=1,TRUE,FALSE)","v":false},""]
[null,null,null,null,null,{"$f":"IF(E186=2,TRUE,FALSE)","v":false},""]
[null,null,null,null,null,{"$f":"IF(E186=3,TRUE,FALSE)","v":false},""]
[null,null,null,null,null,{"$f":"IF(E186=4,TRUE,FALSE)","v":false},""]
[null,null,null,null,null,{"$f":"IF(E186=5,TRUE,FALSE)","v":false},""]
[null,null,null,null,null,{"$f":"IF(E186=6,TRUE,FALSE)","v":false},""]
[null,"Actions to achieve maximum resilience","Responsible institution","Timescale",null,null,""]
[null,null,null,null,null,null,""]
[null,null,null,null,null,null,""]
[null,"8.5.3 - Service ferroviaire/métro (si applicable) du système ferroviaire en risque de perte",null,null,null,null,"8.5.3"]
[null,"Question","Comments",null,null,null,""]
[null,null,null,null,null,null,""]
[null,"Response","Provide means of verification (explanation and evidence)",null,null,null,""]
[null,null,null,null,null,{"$f":"IF(E199=1,TRUE,FALSE)","v":false},""]
[null,null,null,null,null,{"$f":"IF(E199=2,TRUE,FALSE)","v":false},""]
[null,null,null,null,null,{"$f":"IF(E199=3,TRUE,FALSE)","v":false},""]
[null,null,null,null,null,{"$f":"IF(E199=4,TRUE,FALSE)","v":false},""]
[null,null,null,null,null,{"$f":"IF(E199=5,TRUE,FALSE)","v":false},""]
[null,null,null,null,null,{"$f":"IF(E199=6,TRUE,FALSE)","v":false},""]
[null,"Actions to achieve maximum resilience","Responsible institution","Timescale",null,null,""]
[null,null,null,null,null,null,""]
[null,null,null,null,null,null,""]
[null,"8.5.4 - Air (si applicable)",null,null,null,null,"8.5.4"]
[null,"Question","Comments",null,null,null,""]
[null,null,null,null,null,null,""]
[null,"Response","Provide means of verification (explanation and evidence)",null,null,null,""]
[null,null,null,null,null,{"$f":"IF(E212=1,TRUE,FALSE)","v":false},""]
[null,null,null,null,null,{"$f":"IF(E212=2,TRUE,FALSE)","v":false},""]
[null,null,null,null,null,{"$f":"IF(E212=3,TRUE,FALSE)","v":false},""]
[null,null,null,null,null,{"$f":"IF(E212=4,TRUE,FALSE)","v":false},""]
[null,null,null,null,null,{"$f":"IF(E212=5,TRUE,FALSE)","v":false},""]
[null,null,null,null,null,{"$f":"IF(E212=6,TRUE,FALSE)","v":false},""]
[null,"Actions to achieve maximum resilience","Responsible institution","Timescale",null,null,""]
[null,null,null,null,null,null,""]
[null,null,null,null,null,null,""]
[null,"8.5.5 - Rivière/mer (si applicable)",null,null,null,null,"8.5.5"]
[null,"Question","Comments",null,null,null,""]
[null,null,null,null,null,null,""]
[null,"Response","Provide means of verification (explanation and evidence)",null,null,null,""]
[null,null,null,null,null,{"$f":"IF(E225=1,TRUE,FALSE)","v":false},""]
[null,null,null,null,null,{"$f":"IF(E225=2,TRUE,FALSE)","v":false},""]
[null,null,null,null,null,{"$f":"IF(E225=3,TRUE,FALSE)","v":false},""]
[null,null,null,null,null,{"$f":"IF(E225=4,TRUE,FALSE)","v":false},""]
[null,null,null,null,null,{"$f":"IF(E225=5,TRUE,FALSE)","v":false},""]
[null,null,null,null,null,{"$f":"IF(E225=6,TRUE,FALSE)","v":false},""]
[null,"Actions to achieve maximum resilience","Responsible institution","Timescale",null,null,""]
[null,null,null,null,null,null,""]
[null,null,null,null,null,null,""]
[null,"8.5.6 - Autre transport public (si applicable)",null,null,null,null,"8.5.6"]
[null,"Question","Comments",null,null,null,""]
[null,null,null,null,null,null,""]
[null,"Response","Provide means of verification (explanation and evidence)",null,null,null,""]
[null,null,null,null,null,{"$f":"IF(E238=1,TRUE,FALSE)","v":false},""]
[null,null,null,null,null,{"$f":"IF(E238=2,TRUE,FALSE)","v":false},""]
[null,null,null,null,null,{"$f":"IF(E238=3,TRUE,FALSE)","v":false},""]
[null,null,null,null,null,{"$f":"IF(E238=4,TRUE,FALSE)","v":false},""]
[null,null,null,null,null,{"$f":"IF(E238=5,TRUE,FALSE)","v":false},""]
[null,null,null,null,null,{"$f":"IF(E238=6,TRUE,FALSE)","v":false},""]
[null,"Actions to achieve maximum resilience","Responsible institution","Timescale",null,null,""]
[null,null,null,null,null,null,""]
[null,null,null,null,null,null,""]
[null,"8.5.7 - Coûts de restauration du service (tous les transports routiers)",null,null,null,null,"8.5.7"]
[null,"Question","Comments",null,null,null,""]
[null,null,null,null,null,null,""]
[null,"Response","Provide means of verification (explanation and evidence)",null,null,null,""]
[null,null,null,null,null,{"$f":"IF(E251=1,TRUE,FALSE)","v":false},""]
[null,null,null,null,null,{"$f":"IF(E251=2,TRUE,FALSE)","v":false},""]
[null,null,null,null,null,{"$f":"IF(E251=3,TRUE,FALSE)","v":false},""]
[null,null,null,null,null,{"$f":"IF(E251=4,TRUE,FALSE)","v":false},""]
[null,null,null,null,null,{"$f":"IF(E251=5,TRUE,FALSE)","v":false},""]
[null,null,null,null,null,{"$f":"IF(E251=6,TRUE,FALSE)","v":false},""]
[null,"Actions to achieve maximum resilience","Responsible institution","Timescale",null,null,""]
[null,null,null,null,null,null,""]
[null,null,null,null,null,null,""]
[null,"8.6 - Communications",null,null,null,null,"8.6"]
[null,null,null,null,null,null,""]
[null,"8.6.1 - Les journées de service en risque de perte",null,null,null,null,"8.6.1"]
[null,"Question","Comments",null,null,null,""]
[null,null,null,null,null,null,""]
[null,"Response","Provide means of verification (explanation and evidence)",null,null,null,""]
[null,null,null,null,null,{"$f":"IF(E266=1,TRUE,FALSE)","v":false},""]
[null,null,null,null,null,{"$f":"IF(E266=2,TRUE,FALSE)","v":false},""]
[null,null,null,null,null,{"$f":"IF(E266=3,TRUE,FALSE)","v":false},""]
[null,null,null,null,null,{"$f":"IF(E266=4,TRUE,FALSE)","v":false},""]
[null,null,null,null,null,{"$f":"IF(E266=5,TRUE,FALSE)","v":false},""]
[null,null,null,null,null,{"$f":"IF(E266=6,TRUE,FALSE)","v":false},""]
[null,"Actions to achieve maximum resilience","Responsible institution","Timescale",null,null,""]
[null,null,null,null,null,null,""]
[null,null,null,null,null,null,""]
[null,"8.6.2 - Les journées de service désignées de l’actif essentiel, sous risque de perte à cause de la défaillance des communications.",null,null,null,null,"8.6.2"]
[null,"Question","Comments",null,null,null,""]
[null,null,null,null,null,null,""]
[null,"Response","Provide means of verification (explanation and evidence)",null,null,null,""]
[null,null,null,null,null,{"$f":"IF(E279=1,TRUE,FALSE)","v":false},""]
[null,null,null,null,null,{"$f":"IF(E279=2,TRUE,FALSE)","v":false},""]
[null,null,null,null,null,{"$f":"IF(E279=3,TRUE,FALSE)","v":false},""]
[null,null,null,null,null,{"$f":"IF(E279=4,TRUE,FALSE)","v":false},""]
[null,null,null,null,null,{"$f":"IF(E279=5,TRUE,FALSE)","v":false},""]
[null,null,null,null,null,{"$f":"IF(E279=6,TRUE,FALSE)","v":false},""]
[null,"Actions to achieve maximum resilience","Responsible institution","Timescale",null,null,""]
[null,null,null,null,null,null,""]
[null,null,null,null,null,null,""]
[null,"8.6.3 - Coûts de restauration",null,null,null,null,"8.6.3"]
[null,"Question","Comments",null,null,null,""]
[null,null,null,null,null,null,""]
[null,"Response","Provide means of verification (explanation and evidence)",null,null,null,""]
[null,null,null,null,null,{"$f":"IF(E292=1,TRUE,FALSE)","v":false},""]
[null,null,null,null,null,{"$f":"IF(E292=2,TRUE,FALSE)","v":false},""]
[null,null,null,null,null,{"$f":"IF(E292=3,TRUE,FALSE)","v":false},""]
[null,null,null,null,null,{"$f":"IF(E292=4,TRUE,FALSE)","v":false},""]
[null,null,null,null,null,{"$f":"IF(E292=5,TRUE,FALSE)","v":false},""]
[null,null,null,null,null,{"$f":"IF(E292=6,TRUE,FALSE)","v":false},""]
[null,"Actions to achieve maximum resilience","Responsible institution","Timescale",null,null,""]
[null,null,null,null,null,null,""]
[null,null,null,null,null,null,""]
[null,"8.7 - Soins de santé",null,null,null,null,"8.7"]
[null,null,null,null,null,null,""]
[null,"8.7.1 - La sécurité structurelle et la résilience aux catastrophes des installations sanitaires et d’urgence (Personnel/1ers intervenants- voir Essentiel 9)",null,null,null,null,"8.7.1"]
[null,"Question","Comments",null,null,null,""]
[null,null,null,null,null,null,""]
[null,"Response","Provide means of verification (explanation and evidence)",null,null,null,""]
[null,null,null,null,null,{"$f":"IF(E307=1,TRUE,FALSE)","v":false},""]
[null,null,null,null,null,{"$f":"IF(E307=2,TRUE,FALSE)","v":false},""]
[null,null,null,null,null,{"$f":"IF(E307=3,TRUE,FALSE)","v":false},""]
[null,null,null,null,null,{"$f":"IF(E307=4,TRUE,FALSE)","v":false},""]
[null,null,null,null,null,{"$f":"IF(E307=5,TRUE,FALSE)","v":false},""]
[null,null,null,null,null,{"$f":"IF(E307=6,TRUE,FALSE)","v":false},""]
[null,"Actions to achieve maximum resilience","Responsible institution","Timescale",null,null,""]
[null,null,null,null,null,null,""]
[null,null,null,null,null,null,""]
[null,"8.7.1.1 -La sécurité structurelle et la résilience aux catastrophes des installations sanitaires et d’urgence (Personnel/1ers intervenants- voir Essentiel 9)",null,null,null,null,"8.7.1.1"]
[null,"Question","Comments",null,null,null,""]
[null,null,null,null,null,null,""]
[null,"Response","Provide means of verification (explanation and evidence)",null,null,null,""]
[null,null,null,null,null,{"$f":"IF(E320=1,TRUE,FALSE)","v":false},""]
[null,null,null,null,null,{"$f":"IF(E320=2,TRUE,FALSE)","v":false},""]
[null,null,null,null,null,{"$f":"IF(E320=3,TRUE,FALSE)","v":false},""]
[null,null,null,null,null,{"$f":"IF(E320=4,TRUE,FALSE)","v":false},""]
[null,null,null,null,null,{"$f":"IF(E320=5,TRUE,FALSE)","v":false},""]
[null,null,null,null,null,{"$f":"IF(E320=6,TRUE,FALSE)","v":false},""]
[null,"Actions to achieve maximum resilience","Responsible institution","Timescale",null,null,""]
[null,null,null,null,null,null,""]
[null,null,null,null,null,null,""]
[null,"8.7.2 - Dossiers et données en matière de santé",null,null,null,null,"8.7.2"]
[null,"Question","Comments",null,null,null,""]
[null,null,null,null,null,null,""]
[null,"Response","Provide means of verification (explanation and evidence)",null,null,null,""]
[null,null,null,null,null,{"$f":"IF(E333=1,TRUE,FALSE)","v":false},""]
[null,null,null,null,null,{"$f":"IF(E333=2,TRUE,FALSE)","v":false},""]
[null,null,null,null,null,{"$f":"IF(E333=3,TRUE,FALSE)","v":false},""]
[null,null,null,null,null,{"$f":"IF(E333=4,TRUE,FALSE)","v":false},""]
[null,null,null,null,null,{"$f":"IF(E333=5,TRUE,FALSE)","v":false},""]
[null,null,null,null,null,{"$f":"IF(E333=6,TRUE,FALSE)","v":false},""]
[null,"Actions to achieve maximum resilience","Responsible institution","Timescale",null,null,""]
[null,null,null,null,null,null,""]
[null,null,null,null,null,null,""]
[null,"8.7.3 - Disponibilité de soins d'urgence, comperenant les installations et les fournitures médicales urgentes pour les besoins aigus",null,null,null,null,"8.7.3"]
[null,"Question","Comments",null,null,null,""]
[null,null,null,null,null,null,""]
[null,"Response","Provide means of verification (explanation and evidence)",null,null,null,""]
[null,null,null,null,null,{"$f":"IF(E346=1,TRUE,FALSE)","v":false},""]
[null,null,null,null,null,{"$f":"IF(E346=2,TRUE,FALSE)","v":false},""]
[null,null,null,null,null,{"$f":"IF(E346=3,TRUE,FALSE)","v":false},""]
[null,null,null,null,null,{"$f":"IF(E346=4,TRUE,FALSE)","v":false},""]
[null,null,null,null,null,{"$f":"IF(E346=5,TRUE,FALSE)","v":false},""]
[null,null,null,null,null,{"$f":"IF(E346=6,TRUE,FALSE)","v":false},""]
[null,"Actions to achieve maximum resilience","Responsible institution","Timescale",null,null,""]
[null,null,null,null,null,null,""]
[null,null,null,null,null,null,""]
[null,"8.8 - Education",null,null,null,null,"8.8"]
[null,null,null,null,null,null,""]
[null,"8.8.1 - Sécurité structurelle des installations d’éducation",null,null,null,null,"8.8.1"]
[null,"Question","Comments",null,null,null,""]
[null,null,null,null,null,null,""]
[null,"Response","Provide means of verification (explanation and evidence)",null,null,null,""]
[null,null,null,null,null,{"$f":"IF(E361=1,TRUE,FALSE)","v":false},""]
[null,null,null,null,null,{"$f":"IF(E361=2,TRUE,FALSE)","v":false},""]
[null,null,null,null,null,{"$f":"IF(E361=3,TRUE,FALSE)","v":false},""]
[null,null,null,null,null,{"$f":"IF(E361=4,TRUE,FALSE)","v":false},""]
[null,null,null,null,null,{"$f":"IF(E361=5,TRUE,FALSE)","v":false},""]
[null,null,null,null,null,{"$f":"IF(E361=6,TRUE,FALSE)","v":false},""]
[null,"Actions to achieve maximum resilience","Responsible institution","Timescale",null,null,""]
[null,null,null,null,null,null,""]
[null,null,null,null,null,null,""]
[null,"8.8.2 - Perte du temps d’enseignement",null,null,null,null,"8.8.2"]
[null,"Question","Comments",null,null,null,""]
[null,null,null,null,null,null,""]
[null,"Response","Provide means of verification (explanation and evidence)",null,null,null,""]
[null,null,null,null,null,{"$f":"IF(E374=1,TRUE,FALSE)","v":false},""]
[null,null,null,null,null,{"$f":"IF(E374=2,TRUE,FALSE)","v":false},""]
[null,null,null,null,null,{"$f":"IF(E374=3,TRUE,FALSE)","v":false},""]
[null,null,null,null,null,{"$f":"IF(E374=4,TRUE,FALSE)","v":false},""]
[null,null,null,null,null,{"$f":"IF(E374=5,TRUE,FALSE)","v":false},""]
[null,null,null,null,null,{"$f":"IF(E374=6,TRUE,FALSE)","v":false},""]
[null,"Actions to achieve maximum resilience","Responsible institution","Timescale",null,null,""]
[null,null,null,null,null,null,""]
[null,null,null,null,null,null,""]
[null,"8.8.3 - Données sur l’éducation",null,null,null,null,"8.8.3"]
[null,"Question","Comments",null,null,null,""]
[null,null,null,null,null,null,""]
[null,"Response","Provide means of verification (explanation and evidence)",null,null,null,""]
[null,null,null,null,null,{"$f":"IF(E387=1,TRUE,FALSE)","v":false},""]
[null,null,null,null,null,{"$f":"IF(E387=2,TRUE,FALSE)","v":false},""]
[null,null,null,null,null,{"$f":"IF(E387=3,TRUE,FALSE)","v":false},""]
[null,null,null,null,null,{"$f":"IF(E387=4,TRUE,FALSE)","v":false},""]
[null,null,null,null,null,{"$f":"IF(E387=5,TRUE,FALSE)","v":false},""]
[null,null,null,null,null,{"$f":"IF(E387=6,TRUE,FALSE)","v":false},""]
[null,"Actions to achieve maximum resilience","Responsible institution","Timescale",null,null,""]
[null,null,null,null,null,null,""]
[null,null,null,null,null,null,""]
[null,"8.9 - Prisons (notez que la loi et l’ordre, et les autres actifs des intervenants de 1ère ligne, sont traités à l’Essentiel 9)",null,null,null,null,"8.9"]
[null,null,null,null,null,null,""]
[null,"8.9.1 - Résilience du système carcéral aux catastrophes",null,null,null,null,"8.9.1"]
[null,"Question","Comments",null,null,null,""]
[null,null,null,null,null,null,""]
[null,"Response","Provide means of verification (explanation and evidence)",null,null,null,""]
[null,null,null,null,null,{"$f":"IF(E402=1,TRUE,FALSE)","v":false},""]
[null,null,null,null,null,{"$f":"IF(E402=2,TRUE,FALSE)","v":false},""]
[null,null,null,null,null,{"$f":"IF(E402=3,TRUE,FALSE)","v":false},""]
[null,null,null,null,null,{"$f":"IF(E402=4,TRUE,FALSE)","v":false},""]
[null,null,null,null,null,{"$f":"IF(E402=5,TRUE,FALSE)","v":false},""]
[null,null,null,null,null,{"$f":"IF(E402=6,TRUE,FALSE)","v":false},""]
[null,"Actions to achieve maximum resilience","Responsible institution","Timescale",null,null,""]
[null,null,null,null,null,null,""]
[null,null,null,null,null,null,""]
[null,"8.10 - Opérations administratives",null,null,null,null,"8.10"]
[null,null,null,null,null,null,""]
[null,"8.10.1 - La garantie de continuité de toutes les fonctions administratives essentielles",null,null,null,null,"8.10.1"]
[null,"Question","Comments",null,null,null,""]
[null,null,null,null,null,null,""]
[null,"Response","Provide means of verification (explanation and evidence)",null,null,null,""]
[null,null,null,null,null,{"$f":"IF(E417=1,TRUE,FALSE)","v":false},""]
[null,null,null,null,null,{"$f":"IF(E417=2,TRUE,FALSE)","v":false},""]
[null,null,null,null,null,{"$f":"IF(E417=3,TRUE,FALSE)","v":false},""]
[null,null,null,null,null,{"$f":"IF(E417=4,TRUE,FALSE)","v":false},""]
[null,null,null,null,null,{"$f":"IF(E417=5,TRUE,FALSE)","v":false},""]
[null,null,null,null,null,{"$f":"IF(E417=6,TRUE,FALSE)","v":false},""]
[null,"Actions to achieve maximum resilience","Responsible institution","Timescale",null,null,""]
[null,null,null,null,null,null,""]
[null,null,null,null,null,null,""]
[null,"8.11 - Systèmes informatiques et données",null,null,null,null,"8.11"]
[null,null,null,null,null,null,""]
[null,"8.11.1 - Assurance de continuité des systèmes informatiques et des données cruciales pour la continuité du gouvernement",null,null,null,null,"8.11.1"]
[null,"Question","Comments",null,null,null,""]
[null,null,null,null,null,null,""]
[null,"Response","Provide means of verification (explanation and evidence)",null,null,null,""]
[null,null,null,null,null,{"$f":"IF(E432=1,TRUE,FALSE)","v":false},""]
[null,null,null,null,null,{"$f":"IF(E432=2,TRUE,FALSE)","v":false},""]
[null,null,null,null,null,{"$f":"IF(E432=3,TRUE,FALSE)","v":false},""]
[null,null,null,null,null,{"$f":"IF(E432=4,TRUE,FALSE)","v":false},""]
[null,null,null,null,null,{"$f":"IF(E432=5,TRUE,FALSE)","v":false},""]
[null,null,null,null,null,{"$f":"IF(E432=6,TRUE,FALSE)","v":false},""]
[null,"Actions to achieve maximum resilience","Responsible institution","Timescale",null,null,""]
[null,null,null,null,null,null,""]
[null,null,null,null,null,null,""]
[null,"8.11.2 - Assurance de continuité des systèmes informatiques et des données importantes pour n’importe quelle infrastructure figurant ci-dessus",null,null,null,null,"8.11.2"]
[null,"Question","Comments",null,null,null,""]
[null,null,null,null,null,null,""]
[null,"Response","Provide means of verification (explanation and evidence)",null,null,null,""]
[null,null,null,null,null,{"$f":"IF(E445=1,TRUE,FALSE)","v":false},""]
[null,null,null,null,null,{"$f":"IF(E445=2,TRUE,FALSE)","v":false},""]
[null,null,null,null,null,{"$f":"IF(E445=3,TRUE,FALSE)","v":false},""]
[null,null,null,null,null,{"$f":"IF(E445=4,TRUE,FALSE)","v":false},""]
[null,null,null,null,null,{"$f":"IF(E445=5,TRUE,FALSE)","v":false},""]
[null,null,null,null,null,{"$f":"IF(E445=6,TRUE,FALSE)","v":false},""]
[null,"Actions to achieve maximum resilience","Responsible institution","Timescale",null,null,""]
[null,null,null,null,null,null,""]
[null,null,null,null,null,null,""]
[null,null,null,null,null,null,""]
[null,null,null,null,null,null,""]
[null,null,null,null,null,null,""]
[null,null,null,null,null,null,""]
[null,null,null,null,null,null,""]
[null,null,null,null,null,null,""]
[null,null,null,null,null,null,""]
[null,null,null,null,null,null,""]
[null,null,null,null,null,null,""]
[null,null,null,null,null,null,""]
[null,null,null,null,null,null,""]
[null,null,null,null,null,null,""]
[null,null,null,null,null,null,""]
[null,null,null,null,null,null,""]
[null,null,null,null,null,null,""]
[null,null,null,null,null,null,""]
[null,null,null,null,null,null,""]
[null,null,null,null,null,null,""]
[null,null,null,null,null,null,""]
[null,null,null,null,null,null,""]
[null,null,null,null,null,null,""]
[null,null,null,null,null,null,""]
[null,null,null,null,null,null,""]
[null,null,null,null,null,null,""]
[null,null,null,null,null,null,""]
[null,null,null,null,null,null,""]
[null,null,null,null,null,null,""]
[null,null,null,null,null,null,""]
[null,null,null,null,null,null,""]
[null,null,null,null,null,null,""]
[null,null,null,null,null,null,""]
[null,null,null,null,null,null,""]
[null,null,null,null,null,null,""]
[null,null,null,null,null,null,""]
[null,null,null,null,null,null,""]
[null,null,null,null,null,null,""]
[null,null,null,null,null,null,""]
[null,null,null,null,null,null,""]
[null,null,null,null,null,null,""]
[null,null,null,null,null,null,""]
[null,null,null,null,null,null,""]
[null,null,null,null,null,null,""]
[null,null,null,null,null,null,""]
[null,null,null,null,null,null,""]
[null,null,null,null,null,null,""]
[null,null,null,null,null,null,""]
[null,null,null,null,null,null,""]
[null,null,null,null,null,null,""]
[null,null,null,null,null,null,""]
[null,null,null,null,null,null,""]
[null,null,null,null,null,null,""]
[null,null,null,null,null,null,""]
[null,null,null,null,null,null,""]
[null,null,null,null,null,null,""]
[null,null,null,null,null,null,""]
[null,null,null,null,null,null,""]
[null,null,null,null,null,null,""]
[null,null,null,null,null,null,""]
[null,null,null,null,null,null,""]
[null,null,null,null,null,null,""]
[null,null,null,null,null,null,""]
[null,null,null,null,null,null,""]
[null,null,null,null,null,null,""]
[null,null,null,null,null,null,""]
[null,null,null,null,null,null,""]
[null,null,null,null,null,null,""]
[null,null,null,null,null,null,""]
[null,null,null,null,null,null,""]
[null,null,null,null,null,null,""]
[null,null,null,null,null,null,""]
[null,null,null,null,null,null,""]
[null,null,null,null,null,null,""]
[null,null,null,null,null,null,""]
[null,null,null,null,null,null,""]
[null,null,null,null,null,null,""]
[null,null,null,null,null,null,""]
[null,null,null,null,null,null,""]
[null,null,null,null,null,null,""]
[null,null,null,null,null,null,""]
[null,null,null,null,null,null,""]
[null,null,null,null,null,null,""]
[null,null,null,null,null,null,""]
[null,null,null,null,null,null,""]
[null,null,null,null,null,null,""]
[null,null,null,null,null,null,""]
[null,null,null,null,null,null,""]
[null,null,null,null,null,null,""]
[null,null,null,null,null,null,""]
[null,null,null,null,null,null,""]
[null,null,null,null,null,null,""]
[null,null,null,null,null,null,""]
[null,null,null,null,null,null,""]
[null,null,null,null,null,null,""]
[null,null,null,null,null,null,""]
[null,null,null,null,null,null,""]
[null,null,null,null,null,null,""]
[null,null,null,null,null,null,""]
[null,null,null,null,null,null,""]
[null,null,null,null,null,null,""]
[null,null,null,null,null,null,""]
[null,null,null,null,null,null,""]
[null,null,null,null,null,null,""]
[null,null,null,null,null,null,""]
[null,null,null,null,null,null,""]
[null,null,null,null,null,null,""]
[null,null,null,null,null,null,""]
[null,null,null,null,null,null,""]
[null,null,null,null,null,null,""]
[null,null,null,null,null,null,""]
[null,null,null,null,null,null,""]
[null,null,null,null,null,null,""]
[null,null,null,null,null,null,""]
[null,null,null,null,null,null,""]
[null,null,null,null,null,null,""]
[null,null,null,null,null,null,""]
[null,null,null,null,null,null,""]
[null,null,null,null,null,null,""]
[null,null,null,null,null,null,""]
[null,null,null,null,null,null,""]
[null,null,null,null,null,null,""]
[null,null,null,null,null,null,""]
[null,null,null,null,null,null,""]
[null,null,null,null,null,null,""]
[null,null,null,null,null,null,""]
[null,null,null,null,null,null,""]
[null,null,null,null,null,null,""]
[null,null,null,null,null,null,""]
[null,null,null,null,null,null,""]
[null,null,null,null,null,null,""]
[null,null,null,null,null,null,""]
[null,null,null,null,null,null,""]
[null,null,null,null,null,null,""]
[null,null,null,null,null,null,""]
[null,null,null,null,null,null,""]
[null,null,null,null,null,null,""]
[null,null,null,null,null,null,""]
[null,null,null,null,null,null,""]
[null,null,null,null,null,null,""]
[null,null,null,null,null,null,""]
[null,null,null,null,null,null,""]
[null,null,null,null,null,null,""]
[null,null,null,null,null,null,""]
[null,null,null,null,null,null,""]
[null,null,null,null,null,null,""]
[null,null,null,null,null,null,""]
[null,null,null,null,null,null,""]
[null,null,null,null,null,null,""]
[null,null,null,null,null,null,""]
[null,null,null,null,null,null,""]
[null,null,null,null,null,null,""]
[null,null,null,null,null,null,""]
[null,null,null,null,null,null,""]
[null,null,null,null,null,null,""]
[null,null,null,null,null,null,""]
[null,null,null,null,null,null,""]
[null,null,null,null,null,null,""]
[null,null,null,null,null,null,""]
[null,null,null,null,null,null,""]
[null,null,null,null,null,null,""]
[null,null,null,null,null,null,""]
[null,null,null,null,null,null,""]
[null,null,null,null,null,null,""]
[null,null,null,null,null,null,""]
[null,null,null,null,null,null,""]
[null,null,null,null,null,null,""]
[null,null,null,null,null,null,""]
[null,null,null,null,null,null,""]
[null,null,null,null,null,null,""]
[null,null,null,null,null,null,""]
[null,null,null,null,null,null,""]
[null,null,null,null,null,null,""]
[null,null,null,null,null,null,""]
[null,null,null,null,null,null,""]
[null,null,null,null,null,null,""]
[null,null,null,null,null,null,""]
[null,null,null,null,null,null,""]
[null,null,null,null,null,null,""]
[null,null,null,null,null,null,""]
[null,null,null,null,null,null,""]
[null,null,null,null,null,null,""]
[null,null,null,null,null,null,""]
[null,null,null,null,null,null,""]
[null,null,null,null,null,null,""]
[null,null,null,null,null,null,""]
[null,null,null,null,null,null,""]
[null,null,null,null,null,null,""]
[null,null,null,null,null,null,""]
[null,null,null,null,null,null,""]
[null,null,null,null,null,null,""]
[null,null,null,null,null,null,""]
[null,null,null,null,null,null,""]
[null,null,null,null,null,null,""]
[null,null,null,null,null,null,""]
[null,null,null,null,null,null,""]
[null,null,null,null,null,null,""]
[null,null,null,null,null,null,""]
[null,null,null,null,null,null,""]
[null,null,null,null,null,null,""]
[null,null,null,null,null,null,""]
[null,null,null,null,null,null,""]
[null,null,null,null,null,null,""]
[null,null,null,null,null,null,""]
[null,null,null,null,null,null,""]
[null,null,null,null,null,null,""]
[null,null,null,null,null,null,""]
[null,null,null,null,null,null,""]
[null,null,null,null,null,null,""]
[null,null,null,null,null,null,""]
[null,null,null,null,null,null,""]
[null,null,null,null,null,null,""]
[null,null,null,null,null,null,""]

{"sheet":"E09","index":11,"n_rows":237,"n_cols":7,"rows_kept":237,"cut":false,"hidden":false,"merged":[[228,2,233,3],[227,2,227,3],[226,2,226,3],[225,2,225,3],[224,1,224,3],[211,1,211,3],[212,2,212,3],[213,2,213,3],[214,2,214,3],[215,2,220,3],[200,2,205,3],[199,2,199,3],[198,2,198,3],[197,2,197,3],[196,1,196,3],[187,2,192,3],[186,2,186,3],[185,2,185,3],[184,2,184,3],[183,1,183,3],[170,1,170,3],[171,2,171,3],[172,2,172,3],[173,2,173,3],[174,2,179,3],[159,2,164,3],[158,2,158,3],[157,2,157,3],[156,2,156,3],[155,1,155,3],[142,1,142,3],[143,2,143,3],[144,2,144,3],[145,2,145,3],[146,2,151,3],[133,2,138,3],[132,2,132,3],[131,2,131,3],[130,2,130,3],[129,1,129,3],[120,2,125,3],[119,2,119,3],[118,2,118,3],[117,2,117,3],[116,1,116,3],[103,1,103,3],[104,2,104,3],[105,2,105,3],[106,2,106,3],[107,2,112,3],[76,2,76,3],[77,2,77,3],[78,2,78,3],[79,2,84,3],[92,2,97,3],[91,2,91,3],[90,2,90,3],[89,2,89,3],[88,1,88,3],[75,1,75,3],[33,2,33,3],[34,2,34,3],[51,2,56,3],[36,2,41,3],[35,2,35,3],[64,2,69,3],[63,2,63,3],[62,2,62,3],[61,2,61,3],[60,1,60,3],[32,1,32,3],[47,1,47,3],[48,2,48,3],[49,2,49,3],[50,2,50,3],[17,1,17,3],[18,2,18,3],[19,2,19,3],[20,2,20,3],[21,2,26,3],[4,1,4,3],[5,2,5,3],[6,2,6,3],[7,2,7,3],[8,2,13,3]]}
[]
[null,null,null,null,null,null,""]
[null,"9.1 - Alerte précoce",null,null,null,null,"9.1"]
[null,null,null,null,null,null,""]
[null,"9.1.1 - Existence et efficacité des dispositifs d’alerte précoce",null,null,null,null,"9.1.1"]
[null,"Question","Comments",null,null,null,""]
[null,null,null,null,null,null,""]
[null,"Response","Provide means of verification (explanation and evidence)",null,null,null,""]
[null,null,null,null,null,{"$f":"IF(E9=1,TRUE,FALSE)","v":false},""]
[null,null,null,null,null,{"$f":"IF(E9=2,TRUE,FALSE)","v":false},""]
[null,null,null,null,null,{"$f":"IF(E9=3,TRUE,FALSE)","v":false},""]
[null,null,null,null,null,{"$f":"IF(E9=4,TRUE,FALSE)","v":false},""]
[null,null,null,null,null,{"$f":"IF(E9=5,TRUE,FALSE)","v":false},""]
[null,null,null,null,null,{"$f":"IF(E9=6,TRUE,FALSE)","v":false},""]
[null,"Actions to achieve maximum resilience","Responsible institution","Timescale",null,null,""]
[null,null,null,null,null,null,""]
[null,null,null,null,null,null,""]
[null,"9.1.1.1 - La portée de l’alerte",null,null,null,null,"9.1.1.1"]
[null,"Question","Comments",null,null,null,""]
[null,null,null,null,null,null,""]
[null,"Response","Provide means of verification (explanation and evidence)",null,null,null,""]
[null,null,null,null,null,{"$f":"IF(E22=1,TRUE,FALSE)","v":false},""]
[null,null,null,null,null,{"$f":"IF(E22=2,TRUE,FALSE)","v":false},""]
[null,null,null,null,null,{"$f":"IF(E22=3,TRUE,FALSE)","v":false},""]
[null,null,null,null,null,{"$f":"IF(E22=4,TRUE,FALSE)","v":false},""]
[null,null,null,null,null,{"$f":"IF(E22=5,TRUE,FALSE)","v":false},""]
[null,null,null,null,null,{"$f":"IF(E22=6,TRUE,FALSE)","v":false},""]
[null,"Actions to achieve maximum resilience","Responsible institution","Timescale",null,null,""]
[null,null,null,null,null,null,""]
[null,null,null,null,null,null,""]
[null,"9.2 - Plans de réaction à l’événement",null,null,null,null,"9.2"]
[null,null,null,null,null,null,""]
[null,"9.2.1 - Existence de plans de réaction d’urgence, intégrant les intervenants professionnels et les organisations communautaires (Pour la réaction post-événementvoir Essentiel 10)",null,null,null,null,"9.2.1"]
[null,"Question","Comments",null,null,null,""]
[null,null,null,null,null,null,""]
[null,"Response","Provide means of verification (explanation and evidence)",null,null,null,""]
[null,null,null,null,null,{"$f":"IF(E37=1,TRUE,FALSE)","v":false},""]
[null,null,null,null,null,{"$f":"IF(E37=2,TRUE,FALSE)","v":false},""]
[null,null,null,null,null,{"$f":"IF(E37=3,TRUE,FALSE)","v":false},""]
[null,null,null,null,null,{"$f":"IF(E37=4,TRUE,FALSE)","v":false},""]
[null,null,null,null,null,{"$f":"IF(E37=5,TRUE,FALSE)","v":false},""]
[null,null,null,null,null,{"$f":"IF(E37=6,TRUE,FALSE)","v":false},""]
[null,"Actions to achieve maximum resilience","Responsible institution","Timescale",null,null,""]
[null,null,null,null,null,null,""]
[null,null,null,null,null,null,""]
[null,"9.3 - Besoins d’intervenants/ Personnel",null,null,null,null,"9.3"]
[null,null,null,null,null,null,""]
[null,"9.3.1 - Capacité d’incursion de la Police, aussi pour appuyer les tâches des 1ers intervenants",null,null,null,null,"9.3.1"]
[null,"Question","Comments",null,null,null,""]
[null,null,null,null,null,null,""]
[null,"Response","Provide means of verification (explanation and evidence)",null,null,null,""]
[null,null,null,null,null,{"$f":"IF(E52=1,TRUE,FALSE)","v":false},""]
[null,null,null,null,null,{"$f":"IF(E52=2,TRUE,FALSE)","v":false},""]
[null,null,null,null,null,{"$f":"IF(E52=3,TRUE,FALSE)","v":false},""]
[null,null,null,null,null,{"$f":"IF(E52=4,TRUE,FALSE)","v":false},""]
[null,null,null,null,null,{"$f":"IF(E52=5,TRUE,FALSE)","v":false},""]
[null,null,null,null,null,{"$f":"IF(E52=6,TRUE,FALSE)","v":false},""]
[null,"Actions to achieve maximum resilience","Responsible institution","Timescale",null,null,""]
[null,null,null,null,null,null,""]
[null,null,null,null,null,null,""]
[null,"9.3.2 - Définition d’autres 1ers intervenants, et d’autres besoins de personnel et la disponibilité",null,null,null,null,"9.3.2"]
[null,"Question","Comments",null,null,null,""]
[null,null,null,null,null,null,""]
[null,"Response","Provide means of verification (explanation and evidence)",null,null,null,""]
[null,null,null,null,null,{"$f":"IF(E65=1,TRUE,FALSE)","v":false},""]
[null,null,null,null,null,{"$f":"IF(E65=2,TRUE,FALSE)","v":false},""]
[null,null,null,null,null,{"$f":"IF(E65=3,TRUE,FALSE)","v":false},""]
[null,null,null,null,null,{"$f":"IF(E65=4,TRUE,FALSE)","v":false},""]
[null,null,null,null,null,{"$f":"IF(E65=5,TRUE,FALSE)","v":false},""]
[null,null,null,null,null,{"$f":"IF(E65=6,TRUE,FALSE)","v":false},""]
[null,"Actions to achieve maximum resilience","Responsible institution","Timescale",null,null,""]
[null,null,null,null,null,null,""]
[null,null,null,null,null,null,""]
[null,"9.4 - Besoins d’équipements et fourniture des secours",null,null,null,null,"9.4"]
[null,null,null,null,null,null,""]
[null,"9.4.1 - Définition des besoins en matière d’équipements et de fourniture, et disponibilité d’équipements",null,null,null,null,"9.4.1"]
[null,"Question","Comments",null,null,null,""]
[null,null,null,null,null,null,""]
[null,"Response","Provide means of verification (explanation and evidence)",null,null,null,""]
[null,null,null,null,null,{"$f":"IF(E80=1,TRUE,FALSE)","v":false},""]
[null,null,null,null,null,{"$f":"IF(E80=2,TRUE,FALSE)","v":false},""]
[null,null,null,null,null,{"$f":"IF(E80=3,TRUE,FALSE)","v":false},""]
[null,null,null,null,null,{"$f":"IF(E80=4,TRUE,FALSE)","v":false},""]
[null,null,null,null,null,{"$f":"IF(E80=5,TRUE,FALSE)","v":false},""]
[null,null,null,null,null,{"$f":"IF(E80=6,TRUE,FALSE)","v":false},""]
[null,"Actions to achieve maximum resilience","Responsible institution","Timescale",null,null,""]
[null,null,null,null,null,null,""]
[null,null,null,null,null,null,""]
[null,"9.4.1.1 - Définition des besoins en matière d’équipements et de fourniture, et disponibilité d’équipements",null,null,null,null,"9.4.1.1"]
[null,"Question","Comments",null,null,null,""]
[null,null,null,null,null,null,""]
[null,"Response","Provide means of verification (explanation and evidence)",null,null,null,""]
[null,null,null,null,null,{"$f":"IF(E93=1,TRUE,FALSE)","v":false},""]
[null,null,null,null,null,{"$f":"IF(E93=2,TRUE,FALSE)","v":false},""]
[null,null,null,null,null,{"$f":"IF(E93=3,TRUE,FALSE)","v":false},""]
[null,null,null,null,null,{"$f":"IF(E93=4,TRUE,FALSE)","v":false},""]
[null,null,null,null,null,{"$f":"IF(E93=5,TRUE,FALSE)","v":false},""]
[null,null,null,null,null,{"$f":"IF(E93=6,TRUE,FALSE)","v":false},""]
[null,"Actions to achieve maximum resilience","Responsible institution","Timescale",null,null,""]
[null,null,null,null,null,null,""]
[null,null,null,null,null,null,""]
[null,"9.5 - Denrées alimentaires, abris, produits de 1ère nécessité et approvisionnement en carburant",null,null,null,null,"9.5"]
[null,null,null,null,null,null,""]
[null,"9.5.1 - Habileté éventuel de continuer à nourrir la population",null,null,null,null,"9.5.1"]
[null,"Question","Comments",null,null,null,""]
[null,null,null,null,null,null,""]
[null,"Response","Provide means of verification (explanation and evidence)",null,null,null,""]
[null,null,null,null,null,{"$f":"IF(E108=1,TRUE,FALSE)","v":false},""]
[null,null,null,null,null,{"$f":"IF(E108=2,TRUE,FALSE)","v":false},""]
[null,null,null,null,null,{"$f":"IF(E108=3,TRUE,FALSE)","v":false},""]
[null,null,null,null,null,{"$f":"IF(E108=4,TRUE,FALSE)","v":false},""]
[null,null,null,null,null,{"$f":"IF(E108=5,TRUE,FALSE)","v":false},""]
[null,null,null,null,null,{"$f":"IF(E108=6,TRUE,FALSE)","v":false},""]
[null,"Actions to achieve maximum resilience","Responsible institution","Timescale",null,null,""]
[null,null,null,null,null,null,""]
[null,null,null,null,null,null,""]
[null,"9.5.2 - Aptitude éventuelle à remplir les besoins en matière d’abris/lieux sûrs",null,null,null,null,"9.5.2"]
[null,"Question","Comments",null,null,null,""]
[null,null,null,null,null,null,""]
[null,"Response","Provide means of verification (explanation and evidence)",null,null,null,""]
[null,null,null,null,null,{"$f":"IF(E121=1,TRUE,FALSE)","v":false},""]
[null,null,null,null,null,{"$f":"IF(E121=2,TRUE,FALSE)","v":false},""]
[null,null,null,null,null,{"$f":"IF(E121=3,TRUE,FALSE)","v":false},""]
[null,null,null,null,null,{"$f":"IF(E121=4,TRUE,FALSE)","v":false},""]
[null,null,null,null,null,{"$f":"IF(E121=5,TRUE,FALSE)","v":false},""]
[null,null,null,null,null,{"$f":"IF(E121=6,TRUE,FALSE)","v":false},""]
[null,"Actions to achieve maximum resilience","Responsible institution","Timescale",null,null,""]
[null,null,null,null,null,null,""]
[null,null,null,null,null,null,""]
[null,"9.5.2.1 - Aptitude éventuelle à remplir les besoins en matière d’abris/lieux sûrs",null,null,null,null,"9.5.2.1"]
[null,"Question","Comments",null,null,null,""]
[null,null,null,null,null,null,""]
[null,"Response","Provide means of verification (explanation and evidence)",null,null,null,""]
[null,null,null,null,null,{"$f":"IF(E134=1,TRUE,FALSE)","v":false},""]
[null,null,null,null,null,{"$f":"IF(E134=2,TRUE,FALSE)","v":false},""]
[null,null,null,null,null,{"$f":"IF(E134=3,TRUE,FALSE)","v":false},""]
[null,null,null,null,null,{"$f":"IF(E134=4,TRUE,FALSE)","v":false},""]
[null,null,null,null,null,{"$f":"IF(E134=5,TRUE,FALSE)","v":false},""]
[null,null,null,null,null,{"$f":"IF(E134=6,TRUE,FALSE)","v":false},""]
[null,"Actions to achieve maximum resilience","Responsible institution","Timescale",null,null,""]
[null,null,null,null,null,null,""]
[null,null,null,null,null,null,""]
[null,"9.5.3 - Aptitude à subvenir aux besoins éventuels en matière de produits de base",null,null,null,null,"9.5.3"]
[null,"Question","Comments",null,null,null,""]
[null,null,null,null,null,null,""]
[null,"Response","Provide means of verification (explanation and evidence)",null,null,null,""]
[null,null,null,null,null,{"$f":"IF(E147=1,TRUE,FALSE)","v":false},""]
[null,null,null,null,null,{"$f":"IF(E147=2,TRUE,FALSE)","v":false},""]
[null,null,null,null,null,{"$f":"IF(E147=3,TRUE,FALSE)","v":false},""]
[null,null,null,null,null,{"$f":"IF(E147=4,TRUE,FALSE)","v":false},""]
[null,null,null,null,null,{"$f":"IF(E147=5,TRUE,FALSE)","v":false},""]
[null,null,null,null,null,{"$f":"IF(E147=6,TRUE,FALSE)","v":false},""]
[null,"Actions to achieve maximum resilience","Responsible institution","Timescale",null,null,""]
[null,null,null,null,null,null,""]
[null,null,null,null,null,null,""]
[null,"9.5.4 - Disponibilité de carburant susceptible",null,null,null,null,"9.5.4"]
[null,"Question","Comments",null,null,null,""]
[null,null,null,null,null,null,""]
[null,"Response","Provide means of verification (explanation and evidence)",null,null,null,""]
[null,null,null,null,null,{"$f":"IF(E160=1,TRUE,FALSE)","v":false},""]
[null,null,null,null,null,{"$f":"IF(E160=2,TRUE,FALSE)","v":false},""]
[null,null,null,null,null,{"$f":"IF(E160=3,TRUE,FALSE)","v":false},""]
[null,null,null,null,null,{"$f":"IF(E160=4,TRUE,FALSE)","v":false},""]
[null,null,null,null,null,{"$f":"IF(E160=5,TRUE,FALSE)","v":false},""]
[null,null,null,null,null,{"$f":"IF(E160=6,TRUE,FALSE)","v":false},""]
[null,"Actions to achieve maximum resilience","Responsible institution","Timescale",null,null,""]
[null,null,null,null,null,null,""]
[null,null,null,null,null,null,""]
[null,"9.6 - Interopérabilité et travail inter-institutions",null,null,null,null,"9.6"]
[null,null,null,null,null,null,""]
[null,"9.6.1 - Interopérabilité de systèmes essentiels et de procédures avec les villes/ états voisins et autres niveaux de gouvernement",null,null,null,null,"9.6.1"]
[null,"Question","Comments",null,null,null,""]
[null,null,null,null,null,null,""]
[null,"Response","Provide means of verification (explanation and evidence)",null,null,null,""]
[null,null,null,null,null,{"$f":"IF(E175=1,TRUE,FALSE)","v":false},""]
[null,null,null,null,null,{"$f":"IF(E175=2,TRUE,FALSE)","v":false},""]
[null,null,null,null,null,{"$f":"IF(E175=3,TRUE,FALSE)","v":false},""]
[null,null,null,null,null,{"$f":"IF(E175=4,TRUE,FALSE)","v":false},""]
[null,null,null,null,null,{"$f":"IF(E175=5,TRUE,FALSE)","v":false},""]
[null,null,null,null,null,{"$f":"IF(E175=6,TRUE,FALSE)","v":false},""]
[null,"Actions to achieve maximum resilience","Responsible institution","Timescale",null,null,""]
[null,null,null,null,null,null,""]
[null,null,null,null,null,null,""]
[null,"9.6.2 - Centre des opérations d’urgence",null,null,null,null,"9.6.2"]
[null,"Question","Comments",null,null,null,""]
[null,null,null,null,null,null,""]
[null,"Response","Provide means of verification (explanation and evidence)",null,null,null,""]
[null,null,null,null,null,{"$f":"IF(E188=1,TRUE,FALSE)","v":false},""]
[null,null,null,null,null,{"$f":"IF(E188=2,TRUE,FALSE)","v":false},""]
[null,null,null,null,null,{"$f":"IF(E188=3,TRUE,FALSE)","v":false},""]
[null,null,null,null,null,{"$f":"IF(E188=4,TRUE,FALSE)","v":false},""]
[null,null,null,null,null,{"$f":"IF(E188=5,TRUE,FALSE)","v":false},""]
[null,null,null,null,null,{"$f":"IF(E188=6,TRUE,FALSE)","v":false},""]
[null,"Actions to achieve maximum resilience","Responsible institution","Timescale",null,null,""]
[null,null,null,null,null,null,""]
[null,null,null,null,null,null,""]
[null,"9.6.3 - Coordination du redressement post événement",null,null,null,null,"9.6.3"]
[null,"Question","Comments",null,null,null,""]
[null,null,null,null,null,null,""]
[null,"Response","Provide means of verification (explanation and evidence)",null,null,null,""]
[null,null,null,null,null,{"$f":"IF(E201=1,TRUE,FALSE)","v":false},""]
[null,null,null,null,null,{"$f":"IF(E201=2,TRUE,FALSE)","v":false},""]
[null,null,null,null,null,{"$f":"IF(E201=3,TRUE,FALSE)","v":false},""]
[null,null,null,null,null,{"$f":"IF(E201=4,TRUE,FALSE)","v":false},""]
[null,null,null,null,null,{"$f":"IF(E201=5,TRUE,FALSE)","v":false},""]
[null,null,null,null,null,{"$f":"IF(E201=6,TRUE,FALSE)","v":false},""]
[null,"Actions to achieve maximum resilience","Responsible institution","Timescale",null,null,""]
[null,null,null,null,null,null,""]
[null,null,null,null,null,null,""]
[null,"9.7 - Exercices de manoeuvre",null,null,null,null,"9.7"]
[null,null,null,null,null,null,""]
[null,"9.7.1 - Exercices pratiques et répétitionsimpliquant à la fois le public et les professionnels",null,null,null,null,"9.7.1"]
[null,"Question","Comments",null,null,null,""]
[null,null,null,null,null,null,""]
[null,"Response","Provide means of verification (explanation and evidence)",null,null,null,""]
[null,null,null,null,null,{"$f":"IF(E216=1,TRUE,FALSE)","v":false},""]
[null,null,null,null,null,{"$f":"IF(E216=2,TRUE,FALSE)","v":false},""]
[null,null,null,null,null,{"$f":"IF(E216=3,TRUE,FALSE)","v":false},""]
[null,null,null,null,null,{"$f":"IF(E216=4,TRUE,FALSE)","v":false},""]
[null,null,null,null,null,{"$f":"IF(E216=5,TRUE,FALSE)","v":false},""]
[null,null,null,null,null,{"$f":"IF(E216=6,TRUE,FALSE)","v":false},""]
[null,"Actions to achieve maximum resilience","Responsible institution","Timescale",null,null,""]
[null,null,null,null,null,null,""]
[null,null,null,null,null,null,""]
[null,"9.7.2 - Efficacité des exercices de manoeuvre et de la formation",null,null,null,null,"9.7.2"]
[null,"Question","Comments",null,null,null,""]
[null,null,null,null,null,null,""]
[null,"Response","Provide means of verification (explanation and evidence)",null,null,null,""]
[null,null,null,null,null,{"$f":"IF(E229=1,TRUE,FALSE)","v":false},""]
[null,null,null,null,null,{"$f":"IF(E229=2,TRUE,FALSE)","v":false},""]
[null,null,null,null,null,{"$f":"IF(E229=3,TRUE,FALSE)","v":false},""]
[null,null,null,null,null,{"$f":"IF(E229=4,TRUE,FALSE)","v":false},""]
[null,null,null,null,null,{"$f":"IF(E229=5,TRUE,FALSE)","v":false},""]
[null,null,null,null,null,{"$f":"IF(E229=6,TRUE,FALSE)","v":false},""]
[null,"Actions to achieve maximum resilience","Responsible institution","Timescale",null,null,""]
[null,null,null,null,null,null,""]
[null,null,null,null,null,null,""]

{"sheet":"E10","index":12,"n_rows":664,"n_cols":7,"rows_kept":664,"cut":false,"hidden":false,"merged":[[45,1,45,3],[46,2,46,3],[47,2,47,3],[48,2,48,3],[49,2,54,3],[30,1,30,3],[31,2,31,3],[32,2,32,3],[33,2,33,3],[34,2,39,3],[21,2,26,3],[20,2,20,3],[19,2,19,3],[18,2,18,3],[17,1,17,3],[5,2,5,3],[4,1,4,3],[6,2,6,3],[7,2,7,3],[8,2,13,3]]}
[]
[null,null,null,null,null,null,""]
[null,"10.1 - Planification du redressement post événement- pré-événement",null,null,null,null,"10.1"]
[null,null,null,null,null,null,""]
[null,"10.1.1 - La planification du redressement post événement et du relèvement économique",null,null,null,null,"10.1.1"]
[null,"Question","Comments",null,null,null,""]
[null,null,null,null,null,null,""]
[null,"Response","Provide means of verification (explanation and evidence)",null,null,null,""]
[null,null,null,null,0,{"$f":"IF(E9=1,TRUE,FALSE)","v":false},""]
[null,null,null,null,null,{"$f":"IF(E9=2,TRUE,FALSE)","v":false},""]
[null,null,null,null,null,{"$f":"IF(E9=3,TRUE,FALSE)","v":false},""]
[null,null,null,null,null,{"$f":"IF(E9=4,TRUE,FALSE)","v":false},""]
[null,null,null,null,null,{"$f":"IF(E9=5,TRUE,FALSE)","v":false},""]
[null,null,null,null,null,{"$f":"IF(E9=6,TRUE,FALSE)","v":false},""]
[null,"Actions to achieve maximum resilience","Responsible institution","Timescale",null,null,""]
[null,null,null,null,null,null,""]
[null,null,null,null,null,null,""]
[null,"10.1.2 - La mesure dans laquelle une consultation des intervenants a eu lieu sur les plans de redressement et de relèvement post événement.",null,null,null,null,"10.1.2"]
[null,"Question","Comments",null,null,null,""]
[null,null,null,null,null,null,""]
[null,"Response","Provide means of verification (explanation and evidence)",null,null,null,""]
[null,null,null,null,0,{"$f":"IF(E22=1,TRUE,FALSE)","v":false},""]
[null,null,null,null,null,{"$f":"IF(E22=2,TRUE,FALSE)","v":false},""]
[null,null,null,null,null,{"$f":"IF(E22=3,TRUE,FALSE)","v":false},""]
[null,null,null,null,null,{"$f":"IF(E22=4,TRUE,FALSE)","v":false},""]
[null,null,null,null,null,{"$f":"IF(E22=5,TRUE,FALSE)","v":false},""]
[null,null,null,null,null,{"$f":"IF(E22=6,TRUE,FALSE)","v":false},""]
[null,"Actions to achieve maximum resilience","Responsible institution","Timescale",null,null,""]
[null,null,null,null,null,null,""]
[null,null,null,null,null,null,""]
[null,"10.1.3 - Les dispositions financières parallèles pour l’aide reçue et le déboursement des fonds",null,null,null,null,"10.1.3"]
[null,"Question","Comments",null,null,null,""]
[null,null,null,null,null,null,""]
[null,"Response","Provide means of verification (explanation and evidence)",null,null,null,""]
[null,null,null,null,0,{"$f":"IF(E35=1,TRUE,FALSE)","v":false},""]
[null,null,null,null,null,{"$f":"IF(E35=2,TRUE,FALSE)","v":false},""]
[null,null,null,null,null,{"$f":"IF(E35=3,TRUE,FALSE)","v":false},""]
[null,null,null,null,null,{"$f":"IF(E35=4,TRUE,FALSE)","v":false},""]
[null,null,null,null,null,{"$f":"IF(E35=5,TRUE,FALSE)","v":false},""]
[null,null,null,null,null,{"$f":"IF(E35=6,TRUE,FALSE)","v":false},""]
[null,"Actions to achieve maximum resilience","Responsible institution","Timescale",null,null,""]
[null,null,null,null,null,null,""]
[null,null,null,null,null,null,""]
[null,"10.2 - Enseignements/Cycle d’apprentissage",null,null,null,null,"10.2"]
[null,null,null,null,null,null,""]
[null,"10.2.1 - Cycle d’apprentissage",null,null,null,null,"10.2.1"]
[null,"Question","Comments",null,null,null,""]
[null,null,null,null,null,null,""]
[null,"Response","Provide means of verification (explanation and evidence)",null,null,null,""]
[null,null,null,null,0,{"$f":"IF(E50=1,TRUE,FALSE)","v":false},""]
[null,null,null,null,null,{"$f":"IF(E50=2,TRUE,FALSE)","v":false},""]
[null,null,null,null,null,{"$f":"IF(E50=3,TRUE,FALSE)","v":false},""]
[null,null,null,null,null,{"$f":"IF(E50=4,TRUE,FALSE)","v":false},""]
[null,null,null,null,null,{"$f":"IF(E50=5,TRUE,FALSE)","v":false},""]
[null,null,null,null,null,{"$f":"IF(E50=6,TRUE,FALSE)","v":false},""]
[null,"Actions to achieve maximum resilience","Responsible institution","Timescale",null,null,""]
[null,null,null,null,null,null,""]
[null,null,null,null,null,null,""]
[null,null,null,null,null,null,""]
[null,null,null,null,null,null,""]
[null,null,null,null,null,null,""]
[null,null,null,null,null,null,""]
[null,null,null,null,null,null,""]
[null,null,null,null,null,null,""]
[null,null,null,null,null,null,""]
[null,null,null,null,null,null,""]
[null,null,null,null,null,null,""]
[null,null,null,null,null,null,""]
[null,null,null,null,null,null,""]
[null,null,null,null,null,null,""]
[null,null,null,null,null,null,""]
[null,null,null,null,null,null,""]
[null,null,null,null,null,null,""]
[null,null,null,null,null,null,""]
[null,null,null,null,null,null,""]
[null,null,null,null,null,null,""]
[null,null,null,null,null,null,""]
[null,null,null,null,null,null,""]
[null,null,null,null,null,null,""]
[null,null,null,null,null,null,""]
[null,null,null,null,null,null,""]
[null,null,null,null,null,null,""]
[null,null,null,null,null,null,""]
[null,null,null,null,null,null,""]
[null,null,null,null,null,null,""]
[null,null,null,null,null,null,""]
[null,null,null,null,null,null,""]
[null,null,null,null,null,null,""]
[null,null,null,null,null,null,""]
[null,null,null,null,null,null,""]
[null,null,null,null,null,null,""]
[null,null,null,null,null,null,""]
[null,null,null,null,null,null,""]
[null,null,null,null,null,null,""]
[null,null,null,null,null,null,""]
[null,null,null,null,null,null,""]
[null,null,null,null,null,null,""]
[null,null,null,null,null,null,""]
[null,null,null,null,null,null,""]
[null,null,null,null,null,null,""]
[null,null,null,null,null,null,""]
[null,null,null,null,null,null,""]
[null,null,null,null,null,null,""]
[null,null,null,null,null,null,""]
[null,null,null,null,null,null,""]
[null,null,null,null,null,null,""]
[null,null,null,null,null,null,""]
[null,null,null,null,null,null,""]
[null,null,null,null,null,null,""]
[null,null,null,null,null,null,""]
[null,null,null,null,null,null,""]
[null,null,null,null,null,null,""]
[null,null,null,null,null,null,""]
[null,null,null,null,null,null,""]
[null,null,null,null,null,null,""]
[null,null,null,null,null,null,""]
[null,null,null,null,null,null,""]
[null,null,null,null,null,null,""]
[null,null,null,null,null,null,""]
[null,null,null,null,null,null,""]
[null,null,null,null,null,null,""]
[null,null,null,null,null,null,""]
[null,null,null,null,null,null,""]
[null,null,null,null,null,null,""]
[null,null,null,null,null,null,""]
[null,null,null,null,null,null,""]
[null,null,null,null,null,null,""]
[null,null,null,null,null,null,""]
[null,null,null,null,null,null,""]
[null,null,null,null,null,null,""]
[null,null,null,null,null,null,""]
[null,null,null,null,null,null,""]
[null,null,null,null,null,null,""]
[null,null,null,null,null,null,""]
[null,null,null,null,null,null,""]
[null,null,null,null,null,null,""]
[null,null,null,null,null,null,""]
[null,null,null,null,null,null,""]
[null,null,null,null,null,null,""]
[null,null,null,null,null,null,""]
[null,null,null,null,null,null,""]
[null,null,null,null,null,null,""]
[null,null,null,null,null,null,""]
[null,null,null,null,null,null,""]
[null,null,null,null,null,null,""]
[null,null,null,null,null,null,""]
[null,null,null,null,null,null,""]
[null,null,null,null,null,null,""]
[null,null,null,null,null,null,""]
[null,null,null,null,null,null,""]
[null,null,null,null,null,null,""]
[null,null,null,null,null,null,""]
[null,null,null,null,null,null,""]
[null,null,null,null,null,null,""]
[null,null,null,null,null,null,""]
[null,null,null,null,null,null,""]
[null,null,null,null,null,null,""]
[null,null,null,null,null,null,""]
[null,null,null,null,null,null,""]
[null,null,null,null,null,null,""]
[null,null,null,null,null,null,""]
[null,null,null,null,null,null,""]
[null,null,null,null,null,null,""]
[null,null,null,null,null,null,""]
[null,null,null,null,null,null,""]
[null,null,null,null,null,null,""]
[null,null,null,null,null,null,""]
[null,null,null,null,null,null,""]
[null,null,null,null,null,null,""]
[null,null,null,null,null,null,""]
[null,null,null,null,null,null,""]
[null,null,null,null,null,null,""]
[null,null,null,null,null,null,""]
[null,null,null,null,null,null,""]
[null,null,null,null,null,null,""]
[null,null,null,null,null,null,""]
[null,null,null,null,null,null,""]
[null,null,null,null,null,null,""]
[null,null,null,null,null,null,""]
[null,null,null,null,null,null,""]
[null,null,null,null,null,null,""]
[null,null,null,null,null,null,""]
[null,null,null,null,null,null,""]
[null,null,null,null,null,null,""]
[null,null,null,null,null,null,""]
[null,null,null,null,null,null,""]
[null,null,null,null,null,null,""]
[null,null,null,null,null,null,""]
[null,null,null,null,null,null,""]
[null,null,null,null,null,null,""]
[null,null,null,null,null,null,""]
[null,null,null,null,null,null,""]
[null,null,null,null,null,null,""]
[null,null,null,null,null,null,""]
[null,null,null,null,null,null,""]
[null,null,null,null,null,null,""]
[null,null,null,null,null,null,""]
[null,null,null,null,null,null,""]
[null,null,null,null,null,null,""]
[null,null,null,null,null,null,""]
[null,null,null,null,null,null,""]
[null,null,null,null,null,null,""]
[null,null,null,null,null,null,""]
[null,null,null,null,null,null,""]
[null,null,null,null,null,null,""]
[null,null,null,null,null,null,""]
[null,null,null,null,null,null,""]
[null,null,null,null,null,null,""]
[null,null,null,null,null,null,""]
[null,null,null,null,null,null,""]
[null,null,null,null,null,null,""]
[null,null,null,null,null,null,""]
[null,null,null,null,null,null,""]
[null,null,null,null,null,null,""]
[null,null,null,null,null,null,""]
[null,null,null,null,null,null,""]
[null,null,null,null,null,null,""]
[null,null,null,null,null,null,""]
[null,null,null,null,null,null,""]
[null,null,null,null,null,null,""]
[null,null,null,null,null,null,""]
[null,null,null,null,null,null,""]
[null,null,null,null,null,null,""]
[null,null,null,null,null,null,""]
[null,null,null,null,null,null,""]
[null,null,null,null,null,null,""]
[null,null,null,null,null,null,""]
[null,null,null,null,null,null,""]
[null,null,null,null,null,null,""]
[null,null,null,null,null,null,""]
[null,null,null,null,null,null,""]
[null,null,null,null,null,null,""]
[null,null,null,null,null,null,""]
[null,null,null,null,null,null,""]
[null,null,null,null,null,null,""]
[null,null,null,null,null,null,""]
[null,null,null,null,null,null,""]
[null,null,null,null,null,null,""]
[null,null,null,null,null,null,""]
[null,null,null,null,null,null,""]
[null,null,null,null,null,null,""]
[null,null,null,null,null,null,""]
[null,null,null,null,null,null,""]
[null,null,null,null,null,null,""]
[null,null,null,null,null,null,""]
[null,null,null,null,null,null,""]
[null,null,null,null,null,null,""]
[null,null,null,null,null,null,""]
[null,null,null,null,null,null,""]
[null,null,null,null,null,null,""]
[null,null,null,null,null,null,""]
[null,null,null,null,null,null,""]
[null,null,null,null,null,null,""]
[null,null,null,null,null,null,""]
[null,null,null,null,null,null,""]
[null,null,null,null,null,null,""]
[null,null,null,null,null,null,""]
[null,null,null,null,null,null,""]
[null,null,null,null,null,null,""]
[null,null,null,null,null,null,""]
[null,null,null,null,null,null,""]
[null,null,null,null,null,null,""]
[null,null,null,null,null,null,""]
[null,null,null,null,null,null,""]
[null,null,null,null,null,null,""]
[null,null,null,null,null,null,""]
[null,null,null,null,null,null,""]
[null,null,null,null,null,null,""]
[null,null,null,null,null,null,""]
[null,null,null,null,null,null,""]
[null,null,null,null,null,null,""]
[null,null,null,null,null,null,""]
[null,null,null,null,null,null,""]
[null,null,null,null,null,null,""]
[null,null,null,null,null,null,""]
[null,null,null,null,null,null,""]
[null,null,null,null,null,null,""]
[null,null,null,null,null,null,""]
[null,null,null,null,null,null,""]
[null,null,null,null,null,null,""]
[null,null,null,null,null,null,""]
[null,null,null,null,null,null,""]
[null,null,null,null,null,null,""]
[null,null,null,null,null,null,""]
[null,null,null,null,null,null,""]
[null,null,null,null,null,null,""]
[null,null,null,null,null,null,""]
[null,null,null,null,null,null,""]
[null,null,null,null,null,null,""]
[null,null,null,null,null,null,""]
[null,null,null,null,null,null,""]
[null,null,null,null,null,null,""]
[null,null,null,null,null,null,""]
[null,null,null,null,null,null,""]
[null,null,null,null,null,null,""]
[null,null,null,null,null,null,""]
[null,null,null,null,null,null,""]
[null,null,null,null,null,null,""]
[null,null,null,null,null,null,""]
[null,null,null,null,null,null,""]
[null,null,null,null,null,null,""]
[null,null,null,null,null,null,""]
[null,null,null,null,null,null,""]
[null,null,null,null,null,null,""]
[null,null,null,null,null,null,""]
[null,null,null,null,null,null,""]
[null,null,null,null,null,null,""]
[null,null,null,null,null,null,""]
[null,null,null,null,null,null,""]
[null,null,null,null,null,null,""]
[null,null,null,null,null,null,""]
[null,null,null,null,null,null,""]
[null,null,null,null,null,null,""]
[null,null,null,null,null,null,""]
[null,null,null,null,null,null,""]
[null,null,null,null,null,null,""]
[null,null,null,null,null,null,""]
[null,null,null,null,null,null,""]
[null,null,null,null,null,null,""]
[null,null,null,null,null,null,""]
[null,null,null,null,null,null,""]
[null,null,null,null,null,null,""]
[null,null,null,null,null,null,""]
[null,null,null,null,null,null,""]
[null,null,null,null,null,null,""]
[null,null,null,null,null,null,""]
[null,null,null,null,null,null,""]
[null,null,null,null,null,null,""]
[null,null,null,null,null,null,""]
[null,null,null,null,null,null,""]
[null,null,null,null,null,null,""]
[null,null,null,null,null,null,""]
[null,null,null,null,null,null,""]
[null,null,null,null,null,null,""]
[null,null,null,null,null,null,""]
[null,null,null,null,null,null,""]
[null,null,null,null,null,null,""]
[null,null,null,null,null,null,""]
[null,null,null,null,null,null,""]
[null,null,null,null,null,null,""]
[null,null,null,null,null,null,""]
[null,null,null,null,null,null,""]
[null,null,null,null,null,null,""]
[null,null,null,null,null,null,""]
[null,null,null,null,null,null,""]
[null,null,null,null,null,null,""]
[null,null,null,null,null,null,""]
[null,null,null,null,null,null,""]
[null,null,null,null,null,null,""]
[null,null,null,null,null,null,""]
[null,null,null,null,null,null,""]
[null,null,null,null,null,null,""]
[null,null,null,null,null,null,""]
[null,null,null,null,null,null,""]
[null,null,null,null,null,null,""]
[null,null,null,null,null,null,""]
[null,null,null,null,null,null,""]
[null,null,null,null,null,null,""]
[null,null,null,null,null,null,""]
[null,null,null,null,null,null,""]
[null,null,null,null,null,null,""]
[null,null,null,null,null,null,""]
[null,null,null,null,null,null,""]
[null,null,null,null,null,null,""]
[null,null,null,null,null,null,""]
[null,null,null,null,null,null,""]
[null,null,null,null,null,null,""]
[null,null,null,null,null,null,""]
[null,null,null,null,null,null,""]
[null,null,null,null,null,null,""]
[null,null,null,null,null,null,""]
[null,null,null,null,null,null,""]
[null,null,null,null,null,null,""]
[null,null,null,null,null,null,""]
[null,null,null,null,null,null,""]
[null,null,null,null,null,null,""]
[null,null,null,null,null,null,""]
[null,null,null,null,null,null,""]
[null,null,null,null,null,null,""]
[null,null,null,null,null,null,""]
[null,null,null,null,null,null,""]
[null,null,null,null,null,null,""]
[null,null,null,null,null,null,""]
[null,null,null,null,null,null,""]
[null,null,null,null,null,null,""]
[null,null,null,null,null,null,""]
[null,null,null,null,null,null,""]
[null,null,null,null,null,null,""]
[null,null,null,null,null,null,""]
[null,null,null,null,null,null,""]
[null,null,null,null,null,null,""]
[null,null,null,null,null,null,""]
[null,null,null,null,null,null,""]
[null,null,null,null,null,null,""]
[null,null,null,null,null,null,""]
[null,null,null,null,null,null,""]
[null,null,null,null,null,null,""]
[null,null,null,null,null,null,""]
[null,null,null,null,null,null,""]
[null,null,null,null,null,null,""]
[null,null,null,null,null,null,""]
[null,null,null,null,null,null,""]
[null,null,null,null,null,null,""]
[null,null,null,null,null,null,""]
[null,null,null,null,null,null,""]
[null,null,null,null,null,null,""]
[null,null,null,null,null,null,""]
[null,null,null,null,null,null,""]
[null,null,null,null,null,null,""]
[null,null,null,null,null,null,""]
[null,null,null,null,null,null,""]
[null,null,null,null,null,null,""]
[null,null,null,null,null,null,""]
[null,null,null,null,null,null,""]
[null,null,null,null,null,null,""]
[null,null,null,null,null,null,""]
[null,null,null,null,null,null,""]
[null,null,null,null,null,null,""]
[null,null,null,null,null,null,""]
[null,null,null,null,null,null,""]
[null,null,null,null,null,null,""]
[null,null,null,null,null,null,""]
[null,null,null,null,null,null,""]
[null,null,null,null,null,null,""]
[null,null,null,null,null,null,""]
[null,null,null,null,null,null,""]
[null,null,null,null,null,null,""]
[null,null,null,null,null,null,""]
[null,null,null,null,null,null,""]
[null,null,null,null,null,null,""]
[null,null,null,null,null,null,""]
[null,null,null,null,null,null,""]
[null,null,null,null,null,null,""]
[null,null,null,null,null,null,""]
[null,null,null,null,null,null,""]
[null,null,null,null,null,null,""]
[null,null,null,null,null,null,""]
[null,null,null,null,null,null,""]
[null,null,null,null,null,null,""]
[null,null,null,null,null,null,""]
[null,null,null,null,null,null,""]
[null,null,null,null,null,null,""]
[null,null,null,null,null,null,""]
[null,null,null,null,null,null,""]
[null,null,null,null,null,null,""]
[null,null,null,null,null,null,""]
[null,null,null,null,null,null,""]
[null,null,null,null,null,null,""]
[null,null,null,null,null,null,""]
[null,null,null,null,null,null,""]
[null,null,null,null,null,null,""]
[null,null,null,null,null,null,""]
[null,null,null,null,null,null,""]
[null,null,null,null,null,null,""]
[null,null,null,null,null,null,""]
[null,null,null,null,null,null,""]
[null,null,null,null,null,null,""]
[null,null,null,null,null,null,""]
[null,null,null,null,null,null,""]
[null,null,null,null,null,null,""]
[null,null,null,null,null,null,""]
[null,null,null,null,null,null,""]
[null,null,null,null,null,null,""]
[null,null,null,null,null,null,""]
[null,null,null,null,null,null,""]
[null,null,null,null,null,null,""]
[null,null,null,null,null,null,""]
[null,null,null,null,null,null,""]
[null,null,null,null,null,null,""]
[null,null,null,null,null,null,""]
[null,null,null,null,null,null,""]
[null,null,null,null,null,null,""]
[null,null,null,null,null,null,""]
[null,null,null,null,null,null,""]
[null,null,null,null,null,null,""]
[null,null,null,null,null,null,""]
[null,null,null,null,null,null,""]
[null,null,null,null,null,null,""]
[null,null,null,null,null,null,""]
[null,null,null,null,null,null,""]
[null,null,null,null,null,null,""]
[null,null,null,null,null,null,""]
[null,null,null,null,null,null,""]
[null,null,null,null,null,null,""]
[null,null,null,null,null,null,""]
[null,null,null,null,null,null,""]
[null,null,null,null,null,null,""]
[null,null,null,null,null,null,""]
[null,null,null,null,null,null,""]
[null,null,null,null,null,null,""]
[null,null,null,null,null,null,""]
[null,null,null,null,null,null,""]
[null,null,null,null,null,null,""]
[null,null,null,null,null,null,""]
[null,null,null,null,null,null,""]
[null,null,null,null,null,null,""]
[null,null,null,null,null,null,""]
[null,null,null,null,null,null,""]
[null,null,null,null,null,null,""]
[null,null,null,null,null,null,""]
[null,null,null,null,null,null,""]
[null,null,null,null,null,null,""]
[null,null,null,null,null,null,""]
[null,null,null,null,null,null,""]
[null,null,null,null,null,null,""]
[null,null,null,null,null,null,""]
[null,null,null,null,null,null,""]
[null,null,null,null,null,null,""]
[null,null,null,null,null,null,""]
[null,null,null,null,null,null,""]
[null,null,null,null,null,null,""]
[null,null,null,null,null,null,""]
[null,null,null,null,null,null,""]
[null,null,null,null,null,null,""]
[null,null,null,null,null,null,""]
[null,null,null,null,null,null,""]
[null,null,null,null,null,null,""]
[null,null,null,null,null,null,""]
[null,null,null,null,null,null,""]
[null,null,null,null,null,null,""]
[null,null,null,null,null,null,""]
[null,null,null,null,null,null,""]
[null,null,null,null,null,null,""]
[null,null,null,null,null,null,""]
[null,null,null,null,null,null,""]
[null,null,null,null,null,null,""]
[null,null,null,null,null,null,""]
[null,null,null,null,null,null,""]
[null,null,null,null,null,null,""]
[null,null,null,null,null,null,""]
[null,null,null,null,null,null,""]
[null,null,null,null,null,null,""]
[null,null,null,null,null,null,""]
[null,null,null,null,null,null,""]
[null,null,null,null,null,null,""]
[null,null,null,null,null,null,""]
[null,null,null,null,null,null,""]
[null,null,null,null,null,null,""]
[null,null,null,null,null,null,""]
[null,null,null,null,null,null,""]
[null,null,null,null,null,null,""]
[null,null,null,null,null,null,""]
[null,null,null,null,null,null,""]
[null,null,null,null,null,null,""]
[null,null,null,null,null,null,""]
[null,null,null,null,null,null,""]
[null,null,null,null,null,null,""]
[null,null,null,null,null,null,""]
[null,null,null,null,null,null,""]
[null,null,null,null,null,null,""]
[null,null,null,null,null,null,""]
[null,null,null,null,null,null,""]
[null,null,null,null,null,null,""]
[null,null,null,null,null,null,""]
[null,null,null,null,null,null,""]
[null,null,null,null,null,null,""]
[null,null,null,null,null,null,""]
[null,null,null,null,null,null,""]
[null,null,null,null,null,null,""]
[null,null,null,null,null,null,""]
[null,null,null,null,null,null,""]
[null,null,null,null,null,null,""]
[null,null,null,null,null,null,""]
[null,null,null,null,null,null,""]
[null,null,null,null,null,null,""]
[null,null,null,null,null,null,""]
[null,null,null,null,null,null,""]
[null,null,null,null,null,null,""]
[null,null,null,null,null,null,""]
[null,null,null,null,null,null,""]
[null,null,null,null,null,null,""]
[null,null,null,null,null,null,""]
[null,null,null,null,null,null,""]
[null,null,null,null,null,null,""]
[null,null,null,null,null,null,""]
[null,null,null,null,null,null,""]
[null,null,null,null,null,null,""]
[null,null,null,null,null,null,""]
[null,null,null,null,null,null,""]
[null,null,null,null,null,null,""]
[null,null,null,null,null,null,""]
[null,null,null,null,null,null,""]
[null,null,null,null,null,null,""]
[null,null,null,null,null,null,""]
[null,null,null,null,null,null,""]
[null,null,null,null,null,null,""]
[null,null,null,null,null,null,""]
[null,null,null,null,null,null,""]
[null,null,null,null,null,null,""]
[null,null,null,null,null,null,""]
[null,null,null,null,null,null,""]
[null,null,null,null,null,null,""]
[null,null,null,null,null,null,""]
[null,null,null,null,null,null,""]
[null,null,null,null,null,null,""]
[null,null,null,null,null,null,""]
[null,null,null,null,null,null,""]
[null,null,null,null,null,null,""]
[null,null,null,null,null,null,""]
[null,null,null,null,null,null,""]
[null,null,null,null,null,null,""]
[null,null,null,null,null,null,""]
[null,null,null,null,null,null,""]
[null,null,null,null,null,null,""]
[null,null,null,null,null,null,""]
[null,null,null,null,null,null,""]
[null,null,null,null,null,null,""]
[null,null,null,null,null,null,""]
[null,null,null,null,null,null,""]
[null,null,null,null,null,null,""]
[null,null,null,null,null,null,""]
[null,null,null,null,null,null,""]
[null,null,null,null,null,null,""]
[null,null,null,null,null,null,""]
[null,null,null,null,null,null,""]
[null,null,null,null,null,null,""]
[null,null,null,null,null,null,""]
[null,null,null,null,null,null,""]
[null,null,null,null,null,null,""]
[null,null,null,null,null,null,""]
[null,null,null,null,null,null,""]
[null,null,null,null,null,null,""]
[null,null,null,null,null,null,""]
[null,null,null,null,null,null,""]
[null,null,null,null,null,null,""]
[null,null,null,null,null,null,""]
[null,null,null,null,null,null,""]
[null,null,null,null,null,null,""]
[null,null,null,null,null,null,""]
[null,null,null,null,null,null,""]
[null,null,null,null,null,null,""]
[null,null,null,null,null,null,""]
[null,null,null,null,null,null,""]
[null,null,null,null,null,null,""]
[null,null,null,null,null,null,""]
[null,null,null,null,null,null,""]
[null,null,null,null,null,null,""]
[null,null,null,null,null,null,""]
[null,null,null,null,null,null,""]
[null,null,null,null,null,null,""]
[null,null,null,null,null,null,""]
[null,null,null,null,null,null,""]
[null,null,null,null,null,null,""]
[null,null,null,null,null,null,""]
[null,null,null,null,null,null,""]
[null,null,null,null,null,null,""]
[null,null,null,null,null,null,""]
[null,null,null,null,null,null,""]
[null,null,null,null,null,null,""]
[null,null,null,null,null,null,""]
[null,null,null,null,null,null,""]
[null,null,null,null,null,null,""]
[null,null,null,null,null,null,""]
[null,null,null,null,null,null,""]
[null,null,null,null,null,null,""]
[null,null,null,null,null,null,""]
[null,null,null,null,null,null,""]
[null,null,null,null,null,null,""]
[null,null,null,null,null,null,""]
[null,null,null,null,null,null,""]
[null,null,null,null,null,null,""]
[null,null,null,null,null,null,""]
[null,null,null,null,null,null,""]
[null,null,null,null,null,null,""]

{"sheet":"About","index":13,"n_rows":0,"n_cols":0,"rows_kept":0,"cut":false,"hidden":false,"merged":[]}